Workbook

Sheet Responses
A1: (A) | B1: (B) | C1: (C) | D1: (D)*
A2: Boiler Type | B2: Number of Respondents (facilities) | C2: Total Number Responses for 3-year Period | D2: Average Annual Number of Responses
A3: Existing Large Solid Units | B3: =SUM('Base Data'!H16:H17,'Base Data'!H19) -> 2020 | C3: ='Fac-ExistLrgSolid-Yr1'!P32+'Fac-ExistLrgSolid-Yr2'!P32+'Fac-ExistLrgSolid-Yr3'!P32 -> 6347 | D3: =C3/3 -> 2115.666667
A4: New Large Solid Units | B4: =SUM('Base Data'!H40:H41) -> 30 | C4: =+'Fac-NewLrgSolid-Yr1'!M31+'Fac-NewLrgSolid-Yr2'!M31+'Fac-NewLrgSolid-Yr3'!M31 -> 120 | D4: =C4/3 -> 40
A5: Existing Small Solid Units | B5: =SUM('Base Data'!H15,'Base Data'!H18) -> 5314 | C5: =SUM('Fac - ExistSmlSolid-Yr1'!M16,'Fac - ExistSmlSolid-Yr2'!M16,'Fac - ExistSmlSolid-Yr3'!M16) -> 13285 | D5: 4428.333333
A6: New Small Solid Units | B6: =SUM('Base Data'!H39,'Base Data'!H42) -> 148 | C6: =SUM('Fac-NewSmlSolid-Yr1'!M16,'Fac-NewSmlSolid-Yr3'!M16,'Fac-NewSmlSolid-Yr2'!M16) -> 443.5 | D6: 147.8333333
A7: Existing Large Liquid Units | B7: =SUM('Base Data'!H21:H22) -> 4615 | C7: =SUM('Fac-ExistLrgLiquid-Yr1'!N19,'Fac-ExistLrgLiquid-Yr2'!N19,'Fac-ExistLrgLiquid-Yr3'!N19) -> 11537.5 | D7: 3845.833333
A8: New Large Liquid Units | B8: =SUM('Base Data'!H44) -> 244 | C8: ='Fac-NewLrgLiquid-Yr1'!M25+'Fac-NewLrgLiquid-Yr2'!M25+'Fac-NewLrgLiquid-Yr3'!M25 -> 975 | D8: 325
A9: Existing Small Liquid Units | B9: =SUM('Base Data'!H20) -> 79387 | C9: =+'Fac - ExistSmlLiquid-Yr1'!M16+'Fac - ExistSmlLiquid-Yr2'!M16+'Fac - ExistSmlLiquid-Yr3'!M16 -> 198467.5 | D9: 66155.83333 | F9: ='Fac - ExistSmlLiquid-Yr1'!M16+'Fac - ExistSmlLiquid-Yr2'!M16+'Fac - ExistSmlLiquid-Yr3'!M16 -> 198467.5 | G9: =F9/3 -> 66155.83333
A10: New Small Liquid Units | B10: ='Base Data'!H43 -> 2968 | C10: =SUM('Fac-NewSmlLiquid-Yr1'!M16,'Fac-NewSmlLiquid-Yr2'!M16,'Fac-NewSmlLiquid-Yr3'!M16) -> 8903.5 | D10: 2967.833333
A11: TOTAL | B11: =SUM(B3:B10) -> 94726 | C11: =SUM(C3:C10) -> 240079 | D11: =SUM(D2:D10) -> 80026.33333

Sheet Capital vs. O&M
A1: (A) | B1: (B) | C1: (C) | D1: (D) | E1: (E)
A2: Boiler Type | B2: Number of Respondents (facilities) | C2: Total Annualized Capital and O&M over 3 years | D2: Total Capital/Startup Cost over 3 years | E2: Average Annual O&M and Annualized Capital Costs per year
A3: Existing Large Solid Units | B3: =SUM('Base Data'!H16:H17,'Base Data'!H19) -> 2020 | C3: ='Fac-ExistLrgSolid-Yr1'!O47+'Fac-ExistLrgSolid-Yr2'!O47+'Fac-ExistLrgSolid-Yr3'!O47 -> 20730258 | D3: ='Fac-ExistLrgSolid-Yr1'!O21+'Fac-ExistLrgSolid-Yr2'!O21+'Fac-ExistLrgSolid-Yr3'!O21 -> 2040000 | E3: =C3/3 -> 6910086
A4: New Large Solid Units | B4: =SUM('Base Data'!H40:H41) -> 30 | C4: ='Fac-NewLrgSolid-Yr1'!L46+'Fac-NewLrgSolid-Yr2'!L46+'Fac-NewLrgSolid-Yr3'!L46 -> 313700 | D4: ='Fac-NewLrgSolid-Yr1'!L20+'Fac-NewLrgSolid-Yr1'!L23+'Fac-NewLrgSolid-Yr2'!L20+'Fac-NewLrgSolid-Yr2'!L23+'Fac-NewLrgSolid-Yr3'!L20+'Fac-NewLrgSolid-Yr3'!L23 -> 474100 | E4: =C4/3 -> 104566.6667
A5: Existing Small Solid Units | B5: =SUM('Base Data'!H15,'Base Data'!H18) -> 5314 | C5: ='Fac - ExistSmlSolid-Yr1'!L27+'Fac - ExistSmlSolid-Yr2'!L27+'Fac - ExistSmlSolid-Yr3'!L27 -> 11840706 | D5: 0 | E5: 3946902
A6: New Small Solid Units | B6: =SUM('Base Data'!H39,'Base Data'!H42) -> 148 | C6: ='Fac-NewSmlSolid-Yr1'!L27+'Fac-NewSmlSolid-Yr2'!L27+'Fac-NewSmlSolid-Yr3'!L27 -> 657260 | D6: 0 | E6: 219086.6667
A7: Existing Large Liquid Units | B7: =SUM('Base Data'!H21:H22) -> 4615 | C7: ='Fac-ExistLrgLiquid-Yr1'!M30+'Fac-ExistLrgLiquid-Yr2'!M30+'Fac-ExistLrgLiquid-Yr3'!M30 -> 37226089.5 | D7: 0 | E7: 12408696.5
A8: New Large Liquid Units | B8: =SUM('Base Data'!H44) -> 244 | C8: ='Fac-NewLrgLiquid-Yr1'!L40+'Fac-NewLrgLiquid-Yr2'!L40+'Fac-NewLrgLiquid-Yr3'!L40 -> 21622400 | D8: ='Fac-NewLrgLiquid-Yr1'!L14+'Fac-NewLrgLiquid-Yr1'!L17+'Fac-NewLrgLiquid-Yr2'!L14+'Fac-NewLrgLiquid-Yr2'!L17+'Fac-NewLrgLiquid-Yr3'!L14+'Fac-NewLrgLiquid-Yr3'!L17 -> 20154600 | E8: 7207466.667
A9: Existing Small Liquid Units | B9: =SUM('Base Data'!H20) -> 79387 | C9: ='Fac - ExistSmlLiquid-Yr1'!L27+'Fac - ExistSmlLiquid-Yr2'!L27+'Fac - ExistSmlLiquid-Yr3'!L27 -> 353748472 | D9: 0 | E9: 117916157.3
A10: New Small Liquid Units | B10: ='Base Data'!H43 -> 2968 | C10: ='Fac-NewSmlLiquid-Yr1'!L27+'Fac-NewSmlLiquid-Yr2'!L27+'Fac-NewSmlLiquid-Yr3'!L27 -> 13227636 | D10: 0 | E10: 4409212
A11: TOTAL | B11: =SUM(B3:B10) -> 94726 | C11: =SUM(C3:C10) -> 459366521.5 | D11: =SUM(D3:D10) -> 22668700 | E11: =SUM(E3:E10) -> 153122173.8

Sheet ICRAS Summary
A1: ICRAS SUMMARY | B1: Reporting | E1: Recordkeeping | H1: Total Recordkeeping and Reporting Costs
B2: Annual Burden Hours | C2: Number of Respondents (Facilities) | D2: Number of Responses | E2: Annualized Capital/Start-up and O&M | F2: Annual Burden Hours | H2: Number of Responses | I2: Annual Burden Hours | J2: Annualized Capital/Start-up and O&M
A3: Year 1 | B3: =SUM('Fac-ExistLrgSolid-Yr1'!J32:L32,'Fac-ExistLrgLiquid-Yr1'!I19:K19,'Fac-NewLrgSolid-Yr1'!H31:J31,'Fac-NewLrgLiquid-Yr1'!H25:J25,'Fac - ExistSmlSolid-Yr1'!H16:J16,'Fac - ExistSmlLiquid-Yr1'!H16:J16,'Fac-NewSmlSolid-Yr1'!H16:J16,'Fac-NewSmlLiquid-Yr1'!H16:J16) -> 4505011.15 | C3: =SUM('Fac-ExistLrgSolid-Yr1'!I7,'Fac-ExistLrgLiquid-Yr1'!H7,'Fac-NewLrgSolid-Yr1'!G7,'Fac-NewLrgLiquid-Yr1'!G7,'Fac - ExistSmlSolid-Yr1'!G7,'Fac - ExistSmlLiquid-Yr1'!G7,'Fac-NewSmlSolid-Yr1'!G7,'Fac-NewSmlLiquid-Yr1'!G7) -> 92465 | D3: =SUM('Fac-ExistLrgSolid-Yr1'!P47,'Fac-NewLrgSolid-Yr1'!M46,'Fac-NewLrgLiquid-Yr1'!M40,'Fac-ExistLrgLiquid-Yr1'!N30,'Fac - ExistSmlSolid-Yr1'!M27,'Fac - ExistSmlLiquid-Yr1'!M27,'Fac-NewSmlSolid-Yr1'!M27,'Fac-NewSmlLiquid-Yr1'!M27) -> 94204 | E3: =SUM('Fac-ExistLrgSolid-Yr1'!O47,'Fac-ExistLrgLiquid-Yr1'!M30,'Fac-NewLrgSolid-Yr1'!L46,'Fac-NewLrgLiquid-Yr1'!L40,'Fac - ExistSmlSolid-Yr1'!L27,'Fac - ExistSmlLiquid-Yr1'!L27,'Fac-NewSmlSolid-Yr1'!L27,'Fac-NewSmlLiquid-Yr1'!L27) -> 8288756 | F3: =SUM('Fac-ExistLrgSolid-Yr1'!J46:L46,'Fac-ExistLrgLiquid-Yr1'!I29:K29,'Fac-NewLrgSolid-Yr1'!H45:J45,'Fac-NewLrgLiquid-Yr1'!H39:J39,'Fac - ExistSmlSolid-Yr1'!H26:J26,'Fac - ExistSmlLiquid-Yr1'!H26:J26,'Fac-NewSmlSolid-Yr1'!H26:J26,'Fac-NewSmlLiquid-Yr1'!H26:J26) -> 15629.9375 | G3: Year 1 | H3: =D3 -> 94204 | I3: =B3+F3 -> 4520641.088 | J3: =E3 -> 8288756
A4: Year 2 | B4: =SUM('Fac-ExistLrgSolid-Yr2'!J32:L32,'Fac-ExistLrgLiquid-Yr2'!I19:K19,'Fac-NewLrgSolid-Yr2'!H31:J31,'Fac-NewLrgLiquid-Yr2'!H25:J25,'Fac - ExistSmlSolid-Yr2'!H16:J16,'Fac - ExistSmlLiquid-Yr2'!H16:J16,'Fac-NewSmlSolid-Yr2'!H16:J16,'Fac-NewSmlLiquid-Yr2'!H16:J16) -> 899661.1 | C4: =SUM('Fac-ExistLrgSolid-Yr2'!I10:I11,'Fac-ExistLrgLiquid-Yr2'!H10:H11,'Fac-NewLrgSolid-Yr2'!G7,'Fac-NewLrgLiquid-Yr2'!G7,'Fac - ExistSmlSolid-Yr2'!G9,'Fac-NewSmlSolid-Yr2'!G7,'Fac - ExistSmlLiquid-Yr2'!G9,'Fac-NewSmlLiquid-Yr2'!G7) -> 92466 | D4: =SUM('Fac-ExistLrgSolid-Yr2'!P47,'Fac-NewLrgSolid-Yr2'!M46,'Fac-NewLrgLiquid-Yr2'!M40,'Fac-ExistLrgLiquid-Yr2'!N30,'Fac - ExistSmlSolid-Yr2'!M27,'Fac - ExistSmlLiquid-Yr2'!M27,'Fac-NewSmlSolid-Yr2'!M27,'Fac-NewSmlLiquid-Yr2'!M27) -> 3478 | E4: =SUM('Fac-ExistLrgSolid-Yr2'!O47,'Fac-ExistLrgLiquid-Yr2'!M30,'Fac-NewLrgSolid-Yr2'!L46,'Fac-NewLrgLiquid-Yr2'!L40,'Fac - ExistSmlSolid-Yr2'!L27,'Fac - ExistSmlLiquid-Yr2'!L27,'Fac-NewSmlSolid-Yr2'!L27,'Fac-NewSmlLiquid-Yr2'!L27) -> 222157048.5 | F4: =SUM('Fac-ExistLrgSolid-Yr2'!J46:L46,'Fac-ExistLrgLiquid-Yr2'!I29:K29,'Fac-NewLrgSolid-Yr2'!H45:J45,'Fac-NewLrgLiquid-Yr2'!H39:J39,'Fac - ExistSmlSolid-Yr2'!H26:J26,'Fac - ExistSmlLiquid-Yr2'!H26:J26,'Fac-NewSmlSolid-Yr2'!H26:J26,'Fac-NewSmlLiquid-Yr2'!H26:J26) -> 31259.875 | G4: Year 2 | H4: =D4 -> 3478 | I4: =B4+F4 -> 930920.975 | J4: =E4 -> 222157048.5
A5: Year 3 | B5: =SUM('Fac-ExistLrgSolid-Yr3'!J32:L32,'Fac-ExistLrgLiquid-Yr3'!I19:K19,'Fac-NewLrgSolid-Yr3'!H31:J31,'Fac-NewLrgLiquid-Yr3'!H25:J25,'Fac - ExistSmlSolid-Yr3'!H16:J16,'Fac - ExistSmlLiquid-Yr3'!H16:J16,'Fac-NewSmlSolid-Yr3'!H16:J16,'Fac-NewSmlLiquid-Yr3'!H16:J16) -> 2036525.8 | C5: ='Base Data'!H23+'Base Data'!H45 -> 94726 | D5: =SUM('Fac-ExistLrgSolid-Yr3'!P47,'Fac-NewLrgSolid-Yr3'!M46,'Fac-NewLrgLiquid-Yr3'!M40,'Fac-ExistLrgLiquid-Yr3'!N30,'Fac - ExistSmlSolid-Yr3'!M27,'Fac - ExistSmlLiquid-Yr3'!M27,'Fac-NewSmlSolid-Yr3'!M27,'Fac-NewSmlLiquid-Yr3'!M27) -> 142397 | E5: =SUM('Fac-ExistLrgSolid-Yr3'!O47,'Fac-ExistLrgLiquid-Yr3'!M30,'Fac-NewLrgSolid-Yr3'!L46,'Fac-NewLrgLiquid-Yr3'!L40,'Fac - ExistSmlSolid-Yr3'!L27,'Fac - ExistSmlLiquid-Yr3'!L27,'Fac-NewSmlSolid-Yr3'!L27,'Fac-NewSmlLiquid-Yr3'!L27) -> 228920717 | F5: =SUM('Fac-ExistLrgSolid-Yr3'!J46:L46,'Fac-ExistLrgLiquid-Yr3'!I29:K29,'Fac-NewLrgSolid-Yr3'!H45:J45,'Fac-NewLrgLiquid-Yr3'!H39:J39,'Fac - ExistSmlSolid-Yr3'!H26:J26,'Fac - ExistSmlLiquid-Yr3'!H26:J26,'Fac-NewSmlSolid-Yr3'!H26:J26,'Fac-NewSmlLiquid-Yr3'!H26:J26) -> 557391.2 | G5: Year 3 | H5: =D5 -> 142397 | I5: =B5+F5 -> 2593917 | J5: =E5 -> 228920717
A6: Overall Average Annual Estimates | B6: =AVERAGE(B3:B5) -> 2480399.35 | C6: =AVERAGE(C3:C5) -> 93219 | D6: =AVERAGE(D3:D5) -> 80026.33333 | E6: =AVERAGE(E3:E5) -> 153122173.8 | F6: =AVERAGE(F3:F5) -> 201427.0042 | G6: Overall Average Annual Estimates | H6: =AVERAGE(H3:H5) -> 80026.33333 | I6: =AVERAGE(I3:I5) -> 2681826.354 | J6: =AVERAGE(J3:J5) -> 153122173.8
A7: Avg. Cost per Response | E7: =E6/D6 -> 1913.397346
A8: Avg. Burden Hours per Response | B8: =B6/D6 -> 30.99478942 | E8: =F6/D6 -> 2.517009037 | H8: =(B6+F6)/D6 -> 33.51179846
C10: ALL SECTORS | D10: Private Sector | E10: Public Sector
A11: Paperwork Preamble SUMMARY- Industry | B11: 3-year total | C11: annual average | D11: annual average | E11: annual average
A12: Total HOURS | B12: =SUM(B3:B5,F3:F5) -> 8045479.063 | C12: =B12/3 -> 2681826.354 | D12: =0.49*C12 -> 1314094.914 | E12: =0.51*C12 -> 1367731.441
A13: TOTAL COSTS (non-labor) | B13: =SUM(E3:E5) -> 459366521.5 | C13: =B13/3 -> 153122173.8 | D13: =0.49*C13 -> 75029865.18 | E13: =0.51*C13 -> 78092308.66
A14: Total LABOR COSTS | B14: =SUM(D29:D31) -> 761014868.5 | C14: =B14/3 -> 253671622.8 | D14: =0.49*C14 -> 124299095.2 | E14: =0.51*C14 -> 129372527.6
A15: TOTAL LABOR AND NON-Labor COSTS | B15: =SUM(B13:B14) -> 1220381390 | C15: =B15/3 -> 406793796.7 | D15: =0.49*C15 -> 199328960.4 | E15: =0.51*C15 -> 207464836.3
C16: Small Entity Respondents per year | D16: =0.97*0.49*C6 -> 44306.9907 | E16: =0.97*0.51*C6 -> 46115.4393
C17: Total Respondents per year | D17: =ROUND(0.49*C6,0) -> 45677 | E17: =ROUND(0.51*C6,0) -> 47542
A20: AGENCY Burden | B20: Hours | C20: Costs (labor + travel)
A21: Year 1 | B21: =AgencyYR1!L23 -> 439226.4 | C21: =AgencyYR1!M22 -> 19848842.23
A22: Year 2 | B22: =AgencyYR2!L23 -> 49445.4 | C22: =+AgencyYR2!M22 -> 2473334.202
A23: Year 3 | B23: =AgencyYR3!L23 -> 368891.25 | C23: =+AgencyYR3!M22 -> 16869091.99 | F23: total costs | G23: =B15 -> 1220381390 | H23: =C15 -> 406793796.7
A24: Total | B24: =SUM(B21:B23) -> 857563.05 | C24: =SUM(C21:C23) -> 39191268.42
A25: Annual Average | B25: =B24/3 -> 285854.35 | C25: =C24/3 -> 13063756.14
D28: labor | E28: nonlabor
D29: =SUM('Fac-ExistLrgSolid-Yr1'!N47,'Fac-ExistLrgLiquid-Yr1'!L30,'Fac-NewLrgSolid-Yr1'!K46,'Fac-NewLrgLiquid-Yr1'!K40,'Fac - ExistSmlSolid-Yr1'!K27,'Fac - ExistSmlLiquid-Yr1'!K27,'Fac-NewSmlSolid-Yr1'!K27,'Fac-NewSmlLiquid-Yr1'!K27) -> 427603509.5 | E29: =SUM('Fac-ExistLrgSolid-Yr1'!O47,'Fac-ExistLrgLiquid-Yr1'!M30,'Fac-NewLrgSolid-Yr1'!L46,'Fac-NewLrgLiquid-Yr1'!L40,'Fac - ExistSmlSolid-Yr1'!L27,'Fac - ExistSmlLiquid-Yr1'!L27,'Fac-NewSmlSolid-Yr1'!L27,'Fac-NewSmlLiquid-Yr1'!L27) -> 8288756
D30: =SUM('Fac-ExistLrgSolid-Yr2'!N47,'Fac-ExistLrgLiquid-Yr2'!L30,'Fac-NewLrgSolid-Yr2'!K46,'Fac-NewLrgLiquid-Yr2'!K40,'Fac - ExistSmlSolid-Yr2'!K27,'Fac - ExistSmlLiquid-Yr2'!K27,'Fac-NewSmlSolid-Yr2'!K27,'Fac-NewSmlLiquid-Yr2'!K27) -> 88055005.53 | E30: =SUM('Fac-ExistLrgSolid-Yr2'!O47,'Fac-ExistLrgLiquid-Yr2'!M30,'Fac-NewLrgSolid-Yr2'!L46,'Fac-NewLrgLiquid-Yr2'!L40,'Fac - ExistSmlSolid-Yr2'!L27,'Fac - ExistSmlLiquid-Yr2'!L27,'Fac-NewSmlSolid-Yr2'!L27,'Fac-NewSmlLiquid-Yr2'!L27) -> 222157048.5
D31: =SUM('Fac-ExistLrgSolid-Yr3'!N47,'Fac-ExistLrgLiquid-Yr3'!L30,'Fac-NewLrgSolid-Yr3'!K46,'Fac-NewLrgLiquid-Yr3'!K40,'Fac - ExistSmlSolid-Yr3'!K27,'Fac - ExistSmlLiquid-Yr3'!K27,'Fac-NewSmlSolid-Yr3'!K27,'Fac-NewSmlLiquid-Yr3'!K27) -> 245356353.4 | E31: =SUM('Fac-ExistLrgSolid-Yr3'!O47,'Fac-ExistLrgLiquid-Yr3'!M30,'Fac-NewLrgSolid-Yr3'!L46,'Fac-NewLrgLiquid-Yr3'!L40,'Fac - ExistSmlSolid-Yr3'!L27,'Fac - ExistSmlLiquid-Yr3'!L27,'Fac-NewSmlSolid-Yr3'!L27,'Fac-NewSmlLiquid-Yr3'!L27) -> 228920717
D32: =SUM(D29:D31) -> 761014868.5 | E32: =SUM(E29:E31) -> 459366521.5

Sheet Base Data
B2: Labor Rates
B4: Category | C4: Rate
B5: Technical | C5: 98.2
B6: Clerical | C6: 48.53 | E6: Units per Facility | F6: 2
B7: Managerial | C7: 114.49
B8: General Contractor | C8: 80
B9: Certfied Energy Audit Contractor | C9: 56.78
B11: Existing Boiler Data | E11: =D15+D18+D20 -> 169403
B13: Sum of Number of Boilers Represented by Model | F13: Sum of Number of Facilities Represented by Model | L13: =H16+H17+H19 -> 2020
B14: Fuel Category | C14: Size Category | D14: Total | F14: Fuel Category | G14: Size Category | H14: Total
B15: Biomass | C15: < 10 | D15: 7492 | E15: =D15+D18 -> 10629 | F15: Biomass | G15: < 10 | H15: =D15/$F$6 -> 3746 | I15: =H15+H18 -> 5314 | J15: total large
C16: >= 10 to 100 | D16: 3418 | G16: >= 10 to 100 | H16: =D16/$F$6 -> 1709 | J16: =D16+D17+D19 -> 4039
C17: >100 | D17: 48 | G17: >100 | H17: 24 | I17: =H17+H16 -> 1733 | J17: =867*2 -> 1734
B18: Coal | C18: < 10 | D18: 3137 | F18: Coal | G18: < 10 | H18: =ROUNDDOWN(D18/$F$6,0) -> 1568
C19: >= 10 to 100 | D19: 573 | E19: =D16+D17+D19 -> 4039 | G19: >= 10 to 100 | H19: =ROUND(D19/$F$6,0) -> 287 | L19: =143+144 -> 287
B20: Liquid | C20: < 10 | D20: 158774 | F20: Liquid | G20: < 10 | H20: 79387
C21: >= 10 to 100 | D21: 9090 | G21: >= 10 to 100 | H21: 4545
C22: >100 | D22: 139 | E22: =D21+D22 -> 9229 | G22: >100 | H22: =ROUND(D22/$F$6,0) -> 70 | I22: =H21+H22 -> 4615
B23: Grand Total | D23: =SUM(D15:D22) -> 182671 | E23: =D23-D20-D18-D15 -> 13268 | F23: Grand Total | H23: =SUM(H15:H22) -> 91336 | I23: =D23/2 -> 91335.5 | K23: =286+287 -> 573
B25: Assume units with bag leak detection will have a bag leak detection monitor | F25: Otherwise, all units will have an opacity monitor
B27: BLD Monitors | F27: Opacity monitors
B28: Size Category | C28: Total | F28: Size Category | G28: Total
B29: Coal >10 | C29: 80 | F29: < 10 | G29: 0
F30: >= 10 to 100 | G30: 0
F31: >100 | G31: 0 | L31: =H23+H45 -> 94726
F32: Grand Total | G32: 0
B35: New Boiler Data
B37: Sum of Number of Boilers Represented by Model | F37: Sum of Number of Facility Represented by Model | K37: Number of boilers >30
B38: Fuel Category | C38: Size Category | D38: Total | E38: Number Greater than 30 that will have PM costs covered by NSPS | F38: Fuel Category | G38: Size Category | H38: Total
B39: Biomass | C39: < 10 | D39: 140 | F39: Biomass | G39: < 10 | H39: =D39/$F$6 -> 70
C40: >10 to 100 | D40: 11 | E40: 0 | G40: >10 to 100 | H40: =ROUNDDOWN(D40/$F$6,0) -> 5
C41: > 100 | D41: 49 | E41: =D41 -> 49 | G41: > 100 | H41: =ROUND(D41/$F$6,0) -> 25
B42: Coal | C42: < 10 | D42: 155 | F42: Coal | G42: < 10 | H42: =ROUND(D42/$F$6,0) -> 78
B43: Liquid | C43: < 10 | D43: 5937 | F43: Liquid | G43: < 10 | H43: =ROUNDDOWN(D43/$F$6,0) -> 2968
C44: >10 to 100 | D44: 487 | G44: >10 to 100 | H44: =ROUND(D44/$F$6,0) -> 244
B45: Grand Total | D45: =SUM(D39:D44) -> 6779 | F45: Grand Total | H45: =SUM(H39:H44) -> 3390 | I45: =D45/2 -> 3389.5
B47: BLD Monitors | F47: Opacity monitors
B48: Size Category | C48: Total | F48: Size Category | G48: Total
B49: new oil >10 | C49: 45 | F49: new biomass >10 | G49: 60
F50: new oil >10 | G50: =352+90 -> 442 | I50: =G50+C49 -> 487
B52: *All new coal and residual liquid units will have Fabric filter installed and will be assumed to use bag leak detection monitors.
B53: *All new units >100 will install a CO monitor
B54: *All biomass and distillate liquid units will install an opacity monitor since they are not expected to install a FF to meet PM limits.
B56: Agency Labor Rates
B58: Managerial | C58: 62.27
B59: Clerical | C59: 25.01
B60: Technical | C60: 46.21
B63: Per Diem Info
B65: Hotel | C65: 110
B66: Meals | C66: 58
B67: Airfare | C67: 600
B68: Trip Length | C68: 3
B71: Other Data
B73: Percent of Stack Tests Observed | E73: 0.2
B74: Estimated Percent Retesting | E74: 0.1
B75: Estimated Percent Emission Exceedences | E75: 0.1

Sheet Fac-ExistLrgSolid-Yr1
A1: Table 1.A. Annual Respondent Burden and Cost of Recordkeeping and Reporting Requirements for the National Emission Standards
A2: for Hazardous Air Pollutants (NESHAP) for Industrial, Commercial, and Institutional Boilers - Year 1, Existing Large Solid Fuel Units
A3: Burden Item | B3: (A) Respondent Hours per Occurrence (Technical hours) | C3: (B) Emission Test Contractor Hours Per Occurrence | D3: (B) Certified Energy Audit Cost per Occurrence | E3: (C) Stack Testing and Fuel Analysis Cost Per Occurrence | F3: (D) Other Non-Labor Costs Per Occurrence | G3: (E) Number of Occurrences Per Respondent Per Year | H3: (F) Technical Hours per Respondent Per Year (A X E) | I3: (G) Number of Respondents Per Year | J3: (H) Technical Hours per Year @ $98.20 (F X G) | K3: (I) Clerical Hours per Year @ $48.53 (H X 0.1) | L3: (J) Management Hours per Year @ $114.49 (H X .05) | M3: (J) Emission Testing Contractor Hours per Year @ $80 (BxDxF) | N3: (K) Total Labor Costs Per Year | O3: (L) Total Non-Labor Annual Costs | P3: (M) Total Number of Responses per Year (E X G) | Q3: Footnotes | R3: Annualized Capital/start-up O&M
A4: 1. Applications | B4: na
A5: 2. Surveys and Studies | B5: na
A6: 3. Reporting Requirements
A7: A. Read and Understand Rule Requirements | B7: 40 | D7: 0 | E7: 0 | F7: 0 | G7: 1 | H7: =B7*G7 -> 40 | I7: =SUM('Base Data'!$H$16:$H$17,'Base Data'!$H$19) -> 2020 | J7: =H7*I7 -> 80800 | K7: =J7*0.1 -> 8080 | L7: =J7*0.05 -> 4040 | M7: =C7*G7*I7 -> 0 | N7: =(J7*'Base Data'!$C$5)+(K7*'Base Data'!$C$6)+(L7*'Base Data'!$C$7) -> 8789222 | O7: 0 | P7: 0 | Q7: a
A8: B. Required Activities
A9: 1. Conduct Energy Audit
A10: a) Industrial | B10: 20 | D10: 18292 | E10: 0 | F10: 0 | G10: 1 | H10: =B10*G10 -> 20 | I10: 0 | J10: =H10*I10 -> 0 | K10: =J10*0.1 -> 0 | L10: =J10*0.05 -> 0 | M10: =C10*G10*I10 -> 0 | N10: =(J10*'Base Data'!$C$5)+(K10*'Base Data'!$C$6)+(L10*'Base Data'!$C$7) -> 0 | O10: =D10*G10*I10 -> 0 | P10: 0 | Q10: b, c, d, f
A11: b) Commercial | B11: 20 | D11: 854 | E11: 0 | F11: 0 | G11: 1 | H11: =B11*G11 -> 20 | I11: 0 | J11: =H11*I11 -> 0 | K11: =J11*0.1 -> 0 | L11: =J11*0.05 -> 0 | M11: =C11*G11*I11 -> 0 | N11: =(J11*'Base Data'!$C$5)+(K11*'Base Data'!$C$6)+(L11*'Base Data'!$C$7) -> 0 | O11: =D11*G11*I11 -> 0 | P11: 0 | Q11: b, c, d, f
A12: 2. Initial Stack Test and Report (for Hg) | B12: 12 | D12: 0 | E12: 5000 | F12: 0 | G12: 1 | H12: =B12*G12 -> 12 | I12: 0 | J12: =H12*I12 -> 0 | K12: =J12*0.1 -> 0 | L12: =J12*0.05 -> 0 | N12: =(J12*'Base Data'!$C$5)+(K12*'Base Data'!$C$6)+(L12*'Base Data'!$C$7) -> 0 | O12: =E12*G12*I12 -> 0 | P12: 0 | Q12: c, h
A13: 3. Initial Stack Test and Report (for CO) | B13: 12 | D13: 0 | E13: 6000 | F13: 0 | G13: 1 | H13: =B13*G13 -> 12 | I13: 0 | J13: =H13*I13 -> 0 | K13: =J13*0.1 -> 0 | L13: =J13*0.05 -> 0 | N13: =(J13*'Base Data'!$C$5)+(K13*'Base Data'!$C$6)+(L13*'Base Data'!$C$7) -> 0 | O13: 0 | P13: 0 | Q13: c, h
A14: 4. Annual Stack Test and Report (for Hg) | B14: 12 | D14: 0 | E14: 5000 | F14: 0 | G14: 1 | H14: =B14*G14 -> 12 | I14: 0 | J14: =H14*I14 -> 0 | K14: =J14*0.1 -> 0 | L14: =J14*0.05 -> 0 | N14: =(J14*'Base Data'!$C$5)+(K14*'Base Data'!$C$6)+(L14*'Base Data'!$C$7) -> 0 | O14: 0 | P14: 0 | Q14: c, h
A15: 5. Annual Stack Test and Report (for CO) | B15: 12 | D15: 0 | E15: 6000 | F15: 0 | G15: 1 | H15: 12 | I15: 0 | J15: 0 | K15: 0 | L15: 0 | N15: =(J15*'Base Data'!$C$5)+(K15*'Base Data'!$C$6)+(L15*'Base Data'!$C$7) -> 0 | O15: 0 | P15: 0 | Q15: c, h
A16: 6. Initial Fuel Analysis for Mercury Content | B16: 5 | D16: 0 | E16: 200 | F16: 0 | G16: 1 | H16: 5 | I16: 0 | J16: =H16*I16 -> 0 | K16: 0 | L16: =J16*0.05 -> 0 | N16: =(J16*'Base Data'!$C$5)+(K16*'Base Data'!$C$6)+(L16*'Base Data'!$C$7) -> 0 | O16: 0 | P16: 0 | Q16: c,g
A17: 7. Monthly Fuel Analysis for Mercury Content | B17: 5 | D17: 0 | E17: 200 | F17: 0 | G17: 12 | H17: 60 | I17: 0 | J17: 0 | K17: 0 | L17: 0 | N17: =(J17*'Base Data'!$C$5)+(K17*'Base Data'!$C$6)+(L17*'Base Data'!$C$7) -> 0 | O17: 0 | P17: 0 | Q17: c,g
A18: 8. Continuous Parameter Monitoring
A19: Establish Site-specific monitoring plan (all) | B19: 40 | D19: 0 | E19: 0 | F19: 0 | G19: 1 | H19: 40 | I19: 0 | J19: 0 | K19: 0 | L19: 0 | N19: =(J19*'Base Data'!$C$5)+(K19*'Base Data'!$C$6)+(L19*'Base Data'!$C$7) -> 0 | O19: 0 | P19: 0 | Q19: c, h
A20: Bag Leak Detection System Operation (all sources that have fabric filters)
A21: a) initial | B21: 10 | D21: 0 | E21: 0 | F21: 25500 | G21: 1 | H21: =B21*G21 -> 10 | I21: 0 | J21: =H21*I21 -> 0 | K21: 0 | L21: =J21*0.05 -> 0 | N21: =(J21*'Base Data'!$C$5)+(K21*'Base Data'!$C$6)+(L21*'Base Data'!$C$7) -> 0 | O21: 0 | P21: 0 | Q21: c
A22: b) annual | B22: 10 | D22: 0 | E22: 0 | F22: 9700 | G22: 1 | H22: =B22*G22 -> 10 | I22: 0 | J22: =H22*I22 -> 0 | K22: 0 | L22: =J22*0.05 -> 0 | N22: =(J22*'Base Data'!$C$5)+(K22*'Base Data'!$C$6)+(L22*'Base Data'!$C$7) -> 0 | O22: =F22*G22*I22 -> 0 | P22: 0 | Q22: c
A23: 9. Biennial Tune-Up | B23: 12 | D23: 0 | E23: 2875 | F23: 0 | G23: 0.5 | H23: =B23*G23 -> 6 | I23: 0 | J23: =H23*I23 -> 0 | K23: =J23*0.1 -> 0 | L23: =J23*0.05 -> 0 | N23: =(J23*'Base Data'!$C$5)+(K23*'Base Data'!$C$6)+(L23*'Base Data'!$C$7) -> 0 | O23: =F23*G23*I23 -> 0 | P23: 0 | Q23: c, j
A24: C. Create Information | B24: na
A25: D. Gather Information | B25: na
A26: E. Report Preparation
A27: 1) Initial Notification that Source is Subject | B27: 2 | D27: 0 | E27: 0 | F27: 0 | G27: 1 | H27: =B27*G27 -> 2 | I27: =SUM('Base Data'!$H$16:$H$17,'Base Data'!$H$19) -> 2020 | J27: =H27*I27 -> 4040 | K27: =J27*0.1 -> 404 | L27: =J27*0.05 -> 202 | M27: =C27*G27*I27 -> 0 | N27: =(J27*'Base Data'!$C$5)+(K27*'Base Data'!$C$6)+(L27*'Base Data'!$C$7) -> 439461.1 | O27: 0 | P27: =G27*I27 -> 2020 | Q27: a
A28: 2) Notification of Compliance Status | B28: 8 | D28: 0 | E28: 0 | F28: 0 | G28: 1 | H28: =B28*G28 -> 8 | I28: 0 | J28: =H28*I28 -> 0 | K28: =J28*0.1 -> 0 | L28: =J28*0.05 -> 0 | M28: =C28*G28*I28 -> 0 | N28: =(J28*'Base Data'!$C$5)+(K28*'Base Data'!$C$6)+(L28*'Base Data'!$C$7) -> 0 | O28: 0 | P28: =G28*I28 -> 0 | Q28: c
A29: 3) Initial Report on results of Energy Audit | B29: 5 | D29: 0 | E29: 0 | F29: 0 | G29: 1 | H29: =B29*G29 -> 5 | I29: 0 | J29: =H29*I29 -> 0 | K29: =J29*0.1 -> 0 | L29: =J29*0.05 -> 0 | M29: =C29*G29*I29 -> 0 | N29: =(J29*'Base Data'!$C$5)+(K29*'Base Data'!$C$6)+(L29*'Base Data'!$C$7) -> 0 | O29: 0 | P29: =G29*I29 -> 0 | Q29: b, c, d, f
A30: 4) Annual Compliance Report | B30: 30 | C30: 0 | D30: 0 | E30: 0 | F30: 0 | G30: 1 | H30: =B30*G30 -> 30 | I30: 0 | J30: =H30*I30 -> 0 | K30: =J30*0.1 -> 0 | L30: =J30*0.05 -> 0 | M30: =C30*G30*I30 -> 0 | N30: =(J30*'Base Data'!$C$5)+(K30*'Base Data'!$C$6)+(L30*'Base Data'!$C$7) -> 0 | O30: 0 | P30: =G30*I30 -> 0 | Q30: c, h
A31: 5) Bi-annual Compliance Report | B31: 5 | D31: 0 | E31: 0 | F31: 0 | G31: 0.5 | H31: =B31*G31 -> 2.5 | I31: 0 | J31: =H31*I31 -> 0 | K31: =J31*0.1 -> 0 | L31: =J31*0.05 -> 0 | N31: =(J31*'Base Data'!$C$5)+(K31*'Base Data'!$C$6)+(L31*'Base Data'!$C$7) -> 0 | O31: 0 | P31: =G31*I31 -> 0 | Q31: c, j
A32: Reporting Subtotal | J32: =SUM(J7:J30) -> 84840 | K32: =SUM(K7:K30) -> 8484 | L32: 4242 | M32: 0 | N32: 9228683.1 | O32: 0 | P32: 2020 | R32: =SUM(O10,O11,#REF!,O22,O12:O17) -> 
A33: 4. Recordkeeping Requirements
A34: A. Read Instructions | B34: Included in 3a
A35: B. Implement Activities | B35: na
A36: C. Develop Record System | B36: na | Q36: e
A37: D. Record Information
A38: 1) Records of Operating Parameter Values | B38: 20 | D38: 0 | E38: 0 | F38: 0 | G38: 1 | H38: =B38*G38 -> 20 | I38: 0 | J38: =H38*I38 -> 0 | K38: =J38*0.1 -> 0 | L38: =J38*0.05 -> 0 | N38: =(J38*'Base Data'!$C$5)+(K38*'Base Data'!$C$6)+(L38*'Base Data'!$C$7) -> 0 | O38: 0 | P38: =G38*I38 -> 0 | Q38: c, h
A39: 2) Records of Deviations | B39: 15 | C39: 0 | D39: 0 | E39: 0 | F39: 0 | G39: 1 | H39: 15 | I39: 0 | J39: 0 | K39: 0 | L39: 0 | M39: =C39*G39*I39 -> 0 | N39: =(J39*'Base Data'!$C$5)+(K39*'Base Data'!$C$6)+(L39*'Base Data'!$C$7) -> 0 | O39: 0 | P39: 0 | Q39: c, h
A40: 3) Records of Stack Tests | B40: 2 | D40: 0 | E40: 0 | F40: 0 | G40: 1 | H40: 2 | I40: 0 | J40: 0 | K40: 0 | L40: 0 | N40: =(J40*'Base Data'!$C$5)+(K40*'Base Data'!$C$6)+(L40*'Base Data'!$C$7) -> 0 | O40: 0 | P40: 0 | Q40: c, h
A41: 4) Records of Monitoring Device Calibrations | B41: 2 | D41: 0 | E41: 0 | F41: 0 | G41: 1 | H41: 2 | I41: 0 | J41: 0 | K41: 0 | L41: 0 | N41: =(J41*'Base Data'!$C$5)+(K41*'Base Data'!$C$6)+(L41*'Base Data'!$C$7) -> 0 | O41: 0 | P41: 0 | Q41: c, h
A42: 5) Records of All Compliance Reports Submitted | B42: 2 | C42: 0 | D42: 0 | E42: 0 | F42: 0 | G42: 2 | H42: 4 | I42: 0 | J42: 0 | K42: 0 | L42: 0 | M42: =C42*G42*I42 -> 0 | N42: =(J42*'Base Data'!$C$5)+(K42*'Base Data'!$C$6)+(L42*'Base Data'!$C$7) -> 0 | O42: 0 | P42: 0 | Q42: c
A43: 6) Records of Monthly Fuel Use | B43: 0.5 | D43: 0 | E43: 0 | F43: 0 | G43: 12 | H43: 6 | I43: 0 | J43: 0 | K43: 0 | L43: 0 | N43: =(J43*'Base Data'!$C$5)+(K43*'Base Data'!$C$6)+(L43*'Base Data'!$C$7) -> 0 | O43: 0 | P43: 0 | Q43: c, h
A44: E. Personnel Training | B44: na
A45: F. Time for Audits | B45: na
A46: Recordkeeping Subtotal | J46: =SUM(J19:J22,J34:J45) -> 0 | K46: 0 | L46: 0 | M46: 0 | N46: 0 | O46: 0 | P46: 0
A47: Totals | J47: =J32+J46 -> 84840 | K47: =K32+K46 -> 8484 | L47: =L32+L46 -> 4242 | M47: 0 | N47: 9228683.1 | O47: 0 | P47: 2020
A49: a Number of respondents based on number of existing large solid fuel boilers which includes biomass and coal units greater than 10 mmBtu/hr (assumption of 2 units per facility).
A50: b Cost includes taking an inventory of facility equipment including age, operating schedules, square feet of the facility and other details necessary for preparing for the audit pre-screening, attending the energy audit, and reviewing audit report from the audit professional.
A51: c Since existing units have three years after the publication date of the final rule to submit initial notification of compliance status, conduct compliance activities, or meet recordkeeping or reporting requirements, it is assumed that half the affected units will conduct an audit, testing and monitoring plan development in year 2 and half will conduct them in year 3 in order to be in compliance by the third year after promulgation. Initial Notification of Compliance Reports and recordkeeping requirements will not begin until year 3 of this ICR.
A52: d Cost per occurrence for energy audit professionals including an phone screening to discuss the facility prior to a visit, a 2 to 4 hour site visit, and an additional 2-4 hours to prepare a follow-up report on recommendations and findings. Cost depends on whether the source is industrial or commercial. It is assumed that 10% will be industrial and 90% will be commercial sources. These site visits are assumed to be conducted by certified energy professionals.
A53: e Assumes facility must already maintain records on boiler insurance and/or maintenance schedule. No new record system would be required.
A54: f All existing large solid units must conduct energy audits.
A55: g Existing large coal units are expected to determine compliance through stack testing and not fuel analysis
A56: h Only existing large coal units have mercury and CO limits.
A57: i Existing large biomass units are subject to the biennial tune-up

Sheet Fac-ExistLrgSolid-Yr2
A1: Table 1.B. Annual Respondent Burden and Cost of Recordkeeping and Reporting Requirements for the National Emission Standards
A2: for Hazardous Air Pollutants (NESHAP) for Industrial, Commercial, and Institutional Boilers - Year 2, Existing Large Solid Fuel Units
A3: Burden Item | B3: (A) Respondent Hours per Occurrence (Technical hours) | C3: (B) Emission Test Contractor Hours Per Occurrence | D3: (B) Certified Energy Audit Cost per Occurrence | E3: (C) Stack Testing and Fuel Analysis Cost Per Occurrence | F3: (D) Other Non-Labor Costs Per Occurrence | G3: (E) Number of Occurrences Per Respondent Per Year | H3: (F) Technical Hours per Respondent Per Year (A X E) | I3: (G) Number of Respondents Per Year | J3: (H) Technical Hours per Year @ $98.20 (F X G) | K3: (I) Clerical Hours per Year @ $48.53 (H X 0.1) | L3: (J) Management Hours per Year @ $114.49 (H X .05) | M3: (J) Emission Testing Contractor Hours per Year @ $80 (BxDxF) | N3: (K) Total Labor Costs Per Year | O3: (L) Total Non-Labor Annual Costs | P3: (M) Total Number of Responses per Year (E X G) | Q3: Footnotes | R3: Annualized Capital/start-up O&M | S3: Total Capital (Monitor Purchase)
A4: 1. Applications | B4: na
A5: 2. Surveys and Studies | B5: na
A6: 3. Reporting Requirements
A7: A. Read and Understand Rule Requirements | B7: 40 | D7: 0 | E7: 0 | F7: 0 | G7: 1 | H7: =B7*G7 -> 40 | I7: 0 | J7: =H7*I7 -> 0 | K7: =J7*0.1 -> 0 | L7: =J7*0.05 -> 0 | M7: =C7*G7*I7 -> 0 | N7: =(J7*'Base Data'!$C$5)+(K7*'Base Data'!$C$6)+(L7*'Base Data'!$C$7) -> 0 | O7: 0 | P7: 0 | Q7: a
A8: B. Required Activities
A9: 1. Conduct Energy Audit | U9: =I10+I11 -> 2020
A10: a) Industrial | B10: 20 | D10: 18292 | E10: 0 | F10: 0 | G10: 1 | H10: =B10*G10 -> 20 | I10: =ROUND(SUM('Base Data'!$D$16:$D$17,'Base Data'!$D$19)/2,0)*0.1 -> 202 | J10: =H10*I10 -> 4040 | K10: =J10*0.1 -> 404 | L10: =J10*0.05 -> 202 | M10: =C10*G10*I10 -> 0 | N10: =(J10*'Base Data'!$C$5)+(K10*'Base Data'!$C$6)+(L10*'Base Data'!$C$7) -> 439461.1 | O10: =D10*G10*I10 -> 3694984 | P10: 0 | Q10: b, c, d, f | U10: unit | V10: coal and biomass
A11: b) Commercial | B11: 20 | D11: 854 | E11: 0 | F11: 0 | G11: 1 | H11: 20 | I11: =ROUND(SUM('Base Data'!$D$16:$D$17,'Base Data'!$D$19)/2,0)*0.9 -> 1818 | J11: =H11*I11 -> 36360 | K11: =J11*0.1 -> 3636 | L11: 1818 | M11: =C11*G11*I11 -> 0 | N11: =(J11*'Base Data'!$C$5)+(K11*'Base Data'!$C$6)+(L11*'Base Data'!$C$7) -> 3955149.9 | O11: =D11*G11*I11 -> 1552572 | P11: 0 | Q11: b, c, d, f | U11: unit | V11: coal and biomass
A12: 2. Initial Stack Test and Report (for Hg) | B12: 12 | D12: 0 | E12: 5000 | F12: 0 | G12: 1 | H12: 12 | I12: =ROUND(SUM('Base Data'!$D$19)/2,0) -> 287 | J12: 3444 | K12: 344.4 | L12: 172.2 | N12: =(J12*'Base Data'!$C$5)+(K12*'Base Data'!$C$6)+(L12*'Base Data'!$C$7) -> 374629.71 | O12: =E12*G12*I12 -> 1435000 | P12: 0 | Q12: c, h | U12: unit | V12: coal
A13: 3. Initial Stack Test and Report (for CO) | B13: 12 | D13: 0 | E13: 6000 | F13: 0 | G13: 1 | H13: 12 | I13: =ROUND(SUM('Base Data'!$D$19)/2,0) -> 287 | J13: 3444 | K13: 344.4 | L13: 172.2 | N13: =(J13*'Base Data'!$C$5)+(K13*'Base Data'!$C$6)+(L13*'Base Data'!$C$7) -> 374629.71 | O13: 1722000 | P13: 0 | Q13: c, h | U13: unit | V13: coal
A14: 4. Annual Stack Test and Report (for Hg) | B14: 12 | D14: 0 | E14: 5000 | F14: 0 | G14: 1 | H14: 12 | I14: 0 | J14: 0 | K14: 0 | L14: 0 | N14: =(J14*'Base Data'!$C$5)+(K14*'Base Data'!$C$6)+(L14*'Base Data'!$C$7) -> 0 | O14: 0 | P14: 0 | Q14: c, h | V14: coal
A15: 5. Annual Stack Test and Report (for CO) | B15: 12 | D15: 0 | E15: 6000 | F15: 0 | G15: 1 | H15: 12 | I15: 0 | J15: 0 | K15: 0 | L15: 0 | N15: =(J15*'Base Data'!$C$5)+(K15*'Base Data'!$C$6)+(L15*'Base Data'!$C$7) -> 0 | O15: 0 | P15: 0 | Q15: c, h | V15: coal
A16: 6. Initial Fuel Analysis for Mercury Content | B16: 5 | D16: 0 | E16: 200 | F16: 0 | G16: 1 | H16: 5 | I16: 0 | J16: 0 | K16: 0 | L16: 0 | N16: =(J16*'Base Data'!$C$5)+(K16*'Base Data'!$C$6)+(L16*'Base Data'!$C$7) -> 0 | O16: 0 | P16: 0 | Q16: c,g | V16: coal
A17: 7. Monthly Fuel Analysis for Mercury Content | B17: 5 | D17: 0 | E17: 200 | F17: 0 | G17: 12 | H17: 60 | I17: 0 | J17: 0 | K17: 0 | L17: 0 | N17: =(J17*'Base Data'!$C$5)+(K17*'Base Data'!$C$6)+(L17*'Base Data'!$C$7) -> 0 | O17: 0 | P17: 0 | Q17: c,g | V17: coal
A18: 8. Continuous Parameter Monitoring | V18: coal
A19: Establish Site-specific monitoring plan (all) | B19: 40 | D19: 0 | E19: 0 | F19: 0 | G19: 1 | H19: =B19*G19 -> 40 | I19: =ROUND('Base Data'!H19/2,0)+1 -> 145 | J19: =H19*I19 -> 5800 | K19: =J19*0.1 -> 580 | L19: =J19*0.05 -> 290 | N19: =(J19*'Base Data'!$C$5)+(K19*'Base Data'!$C$6)+(L19*'Base Data'!$C$7) -> 630909.5 | O19: 0 | P19: 0 | Q19: c, h | U19: facility | V19: coal
A20: Bag Leak Detection System Operation (all sources that have fabric filters)
A21: a) initial | B21: 10 | D21: 0 | E21: 0 | F21: 25500 | G21: 1 | H21: =B21*G21 -> 10 | I21: =ROUND('Base Data'!$C$29/2,0) -> 40 | J21: =H21*I21 -> 400 | K21: =J21*0.1 -> 40 | L21: =J21*0.05 -> 20 | N21: =(J21*'Base Data'!$C$5)+(K21*'Base Data'!$C$6)+(L21*'Base Data'!$C$7) -> 43511 | O21: =F21*G21*I21 -> 1020000 | P21: 0 | Q21: c | U21: unit | V21: coal
A22: b) annual | B22: 10 | D22: 0 | E22: 0 | F22: 9700 | G22: 1 | H22: =B22*G22 -> 10 | I22: =ROUND('Base Data'!$C$29/2,0) -> 40 | J22: =H22*I22 -> 400 | K22: =J22*0.1 -> 40 | L22: =J22*0.05 -> 20 | N22: =(J22*'Base Data'!$C$5)+(K22*'Base Data'!$C$6)+(L22*'Base Data'!$C$7) -> 43511 | O22: =F22*G22*I22 -> 388000 | P22: 0 | Q22: c | U22: unit | V22: coal
A23: 9. Biennial Tune-Up | B23: 12 | D23: 0 | E23: 2875 | F23: 0 | G23: 0.5 | H23: =B23*G23 -> 6 | I23: =('Base Data'!D16+'Base Data'!D17)/2 -> 1733 | J23: =H23*I23 -> 10398 | K23: =J23*0.1 -> 1039.8 | L23: =J23*0.05 -> 519.9 | N23: =(J23*'Base Data'!$C$5)+(K23*'Base Data'!$C$6)+(L23*'Base Data'!$C$7) -> 1131068.445 | O23: =F23*G23*I23 -> 0 | P23: 0 | Q23: c, j | U23: unit | V23: biomass
A24: C. Create Information | B24: na
A25: D. Gather Information | B25: na
A26: E. Report Preparation
A27: 1) Initial Notification that Source is Subject | B27: 2 | D27: 0 | E27: 0 | F27: 0 | G27: 1 | H27: =B27*G27 -> 2 | I27: 0 | J27: =H27*I27 -> 0 | K27: =J27*0.1 -> 0 | L27: =J27*0.05 -> 0 | M27: =C27*G27*I27 -> 0 | N27: =(J27*'Base Data'!$C$5)+(K27*'Base Data'!$C$6)+(L27*'Base Data'!$C$7) -> 0 | O27: 0 | P27: =G27*I27 -> 0 | Q27: a
A28: 2) Notification of Compliance Status | B28: 8 | D28: 0 | E28: 0 | F28: 0 | G28: 1 | H28: =B28*G28 -> 8 | I28: 0 | J28: =H28*I28 -> 0 | K28: =J28*0.1 -> 0 | L28: =J28*0.05 -> 0 | M28: =C28*G28*I28 -> 0 | N28: =(J28*'Base Data'!$C$5)+(K28*'Base Data'!$C$6)+(L28*'Base Data'!$C$7) -> 0 | O28: 0 | P28: =G28*I28 -> 0 | Q28: c
A29: 3) Initial Report on results of Energy Audit | B29: 5 | D29: 0 | E29: 0 | F29: 0 | G29: 1 | H29: =B29*G29 -> 5 | I29: 0 | J29: =H29*I29 -> 0 | K29: =J29*0.1 -> 0 | L29: =J29*0.05 -> 0 | M29: =C29*G29*I29 -> 0 | N29: =(J29*'Base Data'!$C$5)+(K29*'Base Data'!$C$6)+(L29*'Base Data'!$C$7) -> 0 | O29: 0 | P29: =G29*I29 -> 0 | Q29: b, c, d, f
A30: 4) Annual Compliance Report | B30: 30 | C30: 0 | D30: 0 | E30: 0 | F30: 0 | G30: 1 | H30: =B30*G30 -> 30 | I30: 0 | J30: =H30*I30 -> 0 | K30: =J30*0.1 -> 0 | L30: =J30*0.05 -> 0 | M30: =C30*G30*I30 -> 0 | N30: =(J30*'Base Data'!$C$5)+(K30*'Base Data'!$C$6)+(L30*'Base Data'!$C$7) -> 0 | O30: 0 | P30: =G30*I30 -> 0 | Q30: c, h
A31: 5) Bi-annual Compliance Report | B31: 5 | D31: 0 | E31: 0 | F31: 0 | G31: 0.5 | H31: =B31*G31 -> 2.5 | I31: 0 | J31: =H31*I31 -> 0 | K31: =J31*0.1 -> 0 | L31: =J31*0.05 -> 0 | N31: =(J31*'Base Data'!$C$5)+(K31*'Base Data'!$C$6)+(L31*'Base Data'!$C$7) -> 0 | O31: 0 | P31: =G31*I31 -> 0 | Q31: c, j
A32: Reporting Subtotal | J32: =SUM(J7:J31)-J21 -> 63886 | K32: =SUM(K7:K31)-K21 -> 6388.6 | L32: 3194.3 | M32: 0 | N32: 6949359.365 | O32: =SUM(O7:O31)-O21 -> 8792556 | P32: =SUM(P27:P31) -> 0 | R32: =SUM(O10,O11,#REF!,O22,O12:O17) ->  | S32: =SUM(#REF!,O21) -> 
A33: 4. Recordkeeping Requirements
A34: A. Read Instructions | B34: Included in 3a
A35: B. Implement Activities | B35: na
A36: C. Develop Record System | B36: na | Q36: e
A37: D. Record Information
A38: 1) Records of Operating Parameter Values | B38: 20 | D38: 0 | E38: 0 | F38: 0 | G38: 1 | H38: =B38*G38 -> 20 | I38: 0 | J38: =H38*I38 -> 0 | K38: =J38*0.1 -> 0 | L38: =J38*0.05 -> 0 | N38: =(J38*'Base Data'!$C$5)+(K38*'Base Data'!$C$6)+(L38*'Base Data'!$C$7) -> 0 | O38: 0 | P38: =G38*I38 -> 0 | Q38: c, h
A39: 2) Records of Deviations | B39: 15 | C39: 0 | D39: 0 | E39: 0 | F39: 0 | G39: 1 | H39: 15 | I39: 0 | J39: 0 | K39: 0 | L39: 0 | M39: =C39*G39*I39 -> 0 | N39: =(J39*'Base Data'!$C$5)+(K39*'Base Data'!$C$6)+(L39*'Base Data'!$C$7) -> 0 | O39: 0 | P39: 0 | Q39: c, h
A40: 3) Records of Stack Tests | B40: 2 | D40: 0 | E40: 0 | F40: 0 | G40: 1 | H40: 2 | I40: 0 | J40: 0 | K40: 0 | L40: 0 | N40: =(J40*'Base Data'!$C$5)+(K40*'Base Data'!$C$6)+(L40*'Base Data'!$C$7) -> 0 | O40: 0 | P40: 0 | Q40: c, h
A41: 4) Records of Monitoring Device Calibrations | B41: 2 | D41: 0 | E41: 0 | F41: 0 | G41: 1 | H41: 2 | I41: 0 | J41: 0 | K41: 0 | L41: 0 | N41: =(J41*'Base Data'!$C$5)+(K41*'Base Data'!$C$6)+(L41*'Base Data'!$C$7) -> 0 | O41: 0 | P41: 0 | Q41: c, h
A42: 5) Records of All Compliance Reports Submitted | B42: 2 | C42: 0 | D42: 0 | E42: 0 | F42: 0 | G42: 2 | H42: 4 | I42: 0 | J42: 0 | K42: 0 | L42: 0 | M42: =C42*G42*I42 -> 0 | N42: =(J42*'Base Data'!$C$5)+(K42*'Base Data'!$C$6)+(L42*'Base Data'!$C$7) -> 0 | O42: 0 | P42: 0 | Q42: c
A43: 6) Records of Monthly Fuel Use | B43: 0.5 | D43: 0 | E43: 0 | F43: 0 | G43: 12 | H43: 6 | I43: 0 | J43: 0 | K43: 0 | L43: 0 | N43: =(J43*'Base Data'!$C$5)+(K43*'Base Data'!$C$6)+(L43*'Base Data'!$C$7) -> 0 | O43: 0 | P43: 0 | Q43: c, h
A44: E. Personnel Training | B44: na
A45: F. Time for Audits | B45: na
A46: Recordkeeping Subtotal | J46: =SUM(J34:J45) -> 0 | K46: =SUM(K34:K45) -> 0 | L46: 0 | M46: 0 | N46: 0 | O46: 0 | P46: 0
A47: Totals | J47: =J32+J46 -> 63886 | K47: =K32+K46 -> 6388.6 | L47: 3194.3 | M47: 0 | N47: 6949359.365 | O47: =O32+O46 -> 8792556 | P47: 0
A49: a The burden on existing sources to read and understand rule requirements, and submit an initial notification were assumed to all occur in year 1.
A50: b Cost includes taking an inventory of facility equipment including age, operating schedules, square feet of the facility and other details necessary for preparing for the audit pre-screening, attending the energy audit, and reviewing audit report from the audit professional.
A51: c Since existing units have three years after the publication date of the final rule to submit initial notification of compliance status, conduct compliance activities, or meet recordkeeping or reporting requirements, it is assumed that half the affected units will conduct an audit, testing and monitoring plan development in year 2 and half will conduct them in year 3 in order to be in compliance by the third year after promulgation. Initial Notification of Compliance Reports and recordkeeping requirements will not begin until year 3 of this ICR.
A52: d Cost per occurrence for energy audit professionals including an phone screening to discuss the facility prior to a visit, a 2 to 4 hour site visit, and an additional 2-4 hours to prepare a follow-up report on recommendations and findings. Cost depends on whether the source is industrial or commercial. It is assumed that 10% will be industrial and 90% will be commercial sources. These site visits are assumed to be conducted by certified energy professionals.
A53: e Assumes facility must already maintain records on boiler insurance and/or maintenance schedule. No new record system would be required.
A54: f All existing large solid units must conduct energy audits.
A55: g Existing large coal units are expected to determine compliance through stack testing and not fuel analysis
A56: h Only existing large coal units have mercury and CO limits.
A57: i Existing large biomass units are subject to the biennial tune-up

Sheet Fac-ExistLrgSolid-Yr3
A1: Table 1.C. Annual Respondent Burden and Cost of Recordkeeping and Reporting Requirements for the National Emission Standards
A2: for Hazardous Air Pollutants (NESHAP) for Industrial, Commercial, and Institutional Boilers - Year 3, Existing Large Solid Fuel Units
A3: Burden Item | B3: (A) Respondent Hours per Occurrence (Technical hours) | C3: (B) Emission Test Contractor Hours Per Occurrence | D3: (B) Certified Energy Audit Cost per Occurrence | E3: (C) Stack Testing and Fuel Analysis Cost Per Occurrence | F3: (D) Other Non-Labor Costs Per Occurrence | G3: (E) Number of Occurrences Per Respondent Per Year | H3: (F) Technical Hours per Respondent Per Year (A X E) | I3: (G) Number of Respondents Per Year | J3: (H) Technical Hours per Year @ $98.20 (F X G) | K3: (I) Clerical Hours per Year @ $48.53 (H X 0.1) | L3: (J) Management Hours per Year @ $114.49 (H X .05) | M3: (J) Emission Testing Contractor Hours per Year @ $80 (BxDxF) | N3: (K) Total Labor Costs Per Year | O3: (L) Total Non-Labor Annual Costs | P3: (M) Total Number of Responses per Year (E X G) | Q3: Footnotes | R3: Annualized Capital/start-up O&M | S3: Total Capital (Monitor Purchase)
A4: 1. Applications | B4: na
A5: 2. Surveys and Studies | B5: na
A6: 3. Reporting Requirements
A7: A. Read and Understand Rule Requirements | B7: 40 | D7: 0 | E7: 0 | F7: 0 | G7: 1 | H7: =B7*G7 -> 40 | I7: 0 | J7: =H7*I7 -> 0 | K7: =J7*0.1 -> 0 | L7: =J7*0.05 -> 0 | M7: =C7*G7*I7 -> 0 | N7: =(J7*'Base Data'!$C$5)+(K7*'Base Data'!$C$6)+(L7*'Base Data'!$C$7) -> 0 | O7: 0 | P7: 0 | Q7: a
A8: B. Required Activities
A9: 1. Conduct Energy Audit
A10: a) Industrial | B10: 20 | D10: 18292 | E10: 0 | F10: 0 | G10: 1 | H10: =B10*G10 -> 20 | I10: =ROUND(SUM('Base Data'!$D$16:$D$17,'Base Data'!$D$19)/2,0)*0.1 -> 202 | J10: =H10*I10 -> 4040 | K10: =J10*0.1 -> 404 | L10: =J10*0.05 -> 202 | M10: =C10*G10*I10 -> 0 | N10: =(J10*'Base Data'!$C$5)+(K10*'Base Data'!$C$6)+(L10*'Base Data'!$C$7) -> 439461.1 | O10: =D10*G10*I10 -> 3694984 | P10: 0 | Q10: b, c, d, f
A11: b) Commercial | B11: 20 | D11: 854 | E11: 0 | F11: 0 | G11: 1 | H11: 20 | I11: =ROUND(SUM('Base Data'!$D$16:$D$17,'Base Data'!$D$19)/2,0)*0.9-1 -> 1817 | J11: 36340 | K11: 3634 | L11: 1817 | M11: =C11*G11*I11 -> 0 | N11: =(J11*'Base Data'!$C$5)+(K11*'Base Data'!$C$6)+(L11*'Base Data'!$C$7) -> 3952974.35 | O11: =D11*G11*I11 -> 1551718 | P11: 0 | Q11: b, c, d, f
A12: 2. Initial Stack Test and Report (for Hg) | B12: 12 | D12: 0 | E12: 5000 | F12: 0 | G12: 1 | H12: 12 | I12: =ROUNDDOWN(SUM('Base Data'!$D$19)/2,0) -> 286 | J12: 3432 | K12: 343.2 | L12: 171.6 | N12: =(J12*'Base Data'!$C$5)+(K12*'Base Data'!$C$6)+(L12*'Base Data'!$C$7) -> 373324.38 | O12: =E12*G12*I12 -> 1430000 | P12: 0 | Q12: c, h
A13: 3. Initial Stack Test and Report (for CO) | B13: 12 | D13: 0 | E13: 6000 | F13: 0 | G13: 1 | H13: 12 | I13: =ROUNDDOWN(SUM('Base Data'!$D$19)/2,0) -> 286 | J13: 3432 | K13: 343.2 | L13: 171.6 | N13: =(J13*'Base Data'!$C$5)+(K13*'Base Data'!$C$6)+(L13*'Base Data'!$C$7) -> 373324.38 | O13: 1716000 | P13: 0 | Q13: c, h
A14: 4. Annual Stack Test and Report (for Hg) | B14: 12 | D14: 0 | E14: 5000 | F14: 0 | G14: 1 | H14: 12 | I14: ='Fac-ExistLrgSolid-Yr2'!I12 -> 287 | J14: 3444 | K14: 344.4 | L14: 172.2 | N14: =(J14*'Base Data'!$C$5)+(K14*'Base Data'!$C$6)+(L14*'Base Data'!$C$7) -> 374629.71 | O14: 1435000 | P14: 0 | Q14: c, h
A15: 5. Annual Stack Test and Report (for CO) | B15: 12 | D15: 0 | E15: 6000 | F15: 0 | G15: 1 | H15: 12 | I15: ='Fac-ExistLrgSolid-Yr2'!I13 -> 287 | J15: 3444 | K15: 344.4 | L15: 172.2 | N15: =(J15*'Base Data'!$C$5)+(K15*'Base Data'!$C$6)+(L15*'Base Data'!$C$7) -> 374629.71 | O15: 1722000 | P15: 0 | Q15: c, h
A16: 6. Initial Fuel Analysis for Mercury Content | B16: 5 | D16: 0 | E16: 200 | F16: 0 | G16: 1 | H16: 5 | I16: 0 | J16: 0 | K16: 0 | L16: 0 | N16: =(J16*'Base Data'!$C$5)+(K16*'Base Data'!$C$6)+(L16*'Base Data'!$C$7) -> 0 | O16: 0 | P16: 0 | Q16: c,g
A17: 7. Monthly Fuel Analysis for Mercury Content | B17: 5 | D17: 0 | E17: 200 | F17: 0 | G17: 12 | H17: 60 | I17: ='Fac-ExistLrgSolid-Yr2'!I16 -> 0 | J17: 0 | K17: 0 | L17: 0 | N17: =(J17*'Base Data'!$C$5)+(K17*'Base Data'!$C$6)+(L17*'Base Data'!$C$7) -> 0 | O17: 0 | P17: 0 | Q17: c,g
A18: 8. Continuous Parameter Monitoring
A19: Establish Site-specific monitoring plan (all) | B19: 40 | D19: 0 | F19: 0 | G19: 1 | H19: =B19*G19 -> 40 | I19: =ROUND('Base Data'!H19/2,0) -> 144 | J19: =H19*I19 -> 5760 | K19: =J19*0.1 -> 576 | L19: =J19*0.05 -> 288 | N19: =(J19*'Base Data'!$C$5)+(K19*'Base Data'!$C$6)+(L19*'Base Data'!$C$7) -> 626558.4 | O19: 0 | P19: 0 | Q19: c, h
A20: Bag Leak Detection System Operation (all sources that have fabric filters)
A21: a) initial | B21: 10 | D21: 0 | E21: 0 | F21: 25500 | G21: 1 | H21: =B21*G21 -> 10 | I21: =ROUND('Base Data'!$C$29/2,0) -> 40 | J21: =H21*I21 -> 400 | K21: =J21*0.1 -> 40 | L21: =J21*0.05 -> 20 | N21: =(J21*'Base Data'!$C$5)+(K21*'Base Data'!$C$6)+(L21*'Base Data'!$C$7) -> 43511 | O21: =F21*G21*I21 -> 1020000 | P21: 0 | Q21: c
A22: b) annual | B22: 10 | D22: 0 | E22: 0 | F22: 9700 | G22: 1 | H22: =B22*G22 -> 10 | I22: =ROUND('Base Data'!$C$29/2,0) -> 40 | J22: =H22*I22 -> 400 | K22: =J22*0.1 -> 40 | L22: =J22*0.05 -> 20 | N22: =(J22*'Base Data'!$C$5)+(K22*'Base Data'!$C$6)+(L22*'Base Data'!$C$7) -> 43511 | O22: =F22*G22*I22 -> 388000 | P22: 0 | Q22: c
A23: 9. Biennial Tune-Up | B23: 12 | D23: 0 | E23: 2875 | F23: 0 | G23: 0.5 | H23: =B23*G23 -> 6 | I23: =('Base Data'!D16+'Base Data'!D17)/2 -> 1733 | J23: =H23*I23 -> 10398 | K23: =J23*0.1 -> 1039.8 | L23: =J23*0.05 -> 519.9 | N23: =(J23*'Base Data'!$C$5)+(K23*'Base Data'!$C$6)+(L23*'Base Data'!$C$7) -> 1131068.445 | O23: =F23*G23*I23 -> 0 | P23: 0 | Q23: c, j
A24: C. Create Information | B24: na
A25: D. Gather Information | B25: na
A26: E. Report Preparation
A27: 1) Initial Notification that Source is Subject | B27: 2 | D27: 0 | E27: 0 | F27: 0 | G27: 1 | H27: =B27*G27 -> 2 | I27: 0 | J27: =H27*I27 -> 0 | K27: =J27*0.1 -> 0 | L27: =J27*0.05 -> 0 | M27: =C27*G27*I27 -> 0 | N27: =(J27*'Base Data'!$C$5)+(K27*'Base Data'!$C$6)+(L27*'Base Data'!$C$7) -> 0 | O27: 0 | P27: =G27*I27 -> 0 | Q27: a
A28: 2) Notification of Compliance Status | B28: 8 | D28: 0 | E28: 0 | F28: 0 | G28: 1 | H28: =B28*G28 -> 8 | I28: =ROUND(SUM('Base Data'!$H$16:$H$17,'Base Data'!$H$19),0) -> 2020 | J28: =H28*I28 -> 16160 | K28: =J28*0.1 -> 1616 | L28: =J28*0.05 -> 808 | M28: =C28*G28*I28 -> 0 | N28: =(J28*'Base Data'!$C$5)+(K28*'Base Data'!$C$6)+(L28*'Base Data'!$C$7) -> 1757844.4 | O28: 0 | P28: =G28*I28 -> 2020 | Q28: c | U28: facility | V28: both
A29: 3) Initial Report on results of Energy Audit | B29: 5 | D29: 0 | E29: 0 | F29: 0 | G29: 1 | H29: =B29*G29 -> 5 | I29: =ROUND(SUM('Base Data'!$H$16:$H$17,'Base Data'!$H$19),0) -> 2020 | J29: =H29*I29 -> 10100 | K29: =J29*0.1 -> 1010 | L29: =J29*0.05 -> 505 | M29: =C29*G29*I29 -> 0 | N29: =(J29*'Base Data'!$C$5)+(K29*'Base Data'!$C$6)+(L29*'Base Data'!$C$7) -> 1098652.75 | O29: 0 | P29: =G29*I29 -> 2020 | Q29: b, c, d, f | U29: facility | V29: both
A30: 4) Annual Compliance Report | B30: 30 | C30: 0 | D30: 0 | E30: 0 | F30: 0 | G30: 1 | H30: =B30*G30 -> 30 | I30: ='Base Data'!H19 -> 287 | J30: =H30*I30 -> 8610 | K30: =J30*0.1 -> 861 | L30: =J30*0.05 -> 430.5 | M30: =C30*G30*I30 -> 0 | N30: =(J30*'Base Data'!$C$5)+(K30*'Base Data'!$C$6)+(L30*'Base Data'!$C$7) -> 936574.275 | O30: 0 | P30: =G30*I30 -> 287 | Q30: c, h | U30: facility | V30: coal
A31: 5) Bi-annual Compliance Report | B31: 5 | D31: 0 | E31: 0 | F31: 0 | G31: 0.5 | H31: =B31*G31 -> 2.5 | I31: ='Base Data'!H16+'Base Data'!H17 -> 1733 | J31: =H31*I31 -> 4332.5 | K31: =J31*0.1 -> 433.25 | L31: =J31*0.05 -> 216.625 | N31: =(J31*'Base Data'!$C$5)+(K31*'Base Data'!$C$6)+(L31*'Base Data'!$C$7) -> 471278.5187 | O31: 0 | P31: =G31*I31 -> 866.5 | Q31: c, j | U31: facility | V31: biomass
A32: Reporting Subtotal | J32: =SUM(J7:J30)-J21 -> 105560 | K32: =SUM(K7:K30)-K21 -> 10556 | L32: 5278 | M32: 0 | N32: 11482552.9 | O32: =SUM(O7:O30)-O21 -> 11937702 | P32: =SUM(P7:P30) -> 4327 | R32: =SUM(O10,O11,#REF!,O22,O12:O17) ->  | S32: =SUM(#REF!,O21) -> 
A33: 4. Recordkeeping Requirements
A34: A. Read Instructions | B34: Included in 3a
A35: B. Implement Activities | B35: na
A36: C. Develop Record System | B36: na | Q36: e
A37: D. Record Information
A38: 1) Records of Operating Parameter Values | B38: 20 | D38: 0 | E38: 0 | F38: 0 | G38: 1 | H38: =B38*G38 -> 20 | I38: ='Base Data'!$D$19 -> 573 | J38: =H38*I38 -> 11460 | K38: =J38*0.1 -> 1146 | L38: =J38*0.05 -> 573 | N38: =(J38*'Base Data'!$C$5)+(K38*'Base Data'!$C$6)+(L38*'Base Data'!$C$7) -> 1246590.15 | O38: 0 | P38: 0 | Q38: c, h | U38: unit | V38: coal
A39: 2) Records of Deviations | B39: 15 | C39: 0 | D39: 0 | E39: 0 | F39: 0 | G39: 1 | H39: 15 | I39: ='Base Data'!$D$19 -> 573 | J39: 8595 | K39: 859.5 | L39: 429.75 | M39: =C39*G39*I39 -> 0 | N39: =(J39*'Base Data'!$C$5)+(K39*'Base Data'!$C$6)+(L39*'Base Data'!$C$7) -> 934942.6125 | O39: 0 | P39: 0 | Q39: c, h | U39: unit | V39: coal
A40: 3) Records of Stack Tests | B40: 2 | D40: 0 | E40: 0 | F40: 0 | G40: 1 | H40: 2 | I40: ='Base Data'!$D$19 -> 573 | J40: 1146 | K40: 114.6 | L40: 57.3 | N40: =(J40*'Base Data'!$C$5)+(K40*'Base Data'!$C$6)+(L40*'Base Data'!$C$7) -> 124659.015 | O40: 0 | P40: 0 | Q40: c, h | U40: unit | V40: coal
A41: 4) Records of Monitoring Device Calibrations | B41: 2 | D41: 0 | E41: 0 | F41: 0 | G41: 1 | H41: 2 | I41: ='Base Data'!$D$19 -> 573 | J41: 1146 | K41: 114.6 | L41: 57.3 | N41: =(J41*'Base Data'!$C$5)+(K41*'Base Data'!$C$6)+(L41*'Base Data'!$C$7) -> 124659.015 | O41: 0 | P41: 0 | Q41: c, h | U41: unit | V41: coal
A42: 5) Records of All Compliance Reports Submitted | B42: 2 | C42: 0 | D42: 0 | E42: 0 | F42: 0 | G42: 2 | H42: 4 | I42: ='Base Data'!D16+'Base Data'!D17+'Base Data'!D19 -> 4039 | J42: 16156 | K42: 1615.6 | L42: 807.8 | M42: =C42*G42*I42 -> 0 | N42: =(J42*'Base Data'!$C$5)+(K42*'Base Data'!$C$6)+(L42*'Base Data'!$C$7) -> 1757409.29 | O42: 0 | P42: 0 | Q42: c | U42: unit | V42: both
A43: 6) Records of Monthly Fuel Use | B43: 0.5 | D43: 0 | E43: 0 | F43: 0 | G43: 12 | H43: 6 | I43: ='Base Data'!$D$19 -> 573 | J43: 3438 | K43: 343.8 | L43: 171.9 | N43: =(J43*'Base Data'!$C$5)+(K43*'Base Data'!$C$6)+(L43*'Base Data'!$C$7) -> 373977.045 | O43: 0 | P43: 0 | Q43: c, h | U43: unit | V43: coal
A44: E. Personnel Training | B44: na
A45: F. Time for Audits | B45: na
A46: Recordkeeping Subtotal | J46: =SUM(J34:J45) -> 41941 | K46: =SUM(K34:K45) -> 4194.1 | L46: 2097.05 | M46: 0 | N46: 4562237.128 | O46: 0 | P46: 0
A47: Totals | J47: =J32+J46 -> 147501 | K47: =K32+K46 -> 14750.1 | L47: =L32+L46 -> 7375.05 | M47: 0 | N47: =N32+N46 -> 16044790.03 | O47: 11937702 | P47: 4327
A49: a The burden on existing sources to read and understand rule requirements, and submit an initial notification were assumed to all occur in year 1.
A50: b Cost includes taking an inventory of facility equipment including age, operating schedules, square feet of the facility and other details necessary for preparing for the audit pre-screening, attending the energy audit, and reviewing audit report from the audit professional.
A51: c Since existing units have three years after the publication date of the final rule to submit initial notification of compliance status, conduct compliance activities, or meet recordkeeping or reporting requirements, it is assumed that half the affected units will conduct an audit, testing and monitoring plan development in year 2 and half will conduct them in year 3 in order to be in compliance by the third year after promulgation. Initial Notification of Compliance Reports and recordkeeping requirements will not begin until year 3 of this ICR.
A52: d Cost per occurrence for energy audit professionals including an phone screening to discuss the facility prior to a visit, a 2 to 4 hour site visit, and an additional 2-4 hours to prepare a follow-up report on recommendations and findings. Cost depends on whether the source is industrial or commercial. It is assumed that 10% will be industrial and 90% will be commercial sources. These site visits are assumed to be conducted by certified energy professionals.
A53: e Assumes facility must already maintain records on boiler insurance and/or maintenance schedule. No new record system would be required.
A54: f All existing large solid units must conduct energy audits.
A55: g Existing large coal units are expected to determine compliance through stack testing and not fuel analysis
A56: h Only existing large coal units have mercury and CO limits.
A57: i Existing large biomass units are subject to the biennial tune-up

Sheet Fac-ExistLrgLiquid-Yr1
A1: Table 2.A. Annual Respondent Burden and Cost of Recordkeeping and Reporting Requirements for the National Emission Standards
A2: for Hazardous Air Pollutants (NESHAP) for Industrial, Commercial, and Institutional Boilers - Year 1, Existing Large Liquid Fuel Units
A3: Burden Item | B3: (A) Respondent Hours per Occurrence (Technical hours) | C3: (B) Certified Energy Audit Cost per Occurrence | D3: (C) Tune-Up Cost per Occurrence | E3: (D) Other Non-Labor Costs Per Occurrence | F3: (E) Number of Occurrences Per Respondent Per Year | G3: (F) Technical Hours per Respondent Per Year (A X E) | H3: (G) Number of Respondents Per Year | I3: (H) Technical Hours per Year @ $98.20 (F X G) | J3: (I) Clerical Hours per Year @ $48.53 (H X 0.1) | K3: (J) Management Hours per Year @ $114.49 (H X .05) | L3: (K) Total Labor Costs Per Year | M3: (L) Total Non-Labor Annual Costs | N3: (M) Total Number of Responses per Year (E X G) | O3: Footnotes
A4: 1. Applications | B4: na
A5: 2. Surveys and Studies | B5: na
A6: 3. Reporting Requirements
A7: A. Read and Understand Rule Requirements | B7: 40 | C7: 0 | D7: 0 | E7: 0 | F7: 1 | G7: =B7*F7 -> 40 | H7: ='Base Data'!$H$21+'Base Data'!$H$22 -> 4615 | I7: =G7*H7 -> 184600 | J7: =I7*0.1 -> 18460 | K7: =I7*0.05 -> 9230 | L7: =(I7*'Base Data'!$C$5)+(J7*'Base Data'!$C$6)+(K7*'Base Data'!$C$7) -> 20080326.5 | M7: 0 | N7: 0 | O7: a
A8: B. Required Activities
A9: 1. Conduct Energy Audit
A10: a) Industrial | B10: 20 | C10: 18292 | D10: 0 | E10: 0 | F10: 1 | G10: =B10*F10 -> 20 | H10: 0 | I10: =G10*H10 -> 0 | J10: =I10*0.1 -> 0 | K10: =I10*0.05 -> 0 | L10: =(I10*'Base Data'!$C$5)+(J10*'Base Data'!$C$6)+(K10*'Base Data'!$C$7) -> 0 | M10: =C10*F10*H10 -> 0 | N10: 0 | O10: b, c, d
A11: b) Commercial | B11: 20 | C11: 854 | D11: 0 | E11: 0 | F11: 1 | G11: =B11*F11 -> 20 | H11: 0 | I11: =G11*H11 -> 0 | J11: =I11*0.1 -> 0 | K11: =I11*0.05 -> 0 | L11: =(I11*'Base Data'!$C$5)+(J11*'Base Data'!$C$6)+(K11*'Base Data'!$C$7) -> 0 | M11: =C11*F11*H11 -> 0 | N11: 0 | O11: b, c, d
A12: 2. Biennial Tune-Up | B12: 12 | C12: 0 | D12: 2875 | E12: 0 | F12: 0.5 | G12: =B12*F12 -> 6 | H12: 0 | I12: =G12*H12 -> 0 | J12: =I12*0.1 -> 0 | K12: =I12*0.05 -> 0 | L12: =(I12*'Base Data'!$C$5)+(J12*'Base Data'!$C$6)+(K12*'Base Data'!$C$7) -> 0 | M12: =D12*F12*H12 -> 0 | N12: 0 | O12: c
A13: C. Create Information | B13: na
A14: D. Gather Information | B14: na
A15: E. Report Preparation
A16: 1) Initial Notification that Source is Subject | B16: 2 | C16: 0 | D16: 0 | E16: 0 | F16: 1 | G16: =B16*F16 -> 2 | H16: ='Base Data'!$H$21+'Base Data'!$H$22 -> 4615 | I16: =G16*H16 -> 9230 | J16: =I16*0.1 -> 923 | K16: =I16*0.05 -> 461.5 | L16: =(I16*'Base Data'!$C$5)+(J16*'Base Data'!$C$6)+(K16*'Base Data'!$C$7) -> 1004016.325 | M16: 0 | N16: =F16*H16 -> 4615 | O16: a
A17: 2) Notification of Compliance Status | B17: 8 | C17: 0 | D17: 0 | E17: 0 | F17: 1 | G17: =B17*F17 -> 8 | H17: 0 | I17: =G17*H17 -> 0 | J17: =I17*0.1 -> 0 | K17: =I17*0.05 -> 0 | L17: =(I17*'Base Data'!$C$5)+(J17*'Base Data'!$C$6)+(K17*'Base Data'!$C$7) -> 0 | M17: 0 | N17: =F17*H17 -> 0 | O17: c
A18: 3) Biennial Compliance Report | B18: 5 | C18: 0 | D18: 0 | E18: 0 | F18: 0.5 | G18: =B18*F18 -> 2.5 | H18: 0 | I18: =G18*H18 -> 0 | J18: =I18*0.1 -> 0 | K18: =I18*0.05 -> 0 | L18: =(I18*'Base Data'!$C$5)+(J18*'Base Data'!$C$6)+(K18*'Base Data'!$C$7) -> 0 | M18: 0 | N18: =F18*H18 -> 0 | O18: c
A19: Reporting Subtotal | I19: =SUM(I7:I18) -> 193830 | J19: =SUM(J7:J18) -> 19383 | K19: 9691.5 | L19: 21084342.82 | M19: 0 | N19: =SUM(N15:N18) -> 4615
A20: 4. Recordkeeping Requirements
A21: A. Read Instructions | B21: Included in 3a
A22: B. Implement Activities | B22: na
A23: C. Develop Record System | B23: na | O23: e
A24: D. Record Information
A25: 1) Records of All Compliance Reports Submitted | B25: 2 | C25: 0 | D25: 0 | E25: 0 | F25: 1 | G25: =B25*F25 -> 2 | H25: 0 | I25: =G25*H25 -> 0 | J25: =I25*0.1 -> 0 | K25: =I25*0.05 -> 0 | L25: =(I25*'Base Data'!$C$5)+(J25*'Base Data'!$C$6)+(K25*'Base Data'!$C$7) -> 0 | M25: 0 | N25: =F25*H25 -> 0 | O25: c
A26: 2) Records of Biennial Tune-Up | B26: 0.5 | C26: 0 | D26: 0 | E26: 0 | F26: 0.5 | G26: =B26*F26 -> 0.25 | H26: 0 | I26: =G26*H26 -> 0 | J26: =I26*0.1 -> 0 | K26: =I26*0.05 -> 0 | L26: =(I26*'Base Data'!$C$5)+(J26*'Base Data'!$C$6)+(K26*'Base Data'!$C$7) -> 0 | M26: 0 | N26: =F26*H26 -> 0 | O26: c
A27: E. Personnel Training | B27: na
A28: F. Time for Audits | B28: na
A29: Recordkeeping Subtotal | I29: =SUM(I25:I26) -> 0 | J29: =SUM(J25:J26) -> 0 | K29: 0 | L29: 0 | M29: 0 | N29: =SUM(N25:N26) -> 0
A30: Totals | I30: =I19+I29 -> 193830 | J30: =J19+J29 -> 19383 | K30: 9691.5 | L30: 21084342.82 | M30: 0 | N30: 4615
A32: a Number of respondents based on number of existing large solid fuel boilers which includes biomass and coal units greater than 10 mmBtu/hr (assumption of 2 units per facility).
A33: b Cost includes taking an inventory of facility equipment including age, operating schedules, square feet of the facility and other details necessary for preparing for the audit pre-screening, attending the energy audit, and reviewing audit report from the audit professional.
A34: c Since existing units have three years after the publication date of the final rule to submit initial notification of compliance status, conduct compliance activities, or meet recordkeeping or reporting requirements, it is assumed that half the affected units will conduct an audit, testing and monitoring plan development in year 2 and half will conduct them in year 3 in order to be in compliance by the third year after promulgation. Initial Notification of Compliance Reports and recordkeeping requirements will not begin until year 3 of this ICR.
A35: d Cost per occurrence for energy audit professionals including an phone screening to discuss the facility prior to a visit, a 2 to 4 hour site visit, and an additional 2-4 hours to prepare a follow-up report on recommendations and findings. Cost depends on whether the source is industrial or commercial. It is assumed that 10% will be industrial and 90% will be commercial sources. These site visits are assumed to be conducted by certified energy professionals.
A36: e Assumes facility must already maintain records on boiler insurance and/or maintenance schedule. No new record system would be required.

Sheet Fac-ExistLrgLiquid-Yr2
A1: Table 2.B. Annual Respondent Burden and Cost of Recordkeeping and Reporting Requirements for the National Emission Standards
A2: for Hazardous Air Pollutants (NESHAP) for Industrial, Commercial, and Institutional Boilers - Year 2, Existing Large Liquid Fuel Units
A3: Burden Item | B3: (A) Respondent Hours per Occurrence (Technical hours) | C3: (B) Certified Energy Audit Cost per Occurrence | D3: (C) Tune-Up Cost per Occurrence | E3: (D) Other Non-Labor Costs Per Occurrence | F3: (E) Number of Occurrences Per Respondent Per Year | G3: (F) Technical Hours per Respondent Per Year (A X E) | H3: (G) Number of Respondents Per Year | I3: (H) Technical Hours per Year @ $98.20 (F X G) | J3: (I) Clerical Hours per Year @ $48.53 (H X 0.1) | K3: (J) Management Hours per Year @ $114.49 (H X .05) | L3: (K) Total Labor Costs Per Year | M3: (L) Total Non-Labor Annual Costs | N3: (M) Total Number of Responses per Year (E X G) | O3: Footnotes
A4: 1. Applications | B4: na
A5: 2. Surveys and Studies | B5: na
A6: 3. Reporting Requirements
A7: A. Read and Understand Rule Requirements | B7: 40 | C7: 0 | D7: 0 | E7: 0 | F7: 1 | G7: =B7*F7 -> 40 | H7: 0 | I7: =G7*H7 -> 0 | J7: =I7*0.1 -> 0 | K7: =I7*0.05 -> 0 | L7: =(I7*'Base Data'!$C$5)+(J7*'Base Data'!$C$6)+(K7*'Base Data'!$C$7) -> 0 | M7: 0 | N7: 0 | O7: a
A8: B. Required Activities
A9: 1. Conduct Energy Audit
A10: a) Industrial | B10: 20 | C10: 18292 | D10: 0 | E10: 0 | F10: 1 | G10: =B10*F10 -> 20 | H10: =ROUND(SUM('Base Data'!$D$21:$D$22)/2*0.1,0) -> 461 | I10: =G10*H10 -> 9220 | J10: =I10*0.1 -> 922 | K10: =I10*0.05 -> 461 | L10: =(I10*'Base Data'!$C$5)+(J10*'Base Data'!$C$6)+(K10*'Base Data'!$C$7) -> 1002928.55 | M10: =C10*F10*H10 -> 8432612 | N10: 0 | O10: b, c, d | Q10: =H10+H11 -> 4615 | R10: =Q10*2 -> 9230
A11: b) Commercial | B11: 20 | C11: 854 | D11: 0 | E11: 0 | F11: 1 | G11: =B11*F11 -> 20 | H11: =ROUND(SUM('Base Data'!$D$21:$D$22)/2*0.9,0)+1 -> 4154 | I11: =G11*H11 -> 83080 | J11: =I11*0.1 -> 8308 | K11: =I11*0.05 -> 4154 | L11: =(I11*'Base Data'!$C$5)+(J11*'Base Data'!$C$6)+(K11*'Base Data'!$C$7) -> 9037234.7 | M11: =C11*F11*H11 -> 3547516 | N11: 0 | O11: b, c, d
A12: 2. Biennial Tune-Up | B12: 12 | C12: 0 | D12: 2875 | E12: 0 | F12: 0.5 | G12: =B12*F12 -> 6 | H12: =ROUND(SUM('Base Data'!$D$21:$D$22)/2,0) -> 4615 | I12: =G12*H12 -> 27690 | J12: =I12*0.1 -> 2769 | K12: =I12*0.05 -> 1384.5 | L12: =(I12*'Base Data'!$C$5)+(J12*'Base Data'!$C$6)+(K12*'Base Data'!$C$7) -> 3012048.975 | M12: =D12*F12*H12 -> 6634062.5 | N12: 0 | O12: c
A13: C. Create Information | B13: na
A14: D. Gather Information | B14: na
A15: E. Report Preparation
A16: 1) Initial Notification that Source is Subject | B16: 2 | C16: 0 | D16: 0 | E16: 0 | F16: 1 | G16: =B16*F16 -> 2 | H16: 0 | I16: =G16*H16 -> 0 | J16: =I16*0.1 -> 0 | K16: =I16*0.05 -> 0 | L16: =(I16*'Base Data'!$C$5)+(J16*'Base Data'!$C$6)+(K16*'Base Data'!$C$7) -> 0 | M16: 0 | N16: =F16*H16 -> 0 | O16: a
A17: 2) Notification of Compliance Status | B17: 8 | C17: 0 | D17: 0 | E17: 0 | F17: 1 | G17: =B17*F17 -> 8 | H17: 0 | I17: =G17*H17 -> 0 | J17: =I17*0.1 -> 0 | K17: =I17*0.05 -> 0 | L17: =(I17*'Base Data'!$C$5)+(J17*'Base Data'!$C$6)+(K17*'Base Data'!$C$7) -> 0 | M17: 0 | N17: =F17*H17 -> 0 | O17: c
A18: 3) Biennial Compliance Report | B18: 5 | C18: 0 | D18: 0 | E18: 0 | F18: 0.5 | G18: =B18*F18 -> 2.5 | H18: 0 | I18: =G18*H18 -> 0 | J18: =I18*0.1 -> 0 | K18: =I18*0.05 -> 0 | L18: =(I18*'Base Data'!$C$5)+(J18*'Base Data'!$C$6)+(K18*'Base Data'!$C$7) -> 0 | M18: 0 | N18: =F18*H18 -> 0 | O18: c
A19: Reporting Subtotal | I19: =SUM(I7:I18) -> 119990 | J19: =SUM(J7:J18) -> 11999 | K19: 5999.5 | L19: 13052212.22 | M19: =SUM(M7:M18) -> 18614190.5 | N19: =SUM(N15:N18) -> 0
A20: 4. Recordkeeping Requirements
A21: A. Read Instructions | B21: Included in 3a
A22: B. Implement Activities | B22: na
A23: C. Develop Record System | B23: na | O23: e
A24: D. Record Information
A25: 1) Records of All Compliance Reports Submitted | B25: 2 | C25: 0 | D25: 0 | E25: 0 | F25: 1 | G25: =B25*F25 -> 2 | H25: 0 | I25: =G25*H25 -> 0 | J25: =I25*0.1 -> 0 | K25: =I25*0.05 -> 0 | L25: =(I25*'Base Data'!$C$5)+(J25*'Base Data'!$C$6)+(K25*'Base Data'!$C$7) -> 0 | M25: 0 | N25: =F25*H25 -> 0 | O25: c
A26: 2) Records of Biennial Tune-Up | B26: 0.5 | C26: 0 | D26: 0 | E26: 0 | F26: 0.5 | G26: =B26*F26 -> 0.25 | H26: 0 | I26: =G26*H26 -> 0 | J26: =I26*0.1 -> 0 | K26: =I26*0.05 -> 0 | L26: =(I26*'Base Data'!$C$5)+(J26*'Base Data'!$C$6)+(K26*'Base Data'!$C$7) -> 0 | M26: 0 | N26: =F26*H26 -> 0 | O26: c
A27: E. Personnel Training | B27: na
A28: F. Time for Audits | B28: na
A29: Recordkeeping Subtotal | I29: =SUM(I25:I26) -> 0 | J29: =SUM(J25:J26) -> 0 | K29: 0 | L29: 0 | M29: 0 | N29: =SUM(N25:N26) -> 0
A30: Totals | I30: =I19+I29 -> 119990 | J30: =J19+J29 -> 11999 | K30: 5999.5 | L30: 13052212.22 | M30: 18614190.5 | N30: 0
A32: a The burden on existing sources to read and understand rule requirements, and submit an initial notification were assumed to all occur in year 1.
A33: b Cost includes taking an inventory of facility equipment including age, operating schedules, square feet of the facility and other details necessary for preparing for the audit pre-screening, attending the energy audit, and reviewing audit report from the audit professional.
A34: c Since existing units have three years after the publication date of the final rule to submit initial notification of compliance status, conduct compliance activities, or meet recordkeeping or reporting requirements, it is assumed that half the affected units will conduct an audit, testing and monitoring plan development in year 2 and half will conduct them in year 3 in order to be in compliance by the third year after promulgation. Initial Notification of Compliance Reports and recordkeeping requirements will not begin until year 3 of this ICR.
A35: d Cost per occurrence for energy audit professionals including an phone screening to discuss the facility prior to a visit, a 2 to 4 hour site visit, and an additional 2-4 hours to prepare a follow-up report on recommendations and findings. Cost depends on whether the source is industrial or commercial. It is assumed that 10% will be industrial and 90% will be commercial sources. These site visits are assumed to be conducted by certified energy professionals.
A36: e Assumes facility must already maintain records on boiler insurance and/or maintenance schedule. No new record system would be required.

Sheet Fac-ExistLrgLiquid-Yr3
A1: Table 2.C. Annual Respondent Burden and Cost of Recordkeeping and Reporting Requirements for the National Emission Standards
A2: for Hazardous Air Pollutants (NESHAP) for Industrial, Commercial, and Institutional Boilers - Year 3, Existing Large Liquid Fuel Units
A3: Burden Item | B3: (A) Respondent Hours per Occurrence (Technical hours) | C3: (B) Certified Energy Audit Cost per Occurrence | D3: (C) Tune-Up Cost per Occurrence | E3: (D) Other Non-Labor Costs Per Occurrence | F3: (E) Number of Occurrences Per Respondent Per Year | G3: (F) Technical Hours per Respondent Per Year (A X E) | H3: (G) Number of Respondents Per Year | I3: (H) Technical Hours per Year @ $98.20 (F X G) | J3: (I) Clerical Hours per Year @ $48.53 (H X 0.1) | K3: (J) Management Hours per Year @ $114.49 (H X .05) | L3: (K) Total Labor Costs Per Year | M3: (L) Total Non-Labor Annual Costs | N3: (M) Total Number of Responses per Year (E X G) | O3: Footnotes
A4: 1. Applications | B4: na
A5: 2. Surveys and Studies | B5: na
A6: 3. Reporting Requirements
A7: A. Read and Understand Rule Requirements | B7: 40 | C7: 0 | D7: 0 | E7: 0 | F7: 1 | G7: =B7*F7 -> 40 | H7: 0 | I7: =G7*H7 -> 0 | J7: =I7*0.1 -> 0 | K7: =I7*0.05 -> 0 | L7: =(I7*'Base Data'!$C$5)+(J7*'Base Data'!$C$6)+(K7*'Base Data'!$C$7) -> 0 | M7: 0 | N7: 0 | O7: a
A8: B. Required Activities
A9: 1. Conduct Energy Audit
A10: a) Industrial | B10: 20 | C10: 18292 | D10: 0 | E10: 0 | F10: 1 | G10: =B10*F10 -> 20 | H10: =ROUND(SUM('Base Data'!$D$21:$D$22)/2*0.1,0) -> 461 | I10: =G10*H10 -> 9220 | J10: =I10*0.1 -> 922 | K10: =I10*0.05 -> 461 | L10: =(I10*'Base Data'!$C$5)+(J10*'Base Data'!$C$6)+(K10*'Base Data'!$C$7) -> 1002928.55 | M10: =C10*F10*H10 -> 8432612 | N10: 0 | O10: b, c, d | Q10: =H10+H11 -> 4614 | R10: =Q10*2 -> 9228
A11: b) Commercial | B11: 20 | C11: 854 | D11: 0 | E11: 0 | F11: 1 | G11: =B11*F11 -> 20 | H11: =ROUND(SUM('Base Data'!$D$21:$D$22)/2*0.9,0) -> 4153 | I11: =G11*H11 -> 83060 | J11: =I11*0.1 -> 8306 | K11: =I11*0.05 -> 4153 | L11: =(I11*'Base Data'!$C$5)+(J11*'Base Data'!$C$6)+(K11*'Base Data'!$C$7) -> 9035059.15 | M11: =C11*F11*H11 -> 3546662 | N11: 0 | O11: b, c, d
A12: 2. Biennial Tune-Up | B12: 12 | C12: 0 | D12: 2875 | E12: 0 | F12: 0.5 | G12: =B12*F12 -> 6 | H12: =ROUND(SUM('Base Data'!$D$21:$D$22)/2,0)-1 -> 4614 | I12: =G12*H12 -> 27684 | J12: =I12*0.1 -> 2768.4 | K12: =I12*0.05 -> 1384.2 | L12: =(I12*'Base Data'!$C$5)+(J12*'Base Data'!$C$6)+(K12*'Base Data'!$C$7) -> 3011396.31 | M12: =D12*F12*H12 -> 6632625 | N12: 0 | O12: c
A13: C. Create Information | B13: na
A14: D. Gather Information | B14: na
A15: E. Report Preparation
A16: 1) Initial Notification that Source is Subject | B16: 2 | C16: 0 | D16: 0 | E16: 0 | F16: 1 | G16: =B16*F16 -> 2 | H16: 0 | I16: =G16*H16 -> 0 | J16: =I16*0.1 -> 0 | K16: =I16*0.05 -> 0 | L16: =(I16*'Base Data'!$C$5)+(J16*'Base Data'!$C$6)+(K16*'Base Data'!$C$7) -> 0 | M16: 0 | N16: =F16*H16 -> 0 | O16: a
A17: 2) Notification of Compliance Status | B17: 8 | C17: 0 | D17: 0 | E17: 0 | F17: 1 | G17: =B17*F17 -> 8 | H17: ='Base Data'!$H$21+'Base Data'!$H$22 -> 4615 | I17: =G17*H17 -> 36920 | J17: =I17*0.1 -> 3692 | K17: =I17*0.05 -> 1846 | L17: =(I17*'Base Data'!$C$5)+(J17*'Base Data'!$C$6)+(K17*'Base Data'!$C$7) -> 4016065.3 | M17: 0 | N17: =F17*H17 -> 4615 | O17: c
A18: 3) Biennial Compliance Report | B18: 5 | C18: 0 | D18: 0 | E18: 0 | F18: 0.5 | G18: =B18*F18 -> 2.5 | H18: ='Base Data'!$H$21+'Base Data'!$H$22 -> 4615 | I18: =G18*H18 -> 11537.5 | J18: =I18*0.1 -> 1153.75 | K18: =I18*0.05 -> 576.875 | L18: =(I18*'Base Data'!$C$5)+(J18*'Base Data'!$C$6)+(K18*'Base Data'!$C$7) -> 1255020.406 | M18: 0 | N18: =F18*H18 -> 2307.5 | O18: c
A19: Reporting Subtotal | I19: =SUM(I7:I18) -> 168421.5 | J19: =SUM(J7:J18) -> 16842.15 | K19: 8421.075 | L19: 18320469.72 | M19: =SUM(M7:M18) -> 18611899 | N19: =SUM(N15:N18) -> 6922.5
A20: 4. Recordkeeping Requirements
A21: A. Read Instructions | B21: Included in 3a
A22: B. Implement Activities | B22: na
A23: C. Develop Record System | B23: na | O23: e
A24: D. Record Information
A25: 1) Records of All Compliance Reports Submitted | B25: 2 | C25: 0 | D25: 0 | E25: 0 | F25: 1 | G25: =B25*F25 -> 2 | H25: ='Base Data'!$D$21+'Base Data'!$D$22 -> 9229 | I25: =G25*H25 -> 18458 | J25: =I25*0.1 -> 1845.8 | K25: =I25*0.05 -> 922.9 | L25: =(I25*'Base Data'!$C$5)+(J25*'Base Data'!$C$6)+(K25*'Base Data'!$C$7) -> 2007815.095 | M25: 0 | N25: 0 | O25: c
A26: 2) Records of Biennial Tune-Up | B26: 0.5 | C26: 0 | D26: 0 | E26: 0 | F26: 0.5 | G26: =B26*F26 -> 0.25 | H26: ='Base Data'!$D$21+'Base Data'!$D$22 -> 9229 | I26: =G26*H26 -> 2307.25 | J26: =I26*0.1 -> 230.725 | K26: =I26*0.05 -> 115.3625 | L26: =(I26*'Base Data'!$C$5)+(J26*'Base Data'!$C$6)+(K26*'Base Data'!$C$7) -> 250976.8869 | M26: 0 | N26: 0 | O26: c
A27: E. Personnel Training | B27: na
A28: F. Time for Audits | B28: na
A29: Recordkeeping Subtotal | I29: =SUM(I25:I26) -> 20765.25 | J29: =SUM(J25:J26) -> 2076.525 | K29: 1038.2625 | L29: 2258791.982 | M29: 0 | N29: =SUM(N25:N26) -> 0
A30: Totals | I30: =I19+I29 -> 189186.75 | J30: =J19+J29 -> 18918.675 | K30: 9459.3375 | L30: 20579261.7 | M30: 18611899 | N30: 6922.5
A32: a The burden on existing sources to read and understand rule requirements, and submit an initial notification were assumed to all occur in year 1.
A33: b Cost includes taking an inventory of facility equipment including age, operating schedules, square feet of the facility and other details necessary for preparing for the audit pre-screening, attending the energy audit, and reviewing audit report from the audit professional.
A34: c Since existing units have three years after the publication date of the final rule to submit initial notification of compliance status, conduct compliance activities, or meet recordkeeping or reporting requirements, it is assumed that half the affected units will conduct an audit, testing and monitoring plan development in year 2 and half will conduct them in year 3 in order to be in compliance by the third year after promulgation. Initial Notification of Compliance Reports and recordkeeping requirements will not begin until year 3 of this ICR.
A35: d Cost per occurrence for energy audit professionals including an phone screening to discuss the facility prior to a visit, a 2 to 4 hour site visit, and an additional 2-4 hours to prepare a follow-up report on recommendations and findings. Cost depends on whether the source is industrial or commercial. It is assumed that 10% will be industrial and 90% will be commercial sources. These site visits are assumed to be conducted by certified energy professionals.
A36: e Assumes facility must already maintain records on boiler insurance and/or maintenance schedule. No new record system would be required.

Sheet Fac-NewLrgSolid-Yr1
A1: Table 3.A. Annual Respondent Burden and Cost of Recordkeeping and Reporting Requirements for the National Emission Standards
A2: for Hazardous Air Pollutants (NESHAP) for Industrial, Commercial, and Institutional Boilers and Process Heaters - Year 1, New Large Solid Fuel Units
A3: Burden Item | B3: (A) Respondent Hours per Occurrence (Technical hours) | C3: (B) Stack Testing and Fuel Analysis Cost Per Occurrence | D3: (C) Non-Labor Costs Per Occurrence | E3: (D) Number of Occurrences Per Respondent Per Year | F3: (E) Technical Hours per Respondent Per Year (A X D) | G3: (F) Number of Respondents Per Year | H3: (G) Technical Hours per Year @ $98.20 (F X G) | I3: (H) Clerical Hours per Year @ $48.53 (H X 0.1) | J3: (I) Management Hours per Year @ $114.49 (H X .05) | K3: (J) Total Labor Costs Per Year | L3: (K) Total Non-Labor Annual Cost | M3: (L) Total Number of Responses per Year (D X F) | N3: Footnotes | O3: Annualized Capital/start-up O&M
A4: 1. Applications | B4: na
A5: 2. Surveys and Studies | B5: na
A6: 3. Reporting Requirements
A7: A. Read and Understand Rule Requirements | B7: 40 | C7: 0 | D7: 0 | E7: 1 | F7: =B7*E7 -> 40 | G7: =ROUND(SUM('Base Data'!$H$40:$H$41)/3,0) -> 10 | H7: =F7*G7 -> 400 | I7: =H7*0.1 -> 40 | J7: =H7*0.05 -> 20 | K7: =(H7*'Base Data'!$C$5)+(I7*'Base Data'!$C$6)+(J7*'Base Data'!$C$7) -> 43511 | L7: 0 | M7: 0 | N7: a, b
A8: B. Required Activities
A9: 1. Initial Stack Test and Report (for PM) | B9: 12 | C9: 8000 | D9: 0 | E9: 1 | F9: =B9*E9 -> 12 | G9: =ROUND((SUM('Base Data'!$D$40:$D$41)-SUM('Base Data'!$E$40:$E$41))/3,0) -> 4 | H9: =F9*G9 -> 48 | I9: =H9*0.1 -> 4.8 | J9: =H9*0.05 -> 2.4 | K9: =(H9*'Base Data'!$C$5)+(I9*'Base Data'!$C$6)+(J9*'Base Data'!$C$7) -> 5221.32 | L9: 0 | M9: 0 | N9: b, c
A10: 2. Initial Stack Test and Report (for Hg) | B10: 12 | C10: 5000 | D10: 0 | E10: 1 | F10: =B10*E10 -> 12 | G10: 0 | H10: 0 | I10: 0 | J10: =H10*0.05 -> 0 | K10: =(H10*'Base Data'!$C$5)+(I10*'Base Data'!$C$6)+(J10*'Base Data'!$C$7) -> 0 | L10: 0 | M10: 0 | N10: b, c, g
A11: 3. Initial Stack Test and Report (for CO) | B11: 12 | C11: 6000 | D11: 0 | E11: 1 | F11: 12 | G11: 0 | H11: 0 | I11: 0 | J11: =H11*0.05 -> 0 | K11: =(H11*'Base Data'!$C$5)+(I11*'Base Data'!$C$6)+(J11*'Base Data'!$C$7) -> 0 | L11: 0 | M11: 0 | N11: b, g
A12: 4. Annual Stack Test and Report (for PM) | B12: 12 | C12: 8000 | D12: 0 | E12: 1 | F12: 12 | G12: 0 | H12: 0 | I12: 0 | J12: 0 | K12: =(H12*'Base Data'!$C$5)+(I12*'Base Data'!$C$6)+(J12*'Base Data'!$C$7) -> 0 | L12: =C12*E12*G12 -> 0 | M12: 0 | N12: d
A13: 5. Annual Stack Test and Report (for Hg) | B13: 12 | C13: 5000 | D13: 0 | E13: 1 | F13: 12 | G13: 0 | H13: 0 | I13: 0 | J13: 0 | K13: =(H13*'Base Data'!$C$5)+(I13*'Base Data'!$C$6)+(J13*'Base Data'!$C$7) -> 0 | L13: =C13*E13*G13 -> 0 | M13: 0 | N13: b, c, g
A14: 6. Annual Stack Test and Report (for CO) | B14: 12 | C14: 6000 | D14: 0 | E14: 1 | F14: 12 | G14: 0 | H14: 0 | I14: 0 | J14: 0 | K14: =(H14*'Base Data'!$C$5)+(I14*'Base Data'!$C$6)+(J14*'Base Data'!$C$7) -> 0 | L14: =C14*E14*G14 -> 0 | M14: 0 | N14: d, g
A15: 7. Initial Fuel Analysis for Mercury Content | B15: 5 | C15: 200 | D15: 0 | E15: 1 | F15: 5 | G15: 0 | H15: 0 | I15: =H15*0.1 -> 0 | J15: 0 | K15: =(H15*'Base Data'!$C$5)+(I15*'Base Data'!$C$6)+(J15*'Base Data'!$C$7) -> 0 | L15: 0 | M15: 0 | N15: b, c
A16: 8. Monthly Fuel Analysis for Mercury Content | B16: 5 | C16: 200 | D16: 0 | E16: 12 | F16: 60 | G16: 0 | H16: 0 | I16: =H16*0.1 -> 0 | J16: 0 | K16: =(H16*'Base Data'!$C$5)+(I16*'Base Data'!$C$6)+(J16*'Base Data'!$C$7) -> 0 | L16: =C16*E16*G16 -> 0 | M16: 0 | N16: c, d
A17: 9. Continuous Parameter Monitoring
A18: Establish Site-specific monitoring plan (all) | B18: 40 | C18: 0 | D18: 0 | E18: 1 | F18: 40 | G18: =ROUND((SUM('Base Data'!$D$40:$D$41)-SUM('Base Data'!$E$40:$E$41))/3,0) -> 4 | H18: =F18*G18 -> 160 | I18: 16 | J18: =H18*0.05 -> 8 | K18: =(H18*'Base Data'!$C$5)+(I18*'Base Data'!$C$6)+(J18*'Base Data'!$C$7) -> 17404.4 | L18: 0 | M18: 0 | N18: e
A19: Opacity
A20: a) initial | B20: 10 | C20: 0 | D20: 43100 | E20: 1 | F20: 10 | G20: =ROUND((SUM('Base Data'!$D$40:$D$41)-SUM('Base Data'!$E$40:$E$41))/3,0) -> 4 | H20: =F20*G20 -> 40 | I20: 4 | J20: =H20*0.05 -> 2 | K20: =(H20*'Base Data'!$C$5)+(I20*'Base Data'!$C$6)+(J20*'Base Data'!$C$7) -> 4351.1 | L20: =D20*E20*G20 -> 172400 | M20: 0 | N20: f
A21: b) annual | B21: 10 | C21: 0 | D21: 14700 | E21: 1 | F21: 10 | G21: =ROUND((SUM('Base Data'!$D$40:$D$41)-SUM('Base Data'!$E$40:$E$41))/3,0) -> 4 | H21: =F21*G21 -> 40 | I21: 4 | J21: =H21*0.05 -> 2 | K21: =(H21*'Base Data'!$C$5)+(I21*'Base Data'!$C$6)+(J21*'Base Data'!$C$7) -> 4351.1 | L21: =D21*E21*G21 -> 58800 | M21: 0 | N21: f
A22: Bag Leak Detection System Operation (all sources that have fabric filters)
A23: a) initial | B23: 10 | C23: 0 | D23: 25500 | E23: 1 | F23: =B23*E23 -> 10 | G23: 0 | H23: =F23*G23 -> 0 | I23: 0 | J23: =H23*0.05 -> 0 | K23: =(H23*'Base Data'!$C$5)+(I23*'Base Data'!$C$6)+(J23*'Base Data'!$C$7) -> 0 | L23: =D23*E23*G23 -> 0 | M23: 0 | N23: f
A24: b) annual | B24: 10 | C24: 0 | D24: 9700 | E24: 1 | F24: =B24*E24 -> 10 | G24: 0 | H24: =F24*G24 -> 0 | I24: 0 | J24: =H24*0.05 -> 0 | K24: =(H24*'Base Data'!$C$5)+(I24*'Base Data'!$C$6)+(J24*'Base Data'!$C$7) -> 0 | L24: =D24*E24*G24 -> 0 | M24: 0 | N24: f
A25: C. Create Information | B25: na
A26: D. Gather Information | B26: na
A27: E. Report Preparation
A28: 1) Initial Notification that Source is Subject | B28: 2 | C28: 0 | D28: 0 | E28: 1 | F28: 2 | G28: =ROUND(SUM('Base Data'!$H$40:$H$41)/3,0) -> 10 | H28: =F28*G28 -> 20 | I28: 2 | J28: =H28*0.05 -> 1 | K28: =(H28*'Base Data'!$C$5)+(I28*'Base Data'!$C$6)+(J28*'Base Data'!$C$7) -> 2175.55 | L28: 0 | M28: =E28*G28 -> 10 | N28: a, b
A29: 2) Notification of Compliance Status | B29: 8 | C29: 0 | D29: 0 | E29: 1 | F29: 8 | G29: =ROUND(SUM('Base Data'!$H$40:$H$41)/3,0) -> 10 | H29: =F29*G29 -> 80 | I29: 8 | J29: =H29*0.05 -> 4 | K29: =(H29*'Base Data'!$C$5)+(I29*'Base Data'!$C$6)+(J29*'Base Data'!$C$7) -> 8702.2 | L29: 0 | M29: =E29*G29 -> 10 | N29: a, b
A30: 3) Annual Compliance Report | B30: 30 | C30: 0 | D30: 0 | E30: 1 | F30: 30 | G30: =ROUND(SUM('Base Data'!$H$40:$H$41)/3,0) -> 10 | H30: =F30*G30 -> 300 | I30: 30 | J30: =H30*0.05 -> 15 | K30: =(H30*'Base Data'!$C$5)+(I30*'Base Data'!$C$6)+(J30*'Base Data'!$C$7) -> 32633.25 | L30: 0 | M30: =E30*G30 -> 10 | N30: a
A31: Reporting Subtotal | H31: =SUM(H4:H18,H21:H30) -> 1048 | I31: =SUM(I4:I18,I21:I30) -> 104.8 | J31: 52.4 | K31: =SUM(K4:K18,K21:K30) -> 113998.82 | L31: =SUM(L4:L18,L21:L30) -> 58800 | M31: =SUM(M28:M30) -> 30 | O31: =SUM(L9:L16,L21,#REF!,L24) ->  | P31: =SUM(L20,#REF!,L23) -> 
A32: 4. Recordkeeping Requirements
A33: A. Read Instructions | B33: see 3.A
A34: B. Implement Activities | B34: na
A35: C. Develop Record System | B35: na
A36: D. Record Information
A37: 1) Records of Operating Parameter Values | B37: 20 | C37: 0 | D37: 0 | E37: 1 | F37: 20 | G37: =ROUND(SUM('Base Data'!$D$40:$D$41)/3,0) -> 20 | H37: =F37*G37 -> 400 | I37: 40 | J37: =H37*0.05 -> 20 | K37: =(H37*'Base Data'!$C$5)+(I37*'Base Data'!$C$6)+(J37*'Base Data'!$C$7) -> 43511 | L37: 0 | M37: 0 | N37: a, c
A38: 2) Records of Deviations | B38: 15 | C38: 0 | D38: 0 | E38: 1 | F38: 15 | G38: =ROUND(SUM('Base Data'!$D$40:$D$41)/3,0) -> 20 | H38: 300 | I38: 30 | J38: 15 | K38: =(H38*'Base Data'!$C$5)+(I38*'Base Data'!$C$6)+(J38*'Base Data'!$C$7) -> 32633.25 | L38: 0 | M38: 0 | N38: a, c
A39: 3) Records of Stack Tests | B39: 2 | C39: 0 | D39: 0 | E39: 1 | F39: 2 | G39: =ROUND(SUM('Base Data'!$D$40:$D$41)/3,0) -> 20 | H39: 40 | I39: 4 | J39: 2 | K39: =(H39*'Base Data'!$C$5)+(I39*'Base Data'!$C$6)+(J39*'Base Data'!$C$7) -> 4351.1 | L39: 0 | M39: 0 | N39: a, c
A40: 4) Records of Monitoring Device Calibrations | B40: 2 | C40: 0 | D40: 0 | E40: 1 | F40: 2 | G40: =ROUND(SUM('Base Data'!$D$40:$D$41)/3,0) -> 20 | H40: 40 | I40: 4 | J40: 2 | K40: =(H40*'Base Data'!$C$5)+(I40*'Base Data'!$C$6)+(J40*'Base Data'!$C$7) -> 4351.1 | L40: 0 | M40: 0 | N40: a, c
A41: 5) Records of All Compliance Reports Submitted | B41: 2 | C41: 0 | D41: 0 | E41: 2 | F41: 4 | G41: =ROUND(SUM('Base Data'!$D$40:$D$41)/3,0) -> 20 | H41: 80 | I41: 8 | J41: 4 | K41: =(H41*'Base Data'!$C$5)+(I41*'Base Data'!$C$6)+(J41*'Base Data'!$C$7) -> 8702.2 | L41: 0 | M41: 0 | N41: a, c
A42: 6) Records of Monthly Fuel Use | B42: 0.5 | C42: 0 | D42: 0 | E42: 12 | F42: 6 | G42: =ROUND(SUM('Base Data'!$D$40:$D$41)/3,0) -> 20 | H42: 120 | I42: 12 | J42: 6 | K42: =(H42*'Base Data'!$C$5)+(I42*'Base Data'!$C$6)+(J42*'Base Data'!$C$7) -> 13053.3 | L42: 0 | M42: 0 | N42: a, c
A43: E. Personnel Training | B43: na
A44: F. Time for Audits | B44: na
A45: Subtotal Recordkeeping | H45: =SUM(H37:H44) -> 980 | I45: =SUM(I37:I44) -> 98 | J45: 49 | K45: 106601.95 | L45: 0 | M45: 0
A46: Totals | H46: =SUM(H31,H45) -> 2028 | I46: =SUM(I31,I45) -> 202.8 | J46: 101.4 | K46: 220600.77 | L46: 58800 | M46: 30
A47: a The total number of new large solid fuel boilers estimated in the first 3 years of this rule is 60. In order to calculate a per year estimate of the number of boilers required to meet these rule requirements, the number of projected boilers is divided by 3, or 20 boilers per year. Assuming 2 unit per facility, 10 new facilities will be subject per year.
A48: b A one-time requirement.
A49: c All projected large solid fuel units expected to comply through stack testing instead of the fuel testing compliance option. Only units less than 30 mmBtu/hr that are not subject to PM limits under the NSPS (40 CFR part 60 subparts Db, Dc) will incur additional testing, monitoring, recordkeeping and reporting costs under this rule.
A50: d No annual test and reporting burden is shown in year 1 as this is the same year as the initial test and report.
A51: e If you demonstrate compliance with any applicable emission limit through stack testing, you must develop a site-specific monitoring plan. All new large solid fuel units are expected to develop this plan.
A52: f All new coal units greater than 10 mmBtu/hr are expected to install fabric filters and equipped with bag leak detection (BLD) systems instead of opacity monitors. Since biomass units are expected to meet PM limits with an ESP, an opacity monitor is required instead of a BLD. There are no new large coal units projected to be installed.
A53: g Only coal boilers are subject to numerical mercury and CO limits and are required to test. No new large coal units are projected.

Sheet Fac-NewLrgSolid-Yr2
A1: Table 3.B. Annual Respondent Burden and Cost of Recordkeeping and Reporting Requirements for the National Emission Standards
A2: for Hazardous Air Pollutants (NESHAP) for Industrial, Commercial, and Institutional Boilers and Process Heaters - Year 2, New Large Solid Fuel Units
A3: Burden Item | B3: (A) Respondent Hours per Occurrence (Technical hours) | C3: (B) Stack Testing and Fuel Analysis Cost Per Occurrence | D3: (C) Non-Labor Costs Per Occurrence | E3: (D) Number of Occurrences Per Respondent Per Year | F3: (E) Technical Hours per Respondent Per Year (A X D) | G3: (F) Number of Respondents Per Year | H3: (G) Technical Hours per Year @ $98.20 (F X G) | I3: (H) Clerical Hours per Year @ $48.53 (H X 0.1) | J3: (I) Management Hours per Year @ $114.49 (H X .05) | K3: (J) Total Labor Costs Per Year | L3: (K) Total Non-Labor Annual Cost | M3: (L) Total Number of Responses per Year (D X F) | N3: Footnotes | O3: Annualized Capital/start-up O&M
A4: 1. Applications | B4: na
A5: 2. Surveys and Studies | B5: na
A6: 3. Reporting Requirements
A7: A. Read and Understand Rule Requirements | B7: 40 | C7: 0 | D7: 0 | E7: 1 | F7: =B7*E7 -> 40 | G7: =ROUND(SUM('Base Data'!$H$40:$H$41)/3,0) -> 10 | H7: =F7*G7 -> 400 | I7: =H7*0.1 -> 40 | J7: =H7*0.05 -> 20 | K7: =(H7*'Base Data'!$C$5)+(I7*'Base Data'!$C$6)+(J7*'Base Data'!$C$7) -> 43511 | L7: 0 | M7: 0 | N7: a, b
A8: B. Required Activities
A9: 1. Initial Stack Test and Report (for PM) | B9: 12 | C9: 8000 | D9: 0 | E9: 1 | F9: =B9*E9 -> 12 | G9: =ROUND((SUM('Base Data'!$D$40:$D$41)-SUM('Base Data'!$E$40:$E$41))/3,0) -> 4 | H9: =F9*G9 -> 48 | I9: =H9*0.1 -> 4.8 | J9: =H9*0.05 -> 2.4 | K9: =(H9*'Base Data'!$C$5)+(I9*'Base Data'!$C$6)+(J9*'Base Data'!$C$7) -> 5221.32 | L9: =C9*E9*G9 -> 32000 | M9: 0 | N9: b, c
A10: 2. Initial Stack Test and Report (for Hg) | B10: 12 | C10: 5000 | D10: 0 | E10: 1 | F10: =B10*E10 -> 12 | G10: 0 | H10: 0 | I10: 0 | J10: =H10*0.05 -> 0 | K10: =(H10*'Base Data'!$C$5)+(I10*'Base Data'!$C$6)+(J10*'Base Data'!$C$7) -> 0 | L10: 0 | M10: 0 | N10: b, c, g
A11: 3. Initial Stack Test and Report (for CO) | B11: 12 | C11: 6000 | D11: 0 | E11: 1 | F11: 12 | G11: 0 | H11: 0 | I11: 0 | J11: =H11*0.05 -> 0 | K11: =(H11*'Base Data'!$C$5)+(I11*'Base Data'!$C$6)+(J11*'Base Data'!$C$7) -> 0 | L11: 0 | M11: 0 | N11: b, g
A12: 4. Annual Stack Test and Report (for PM) | B12: 12 | C12: 8000 | D12: 0 | E12: 1 | F12: 12 | G12: ='Fac-NewLrgSolid-Yr1'!G9 -> 4 | H12: 48 | I12: 4.8 | J12: 2.4 | K12: =(H12*'Base Data'!$C$5)+(I12*'Base Data'!$C$6)+(J12*'Base Data'!$C$7) -> 5221.32 | L12: =C12*E12*G12 -> 32000 | M12: 0 | N12: d
A13: 5. Annual Stack Test and Report (for Hg) | B13: 12 | C13: 5000 | D13: 0 | E13: 1 | F13: 12 | G13: ='Fac-NewLrgSolid-Yr1'!G10 -> 0 | H13: 0 | I13: 0 | J13: 0 | K13: =(H13*'Base Data'!$C$5)+(I13*'Base Data'!$C$6)+(J13*'Base Data'!$C$7) -> 0 | L13: =C13*E13*G13 -> 0 | M13: 0 | N13: b, c, g
A14: 6. Annual Stack Test and Report (for CO) | B14: 12 | C14: 6000 | D14: 0 | E14: 1 | F14: 12 | G14: ='Fac-NewLrgSolid-Yr1'!G11 -> 0 | H14: 0 | I14: 0 | J14: 0 | K14: =(H14*'Base Data'!$C$5)+(I14*'Base Data'!$C$6)+(J14*'Base Data'!$C$7) -> 0 | L14: =C14*E14*G14 -> 0 | M14: 0 | N14: d, g
A15: 7. Initial Fuel Analysis for Mercury Content | B15: 5 | C15: 200 | D15: 0 | E15: 1 | F15: 5 | G15: 0 | H15: 0 | I15: =H15*0.1 -> 0 | J15: 0 | K15: =(H15*'Base Data'!$C$5)+(I15*'Base Data'!$C$6)+(J15*'Base Data'!$C$7) -> 0 | L15: 0 | M15: 0 | N15: b, c
A16: 8. Monthly Fuel Analysis for Mercury Content | B16: 5 | C16: 200 | D16: 0 | E16: 12 | F16: 60 | G16: 0 | H16: 0 | I16: =H16*0.1 -> 0 | J16: 0 | K16: =(H16*'Base Data'!$C$5)+(I16*'Base Data'!$C$6)+(J16*'Base Data'!$C$7) -> 0 | L16: =C16*E16*G16 -> 0 | M16: 0 | N16: c, d
A17: 9. Continuous Parameter Monitoring
A18: Establish Site-specific monitoring plan (all) | B18: 40 | C18: 0 | D18: 0 | E18: 1 | F18: 40 | G18: =ROUND((SUM('Base Data'!$D$40:$D$41)-SUM('Base Data'!$E$40:$E$41))/3,0) -> 4 | H18: =F18*G18 -> 160 | I18: 16 | J18: =H18*0.05 -> 8 | K18: =(H18*'Base Data'!$C$5)+(I18*'Base Data'!$C$6)+(J18*'Base Data'!$C$7) -> 17404.4 | L18: 0 | M18: 0 | N18: e
A19: Opacity
A20: a) initial | B20: 10 | C20: 0 | D20: 43100 | E20: 1 | F20: 10 | G20: =ROUND((SUM('Base Data'!$D$40:$D$41)-SUM('Base Data'!$E$40:$E$41))/3,0) -> 4 | H20: =F20*G20 -> 40 | I20: 4 | J20: =H20*0.05 -> 2 | K20: =(H20*'Base Data'!$C$5)+(I20*'Base Data'!$C$6)+(J20*'Base Data'!$C$7) -> 4351.1 | L20: =D20*E20*G20 -> 172400 | M20: 0 | N20: f
A21: b) annual | B21: 10 | C21: 0 | D21: 14700 | E21: 1 | F21: 10 | G21: ='Fac-NewLrgSolid-Yr1'!G20 -> 4 | H21: =F21*G21 -> 40 | I21: 4 | J21: =H21*0.05 -> 2 | K21: =(H21*'Base Data'!$C$5)+(I21*'Base Data'!$C$6)+(J21*'Base Data'!$C$7) -> 4351.1 | L21: =D21*E21*G21 -> 58800 | M21: 0 | N21: f
A22: Bag Leak Detection System Operation (all sources that have fabric filters)
A23: a) initial | B23: 10 | C23: 0 | D23: 25500 | E23: 1 | F23: =B23*E23 -> 10 | G23: 0 | H23: =F23*G23 -> 0 | I23: 0 | J23: =H23*0.05 -> 0 | K23: =(H23*'Base Data'!$C$5)+(I23*'Base Data'!$C$6)+(J23*'Base Data'!$C$7) -> 0 | L23: =D23*E23*G23 -> 0 | M23: 0 | N23: f
A24: b) annual | B24: 10 | C24: 0 | D24: 9700 | E24: 1 | F24: =B24*E24 -> 10 | G24: ='Fac-NewLrgSolid-Yr1'!G23+G23 -> 0 | H24: =F24*G24 -> 0 | I24: 0 | J24: =H24*0.05 -> 0 | K24: =(H24*'Base Data'!$C$5)+(I24*'Base Data'!$C$6)+(J24*'Base Data'!$C$7) -> 0 | L24: =D24*E24*G24 -> 0 | M24: 0 | N24: f
A25: C. Create Information | B25: na
A26: D. Gather Information | B26: na
A27: E. Report Preparation
A28: 1) Initial Notification that Source is Subject | B28: 2 | C28: 0 | D28: 0 | E28: 1 | F28: 2 | G28: =ROUND(SUM('Base Data'!$H$40:$H$41)/3,0) -> 10 | H28: =F28*G28 -> 20 | I28: 2 | J28: =H28*0.05 -> 1 | K28: =(H28*'Base Data'!$C$5)+(I28*'Base Data'!$C$6)+(J28*'Base Data'!$C$7) -> 2175.55 | L28: 0 | M28: =E28*G28 -> 10 | N28: a, b
A29: 2) Notification of Compliance Status | B29: 8 | C29: 0 | D29: 0 | E29: 1 | F29: 8 | G29: =ROUND(SUM('Base Data'!$H$40:$H$41)/3,0) -> 10 | H29: =F29*G29 -> 80 | I29: 8 | J29: =H29*0.05 -> 4 | K29: =(H29*'Base Data'!$C$5)+(I29*'Base Data'!$C$6)+(J29*'Base Data'!$C$7) -> 8702.2 | L29: 0 | M29: =E29*G29 -> 10 | N29: a, b
A30: 3) Annual Compliance Report | B30: 30 | C30: 0 | D30: 0 | E30: 1 | F30: 30 | G30: =ROUND(SUM('Base Data'!$H$40:$H$41)/3,0)+'Fac-NewLrgSolid-Yr1'!G30 -> 20 | H30: =F30*G30 -> 600 | I30: 60 | J30: =H30*0.05 -> 30 | K30: =(H30*'Base Data'!$C$5)+(I30*'Base Data'!$C$6)+(J30*'Base Data'!$C$7) -> 65266.5 | L30: 0 | M30: =E30*G30 -> 20 | N30: a
A31: Reporting Subtotal | H31: =SUM(H4:H18,H21:H30) -> 1396 | I31: =SUM(I4:I18,I21:I30) -> 139.6 | J31: 69.8 | K31: =SUM(K4:K18,K21:K30) -> 151853.39 | L31: =SUM(L4:L18,L21:L30) -> 122800 | M31: =SUM(M28:M30) -> 40 | O31: =SUM(L9:L16,L21,#REF!,L24) ->  | P31: =SUM(L20,#REF!,L23) -> 
A32: 4. Recordkeeping Requirements
A33: A. Read Instructions | B33: see 3.A
A34: B. Implement Activities | B34: na
A35: C. Develop Record System | B35: na
A36: D. Record Information
A37: 1) Records of Operating Parameter Values | B37: 20 | C37: 0 | D37: 0 | E37: 1 | F37: 20 | G37: =ROUND(SUM('Base Data'!$D$40:$D$41)/3,0)+'Fac-NewLrgSolid-Yr1'!G37 -> 40 | H37: =F37*G37 -> 800 | I37: 80 | J37: =H37*0.05 -> 40 | K37: =(H37*'Base Data'!$C$5)+(I37*'Base Data'!$C$6)+(J37*'Base Data'!$C$7) -> 87022 | L37: 0 | M37: 0 | N37: a, c
A38: 2) Records of Deviations | B38: 15 | C38: 0 | D38: 0 | E38: 1 | F38: 15 | G38: =ROUND(SUM('Base Data'!$D$40:$D$41)/3,0)+'Fac-NewLrgSolid-Yr1'!G38 -> 40 | H38: 600 | I38: 60 | J38: 30 | K38: =(H38*'Base Data'!$C$5)+(I38*'Base Data'!$C$6)+(J38*'Base Data'!$C$7) -> 65266.5 | L38: 0 | M38: 0 | N38: a, c
A39: 3) Records of Stack Tests | B39: 2 | C39: 0 | D39: 0 | E39: 1 | F39: 2 | G39: =ROUND(SUM('Base Data'!$D$40:$D$41)/3,0)+'Fac-NewLrgSolid-Yr1'!G39 -> 40 | H39: 80 | I39: 8 | J39: 4 | K39: =(H39*'Base Data'!$C$5)+(I39*'Base Data'!$C$6)+(J39*'Base Data'!$C$7) -> 8702.2 | L39: 0 | M39: 0 | N39: a, c
A40: 4) Records of Monitoring Device Calibrations | B40: 2 | C40: 0 | D40: 0 | E40: 1 | F40: 2 | G40: =ROUND(SUM('Base Data'!$D$40:$D$41)/3,0)+'Fac-NewLrgSolid-Yr1'!G40 -> 40 | H40: 80 | I40: 8 | J40: 4 | K40: =(H40*'Base Data'!$C$5)+(I40*'Base Data'!$C$6)+(J40*'Base Data'!$C$7) -> 8702.2 | L40: 0 | M40: 0 | N40: a, c
A41: 5) Records of All Compliance Reports Submitted | B41: 2 | C41: 0 | D41: 0 | E41: 2 | F41: 4 | G41: =ROUND(SUM('Base Data'!$D$40:$D$41)/3,0)+'Fac-NewLrgSolid-Yr1'!G41 -> 40 | H41: 160 | I41: 16 | J41: 8 | K41: =(H41*'Base Data'!$C$5)+(I41*'Base Data'!$C$6)+(J41*'Base Data'!$C$7) -> 17404.4 | L41: 0 | M41: 0 | N41: a, c
A42: 6) Records of Monthly Fuel Use | B42: 0.5 | C42: 0 | D42: 0 | E42: 12 | F42: 6 | G42: =ROUND(SUM('Base Data'!$D$40:$D$41)/3,0)+'Fac-NewLrgSolid-Yr1'!G42 -> 40 | H42: 240 | I42: 24 | J42: 12 | K42: =(H42*'Base Data'!$C$5)+(I42*'Base Data'!$C$6)+(J42*'Base Data'!$C$7) -> 26106.6 | L42: 0 | M42: 0 | N42: a, c
A43: E. Personnel Training | B43: na
A44: F. Time for Audits | B44: na
A45: Subtotal Recordkeeping | H45: =SUM(H37:H44) -> 1960 | I45: =SUM(I37:I44) -> 196 | J45: 98 | K45: 213203.9 | L45: 0 | M45: 0
A46: Totals | H46: =SUM(H31,H45) -> 3356 | I46: =SUM(I31,I45) -> 335.6 | J46: 167.8 | K46: 365057.29 | L46: 122800 | M46: 40
A47: a The total number of new large solid fuel boilers estimated in the first 3 years of this rule is 60. In order to calculate a per year estimate of the number of boilers required to meet these rule requirements, the number of projected boilers is divided by 3, or 20 boilers per year. Assuming 2 unit per facility, 10 new facilities will be subject per year.
A48: b A one-time requirement.
A49: c All projected large solid fuel units expected to comply through stack testing instead of the fuel testing compliance option. Only units less than 30 mmBtu/hr that are not subject to PM limits under the NSPS (40 CFR part 60 subparts Db, Dc) will incur additional testing, monitoring, recordkeeping and reporting costs under this rule.
A50: d Subsequent annual testing in year 2 are based on the number of sources that had an initial test in year 1 of this ICR. Subsequent semi-annual compliance reporting and recordkeeping requirements are based on the number of new sources in years 1 and 2 of this ICR.
A51: e If you demonstrate compliance with any applicable emission limit through stack testing, you must develop a site-specific monitoring plan. All new large solid fuel units are expected to develop this plan.
A52: f All new coal units greater than 10 mmBtu/hr are expected to install fabric filters and equipped with bag leak detection (BLD) systems instead of opacity monitors. Since biomass units are expected to meet PM limits with an ESP, an opacity monitor is required instead of a BLD. There are no new large coal units projected to be installed.
A53: g Only coal boilers are subject to numerical mercury and CO limits and are required to test. No new large coal units are projected.

Sheet Fac-NewLrgSolid-Yr3
A1: Table 3.C. Annual Respondent Burden and Cost of Recordkeeping and Reporting Requirements for the National Emission Standards
A2: for Hazardous Air Pollutants (NESHAP) for Industrial, Commercial, and Institutional Boilers and Process Heaters - Year 3, New Large Solid Fuel Units
A3: Burden Item | B3: (A) Respondent Hours per Occurrence (Technical hours) | C3: (B) Stack Testing and Fuel Analysis Cost Per Occurrence | D3: (C) Non-Labor Costs Per Occurrence | E3: (D) Number of Occurrences Per Respondent Per Year | F3: (E) Technical Hours per Respondent Per Year (A X D) | G3: (F) Number of Respondents Per Year | H3: (G) Technical Hours per Year @ $98.20 (F X G) | I3: (H) Clerical Hours per Year @ $48.53 (H X 0.1) | J3: (I) Management Hours per Year @ $114.49 (H X .05) | K3: (J) Total Labor Costs Per Year | L3: (K) Total Non-Labor Annual Cost | M3: (L) Total Number of Responses per Year (D X F) | N3: Footnotes | O3: Annualized Capital/start-up O&M
A4: 1. Applications | B4: na
A5: 2. Surveys and Studies | B5: na
A6: 3. Reporting Requirements
A7: A. Read and Understand Rule Requirements | B7: 40 | C7: 0 | D7: 0 | E7: 1 | F7: =B7*E7 -> 40 | G7: =ROUND(SUM('Base Data'!$H$40:$H$41)/3,0) -> 10 | H7: =F7*G7 -> 400 | I7: =H7*0.1 -> 40 | J7: =H7*0.05 -> 20 | K7: =(H7*'Base Data'!$C$5)+(I7*'Base Data'!$C$6)+(J7*'Base Data'!$C$7) -> 43511 | L7: 0 | M7: 0 | N7: a, b
A8: B. Required Activities
A9: 1. Initial Stack Test and Report (for PM) | B9: 12 | C9: 8000 | D9: 0 | E9: 1 | F9: =B9*E9 -> 12 | G9: =ROUNDDOWN((SUM('Base Data'!$D$40:$D$41)-SUM('Base Data'!$E$40:$E$41))/3,0) -> 3 | H9: =F9*G9 -> 36 | I9: =H9*0.1 -> 3.6 | J9: =H9*0.05 -> 1.8 | K9: =(H9*'Base Data'!$C$5)+(I9*'Base Data'!$C$6)+(J9*'Base Data'!$C$7) -> 3915.99 | L9: =C9*E9*G9 -> 24000 | M9: 0 | N9: b, c
A10: 2. Initial Stack Test and Report (for Hg) | B10: 12 | C10: 5000 | D10: 0 | E10: 1 | F10: =B10*E10 -> 12 | G10: 0 | H10: 0 | I10: 0 | J10: =H10*0.05 -> 0 | K10: =(H10*'Base Data'!$C$5)+(I10*'Base Data'!$C$6)+(J10*'Base Data'!$C$7) -> 0 | L10: =C10*E10*G10 -> 0 | M10: 0 | N10: b, c, g
A11: 3. Initial Stack Test and Report (for CO) | B11: 12 | C11: 6000 | D11: 0 | E11: 1 | F11: 12 | G11: 0 | H11: 0 | I11: 0 | J11: =H11*0.05 -> 0 | K11: =(H11*'Base Data'!$C$5)+(I11*'Base Data'!$C$6)+(J11*'Base Data'!$C$7) -> 0 | L11: 0 | M11: 0 | N11: b, g
A12: 4. Annual Stack Test and Report (for PM) | B12: 12 | C12: 8000 | D12: 0 | E12: 1 | F12: 12 | G12: ='Fac-NewLrgSolid-Yr2'!G9+'Fac-NewLrgSolid-Yr2'!G12 -> 8 | H12: 96 | I12: 9.6 | J12: 4.8 | K12: =(H12*'Base Data'!$C$5)+(I12*'Base Data'!$C$6)+(J12*'Base Data'!$C$7) -> 10442.64 | L12: =C12*E12*G12 -> 64000 | M12: 0 | N12: d
A13: 5. Annual Stack Test and Report (for Hg) | B13: 12 | C13: 5000 | D13: 0 | E13: 1 | F13: 12 | G13: ='Fac-NewLrgSolid-Yr2'!G10+'Fac-NewLrgSolid-Yr2'!G13 -> 0 | H13: 0 | I13: 0 | J13: 0 | K13: =(H13*'Base Data'!$C$5)+(I13*'Base Data'!$C$6)+(J13*'Base Data'!$C$7) -> 0 | L13: =C13*E13*G13 -> 0 | M13: 0 | N13: b, c, g
A14: 6. Annual Stack Test and Report (for CO) | B14: 12 | C14: 6000 | D14: 0 | E14: 1 | F14: 12 | G14: ='Fac-NewLrgSolid-Yr2'!G11+'Fac-NewLrgSolid-Yr2'!G14 -> 0 | H14: 0 | I14: 0 | J14: 0 | K14: =(H14*'Base Data'!$C$5)+(I14*'Base Data'!$C$6)+(J14*'Base Data'!$C$7) -> 0 | L14: =C14*E14*G14 -> 0 | M14: 0 | N14: d, g
A15: 7. Initial Fuel Analysis for Mercury Content | B15: 5 | C15: 200 | D15: 0 | E15: 1 | F15: 5 | G15: 0 | H15: 0 | I15: =H15*0.1 -> 0 | J15: 0 | K15: =(H15*'Base Data'!$C$5)+(I15*'Base Data'!$C$6)+(J15*'Base Data'!$C$7) -> 0 | L15: 0 | M15: 0 | N15: b, c
A16: 8. Monthly Fuel Analysis for Mercury Content | B16: 5 | C16: 200 | D16: 0 | E16: 12 | F16: 60 | G16: 0 | H16: 0 | I16: =H16*0.1 -> 0 | J16: 0 | K16: =(H16*'Base Data'!$C$5)+(I16*'Base Data'!$C$6)+(J16*'Base Data'!$C$7) -> 0 | L16: =C16*E16*G16 -> 0 | M16: 0 | N16: c, d
A17: 9. Continuous Parameter Monitoring
A18: Establish Site-specific monitoring plan (all) | B18: 40 | C18: 0 | D18: 0 | E18: 1 | F18: 40 | G18: =$G$9 -> 3 | H18: =F18*G18 -> 120 | I18: 12 | J18: =H18*0.05 -> 6 | K18: =(H18*'Base Data'!$C$5)+(I18*'Base Data'!$C$6)+(J18*'Base Data'!$C$7) -> 13053.3 | L18: 0 | M18: 0 | N18: e
A19: Opacity
A20: a) initial | B20: 10 | C20: 0 | D20: 43100 | E20: 1 | F20: 10 | G20: =$G$9 -> 3 | H20: =F20*G20 -> 30 | I20: 3 | J20: =H20*0.05 -> 1.5 | K20: =(H20*'Base Data'!$C$5)+(I20*'Base Data'!$C$6)+(J20*'Base Data'!$C$7) -> 3263.325 | L20: =D20*E20*G20 -> 129300 | M20: 0 | N20: f
A21: b) annual | B21: 10 | C21: 0 | D21: 14700 | E21: 1 | F21: 10 | G21: =$G$9 -> 3 | H21: =F21*G21 -> 30 | I21: 3 | J21: =H21*0.05 -> 1.5 | K21: =(H21*'Base Data'!$C$5)+(I21*'Base Data'!$C$6)+(J21*'Base Data'!$C$7) -> 3263.325 | L21: =D21*E21*G21 -> 44100 | M21: 0 | N21: f
A22: Bag Leak Detection System Operation (all sources that have fabric filters)
A23: a) initial | B23: 10 | C23: 0 | D23: 25500 | E23: 1 | F23: =B23*E23 -> 10 | G23: 0 | H23: =F23*G23 -> 0 | I23: 0 | J23: =H23*0.05 -> 0 | K23: =(H23*'Base Data'!$C$5)+(I23*'Base Data'!$C$6)+(J23*'Base Data'!$C$7) -> 0 | L23: =D23*E23*G23 -> 0 | M23: 0 | N23: f
A24: b) annual | B24: 10 | C24: 0 | D24: 9700 | E24: 1 | F24: =B24*E24 -> 10 | G24: ='Fac-NewLrgSolid-Yr2'!G23+'Fac-NewLrgSolid-Yr2'!G24 -> 0 | H24: =F24*G24 -> 0 | I24: 0 | J24: =H24*0.05 -> 0 | K24: =(H24*'Base Data'!$C$5)+(I24*'Base Data'!$C$6)+(J24*'Base Data'!$C$7) -> 0 | L24: =D24*E24*G24 -> 0 | M24: 0 | N24: f
A25: C. Create Information | B25: na
A26: D. Gather Information | B26: na
A27: E. Report Preparation
A28: 1) Initial Notification that Source is Subject | B28: 2 | C28: 0 | D28: 0 | E28: 1 | F28: 2 | G28: =ROUND(SUM('Base Data'!$H$40:$H$41)/3,0) -> 10 | H28: =F28*G28 -> 20 | I28: 2 | J28: =H28*0.05 -> 1 | K28: =(H28*'Base Data'!$C$5)+(I28*'Base Data'!$C$6)+(J28*'Base Data'!$C$7) -> 2175.55 | L28: 0 | M28: =E28*G28 -> 10 | N28: a, b
A29: 2) Notification of Compliance Status | B29: 8 | C29: 0 | D29: 0 | E29: 1 | F29: 8 | G29: =ROUND(SUM('Base Data'!$H$40:$H$41)/3,0) -> 10 | H29: =F29*G29 -> 80 | I29: 8 | J29: =H29*0.05 -> 4 | K29: =(H29*'Base Data'!$C$5)+(I29*'Base Data'!$C$6)+(J29*'Base Data'!$C$7) -> 8702.2 | L29: 0 | M29: =E29*G29 -> 10 | N29: a, b
A30: 3) Annual Compliance Report | B30: 30 | C30: 0 | D30: 0 | E30: 1 | F30: 30 | G30: =ROUND(SUM('Base Data'!$H$40:$H$41)/3,0)+'Fac-NewLrgSolid-Yr2'!G30 -> 30 | H30: =F30*G30 -> 900 | I30: 90 | J30: =H30*0.05 -> 45 | K30: =(H30*'Base Data'!$C$5)+(I30*'Base Data'!$C$6)+(J30*'Base Data'!$C$7) -> 97899.75 | L30: 0 | M30: =E30*G30 -> 30 | N30: a
A31: Reporting Subtotal | H31: =SUM(H4:H18,H21:H30) -> 1682 | I31: =SUM(I4:I18,I21:I30) -> 168.2 | J31: 84.1 | K31: =SUM(K4:K18,K21:K30) -> 182963.755 | L31: =SUM(L4:L18,L21:L30) -> 132100 | M31: =SUM(M28:M30) -> 50 | O31: =SUM(L9:L16,L21,#REF!,L24) ->  | P31: =SUM(L20,#REF!,L23) -> 
A32: 4. Recordkeeping Requirements
A33: A. Read Instructions | B33: see 3.A
A34: B. Implement Activities | B34: na
A35: C. Develop Record System | B35: na
A36: D. Record Information
A37: 1) Records of Operating Parameter Values | B37: 20 | C37: 0 | D37: 0 | E37: 1 | F37: 20 | G37: =ROUND(SUM('Base Data'!$D$40:$D$41),0) -> 60 | H37: =F37*G37 -> 1200 | I37: 120 | J37: =H37*0.05 -> 60 | K37: =(H37*'Base Data'!$C$5)+(I37*'Base Data'!$C$6)+(J37*'Base Data'!$C$7) -> 130533 | L37: 0 | M37: 0 | N37: a, c
A38: 2) Records of Deviations | B38: 15 | C38: 0 | D38: 0 | E38: 1 | F38: 15 | G38: =ROUND(SUM('Base Data'!$D$40:$D$41),0) -> 60 | H38: 900 | I38: 90 | J38: 45 | K38: =(H38*'Base Data'!$C$5)+(I38*'Base Data'!$C$6)+(J38*'Base Data'!$C$7) -> 97899.75 | L38: 0 | M38: 0 | N38: a, c
A39: 3) Records of Stack Tests | B39: 2 | C39: 0 | D39: 0 | E39: 1 | F39: 2 | G39: =ROUND(SUM('Base Data'!$D$40:$D$41),0) -> 60 | H39: 120 | I39: 12 | J39: 6 | K39: =(H39*'Base Data'!$C$5)+(I39*'Base Data'!$C$6)+(J39*'Base Data'!$C$7) -> 13053.3 | L39: 0 | M39: 0 | N39: a, c
A40: 4) Records of Monitoring Device Calibrations | B40: 2 | C40: 0 | D40: 0 | E40: 1 | F40: 2 | G40: =ROUND(SUM('Base Data'!$D$40:$D$41),0) -> 60 | H40: 120 | I40: 12 | J40: 6 | K40: =(H40*'Base Data'!$C$5)+(I40*'Base Data'!$C$6)+(J40*'Base Data'!$C$7) -> 13053.3 | L40: 0 | M40: 0 | N40: a, c
A41: 5) Records of All Compliance Reports Submitted | B41: 2 | C41: 0 | D41: 0 | E41: 2 | F41: 4 | G41: =ROUND(SUM('Base Data'!$D$40:$D$41),0) -> 60 | H41: 240 | I41: 24 | J41: 12 | K41: =(H41*'Base Data'!$C$5)+(I41*'Base Data'!$C$6)+(J41*'Base Data'!$C$7) -> 26106.6 | L41: 0 | M41: 0 | N41: a, c
A42: 6) Records of Monthly Fuel Use | B42: 0.5 | C42: 0 | D42: 0 | E42: 12 | F42: 6 | G42: =ROUND(SUM('Base Data'!$D$40:$D$41),0) -> 60 | H42: 360 | I42: 36 | J42: 18 | K42: =(H42*'Base Data'!$C$5)+(I42*'Base Data'!$C$6)+(J42*'Base Data'!$C$7) -> 39159.9 | L42: 0 | M42: 0 | N42: a, c
A43: E. Personnel Training | B43: na
A44: F. Time for Audits | B44: na
A45: Subtotal Recordkeeping | H45: =SUM(H37:H44) -> 2940 | I45: =SUM(I37:I44) -> 294 | J45: 147 | K45: 319805.85 | L45: 0 | M45: 0
A46: Totals | H46: =SUM(H31,H45) -> 4622 | I46: =SUM(I31,I45) -> 462.2 | J46: 231.1 | K46: 502769.605 | L46: 132100 | M46: 50
A47: a The total number of new large solid fuel boilers estimated in the first 3 years of this rule is 60. In order to calculate a per year estimate of the number of boilers required to meet these rule requirements, the number of projected boilers is divided by 3, or 20 boilers per year. Assuming 2 unit per facility, 10 new facilities will be subject per year.
A48: b A one-time requirement.
A49: c All projected large solid fuel units expected to comply through stack testing instead of the fuel testing compliance option. Only units less than 30 mmBtu/hr that are not subject to PM limits under the NSPS (40 CFR part 60 subparts Db, Dc) will incur additional testing, monitoring, recordkeeping and reporting costs under this rule.
A50: d Subsequent annual testing in year 2 are based on the number of sources that had an initial test in year 1 of this ICR. Subsequent semi-annual compliance reporting and recordkeeping requirements are based on the number of new sources in years 1 and 2 of this ICR.
A51: e If you demonstrate compliance with any applicable emission limit through stack testing, you must develop a site-specific monitoring plan. All new large solid fuel units are expected to develop this plan.
A52: f All new coal units greater than 10 mmBtu/hr are expected to install fabric filters and equipped with bag leak detection (BLD) systems instead of opacity monitors. Since biomass units are expected to meet PM limits with an ESP, an opacity monitor is required instead of a BLD. There are no new large coal units projected to be installed.
A53: g Only coal boilers are subject to numerical mercury and CO limits and are required to test. No new large coal units are projected.

Sheet Fac-NewLrgLiquid-Yr1
A1: Table 4.A. Annual Respondent Burden and Cost of Recordkeeping and Reporting Requirements for the National Emission Standards
A2: for Hazardous Air Pollutants (NESHAP) for Industrial, Commercial, and Institutional Boilers and Process Heaters - Year 1, New Large Liquid Fuel Units
A3: Burden Item | B3: (A) Respondent Hours per Occurrence (Technical hours) | C3: (B) Stack Testing and Fuel Analysis Cost Per Occurrence | D3: (C) Non-Labor Costs Per Occurrence | E3: (D) Number of Occurrences Per Respondent Per Year | F3: (E) Technical Hours per Respondent Per Year (A X D) | G3: (F) Number of Respondents Per Year | H3: (G) Technical Hours per Year @ $98.20 (F X G) | I3: (H) Clerical Hours per Year @ $48.53 (H X 0.1) | J3: (I) Management Hours per Year @ $114.49 (H X .05) | K3: (J) Total Labor Costs Per Year | L3: (K) Total Non-Labor Annual Cost | M3: (L) Total Number of Responses per Year (D X F) | N3: Footnotes | O3: Annualized Capital/start-up O&M
A4: 1. Applications | B4: na
A5: 2. Surveys and Studies | B5: na
A6: 3. Reporting Requirements
A7: A. Read and Understand Rule Requirements | B7: 40 | C7: 0 | D7: 0 | E7: 1 | F7: =B7*E7 -> 40 | G7: =ROUND('Base Data'!$H$44/3,0) -> 81 | H7: =F7*G7 -> 3240 | I7: =H7*0.1 -> 324 | J7: =H7*0.05 -> 162 | K7: =(H7*'Base Data'!$C$5)+(I7*'Base Data'!$C$6)+(J7*'Base Data'!$C$7) -> 352439.1 | L7: 0 | M7: 0 | N7: a, b
A8: B. Required Activities
A9: 1. Initial Stack Test and Report (for PM) | B9: 12 | C9: 8000 | D9: 0 | E9: 1 | F9: =B9*E9 -> 12 | G9: =ROUND('Base Data'!$D$44/3,0) -> 162 | H9: =F9*G9 -> 1944 | I9: =H9*0.1 -> 194.4 | J9: =H9*0.05 -> 97.2 | K9: =(H9*'Base Data'!$C$5)+(I9*'Base Data'!$C$6)+(J9*'Base Data'!$C$7) -> 211463.46 | L9: =C9*E9*G9 -> 1296000 | M9: 0 | N9: b, c
A10: 2. Annual Stack Test and Report (for PM) | B10: 12 | C10: 8000 | D10: 0 | E10: 1 | F10: =B10*E10 -> 12 | G10: 0 | H10: =F10*G10 -> 0 | I10: 0 | J10: =H10*0.05 -> 0 | K10: =(H10*'Base Data'!$C$5)+(I10*'Base Data'!$C$6)+(J10*'Base Data'!$C$7) -> 0 | L10: =C10*E10*G10 -> 0 | M10: 0 | N10: d
A11: 3. Continuous Parameter Monitoring
A12: Establish Site-specific monitoring plan (all) | B12: 40 | C12: 0 | D12: 0 | E12: 1 | F12: 40 | G12: =ROUND('Base Data'!$H$44/3,0) -> 81 | H12: =F12*G12 -> 3240 | I12: 324 | J12: =H12*0.05 -> 162 | K12: =(H12*'Base Data'!$C$5)+(I12*'Base Data'!$C$6)+(J12*'Base Data'!$C$7) -> 352439.1 | L12: 0 | M12: 0 | N12: e
A13: Opacity
A14: a) initial | B14: 10 | C14: 0 | D14: 43100 | E14: 1 | F14: 10 | G14: =ROUND('Base Data'!$G$50/3,0) -> 147 | H14: =F14*G14 -> 1470 | I14: 147 | J14: =H14*0.05 -> 73.5 | K14: =(H14*'Base Data'!$C$5)+(I14*'Base Data'!$C$6)+(J14*'Base Data'!$C$7) -> 159902.925 | L14: =D14*E14*G14 -> 6335700 | M14: 0
A15: b) annual | B15: 10 | C15: 0 | D15: 14700 | E15: 1 | F15: 10 | G15: =ROUND('Base Data'!$G$50/3,0) -> 147 | H15: =F15*G15 -> 1470 | I15: 147 | J15: =H15*0.05 -> 73.5 | K15: =(H15*'Base Data'!$C$5)+(I15*'Base Data'!$C$6)+(J15*'Base Data'!$C$7) -> 159902.925 | L15: =D15*E15*G15 -> 2160900 | M15: 0
A16: Bag Leak Detection System Operation (all sources that have fabric filters)
A17: a) initial | B17: 10 | C17: 0 | D17: 25500 | E17: 1 | F17: =B17*E17 -> 10 | G17: =ROUND('Base Data'!$C$49/3,0) -> 15 | H17: =F17*G17 -> 150 | I17: 15 | J17: =H17*0.05 -> 7.5 | K17: =(H17*'Base Data'!$C$5)+(I17*'Base Data'!$C$6)+(J17*'Base Data'!$C$7) -> 16316.625 | L17: =D17*E17*G17 -> 382500 | M17: 0
A18: b) annual | B18: 10 | C18: 0 | D18: 9700 | E18: 1 | F18: =B18*E18 -> 10 | G18: =ROUND('Base Data'!$C$49/3,0) -> 15 | H18: =F18*G18 -> 150 | I18: 15 | J18: =H18*0.05 -> 7.5 | K18: =(H18*'Base Data'!$C$5)+(I18*'Base Data'!$C$6)+(J18*'Base Data'!$C$7) -> 16316.625 | L18: =D18*E18*G18 -> 145500 | M18: 0
A19: C. Create Information | B19: na
A20: D. Gather Information | B20: na
A21: E. Report Preparation
A22: 1) Initial Notification that Source is Subject | B22: 2 | C22: 0 | D22: 0 | E22: 1 | F22: 2 | G22: =ROUND('Base Data'!$H$44/3,0) -> 81 | H22: =F22*G22 -> 162 | I22: 16.2 | J22: =H22*0.05 -> 8.1 | K22: =(H22*'Base Data'!$C$5)+(I22*'Base Data'!$C$6)+(J22*'Base Data'!$C$7) -> 17621.955 | L22: 0 | M22: =E22*G22 -> 81 | N22: a, b
A23: 2) Notification of Compliance Status | B23: 8 | C23: 0 | D23: 0 | E23: 1 | F23: 8 | G23: =ROUND('Base Data'!$H$44/3,0) -> 81 | H23: =F23*G23 -> 648 | I23: 64.8 | J23: =H23*0.05 -> 32.4 | K23: =(H23*'Base Data'!$C$5)+(I23*'Base Data'!$C$6)+(J23*'Base Data'!$C$7) -> 70487.82 | L23: 0 | M23: =E23*G23 -> 81 | N23: a, b
A24: 3) Annual Compliance Report | B24: 30 | C24: 0 | D24: 0 | E24: 1 | F24: 30 | G24: =ROUND('Base Data'!$H$44/3,0) -> 81 | H24: =F24*G24 -> 2430 | I24: 243 | J24: =H24*0.05 -> 121.5 | K24: =(H24*'Base Data'!$C$5)+(I24*'Base Data'!$C$6)+(J24*'Base Data'!$C$7) -> 264329.325 | L24: 0 | M24: =E24*G24 -> 81 | N24: a
A25: Reporting Subtotal | H25: =SUM(H7:H13,H18:H24,H15) -> 13284 | I25: =SUM(I7:I13,I18:I24,I15) -> 1328.4 | J25: 664.2 | K25: =SUM(K7:K13,K18:K24,K15) -> 1445000.31 | L25: =SUM(L7:L13,L18:L24,L15) -> 3602400 | M25: =SUM(M22:M24) -> 243 | O25: =SUM(L9:L10,L15,#REF!,L18) ->  | P25: =SUM(#REF!,L17,L14) -> 
A26: 4. Recordkeeping Requirements
A27: A. Read Instructions | B27: see 3.A
A28: B. Implement Activities | B28: na
A29: C. Develop Record System | B29: na
A30: D. Record Information
A31: 1) Records of Operating Parameter Values | B31: 20 | C31: 0 | D31: 0 | E31: 1 | F31: 20 | G31: =ROUND('Base Data'!$D$44/3,0) -> 162 | H31: =F31*G31 -> 3240 | I31: 324 | J31: =H31*0.05 -> 162 | K31: =(H31*'Base Data'!$C$5)+(I31*'Base Data'!$C$6)+(J31*'Base Data'!$C$7) -> 352439.1 | L31: 0 | M31: 0 | N31: a
A32: 2) Records of Deviations | B32: 15 | C32: 0 | D32: 0 | E32: 1 | F32: 15 | G32: =ROUND('Base Data'!$D$44/3,0) -> 162 | H32: 2430 | I32: 243 | J32: 121.5 | K32: =(H32*'Base Data'!$C$5)+(I32*'Base Data'!$C$6)+(J32*'Base Data'!$C$7) -> 264329.325 | L32: 0 | M32: 0 | N32: a
A33: 3) Records of Stack Tests | B33: 2 | C33: 0 | D33: 0 | E33: 1 | F33: 2 | G33: =ROUND('Base Data'!$D$44/3,0) -> 162 | H33: 324 | I33: 32.4 | J33: 16.2 | K33: =(H33*'Base Data'!$C$5)+(I33*'Base Data'!$C$6)+(J33*'Base Data'!$C$7) -> 35243.91 | L33: 0 | M33: 0 | N33: a
A34: 4) Records of Monitoring Device Calibrations | B34: 2 | C34: 0 | D34: 0 | E34: 1 | F34: 2 | G34: =ROUND('Base Data'!$D$44/3,0) -> 162 | H34: 324 | I34: 32.4 | J34: 16.2 | K34: =(H34*'Base Data'!$C$5)+(I34*'Base Data'!$C$6)+(J34*'Base Data'!$C$7) -> 35243.91 | L34: 0 | M34: 0 | N34: a
A35: 5) Records of All Compliance Reports Submitted | B35: 2 | C35: 0 | D35: 0 | E35: 2 | F35: 4 | G35: =ROUND('Base Data'!$D$44/3,0) -> 162 | H35: 648 | I35: 64.8 | J35: 32.4 | K35: =(H35*'Base Data'!$C$5)+(I35*'Base Data'!$C$6)+(J35*'Base Data'!$C$7) -> 70487.82 | L35: 0 | M35: 0 | N35: a
A36: 6) Records of Monthly Fuel Use | B36: 0.5 | C36: 0 | D36: 0 | E36: 12 | F36: 6 | G36: =ROUND('Base Data'!$D$44/3,0) -> 162 | H36: 972 | I36: 97.2 | J36: 48.6 | K36: =(H36*'Base Data'!$C$5)+(I36*'Base Data'!$C$6)+(J36*'Base Data'!$C$7) -> 105731.73 | L36: 0 | M36: 0 | N36: a
A37: E. Personnel Training | B37: na | G37: .
A38: F. Time for Audits | B38: na
A39: Subtotal Recordkeeping | H39: =SUM(H26:H38) -> 7938 | I39: =SUM(I26:I38) -> 793.8 | J39: 396.9 | K39: =SUM(K31:K38) -> 863475.795 | L39: =SUM(L31:L38) -> 0 | M39: =SUM(M12:M18,M26:M38) -> 0
A40: Totals | H40: =SUM(H25,H39) -> 21222 | I40: =SUM(I25,I39) -> 2122.2 | J40: 1061.1 | K40: 2308476.105 | L40: 3602400 | M40: 243
A41: a The total number of new large liquid fuel boilers estimated in the first 3 years of this rule is 487. In order to calculate a per year estimate of the number of boilers required to meet these rule requirements, the number of projected boilers is divided by 3, or 162.3 rounded to 162 boilers per year. 162 boilers will be accounted for in year 1 and 2 and 163 in year 3. Assuming 2 unit per facility, 81 new facilities will be subject in year 1 and 2 and 82 facilities in year 3.
A42: b A one-time requirement.
A43: c All projected large liquid fuel units are expected to comply with mercury limits through the fuel testing compliance option instead of stack testing, see note a for the derivation of the number of units per year.
A44: d No annual test and reporting burden is shown in year 1 as this is the same year as the initial test and report.
A45: e If you demonstrate compliance with any applicable emission limit through stack testing, you must develop a site-specific monitoring plan. All new large liquid fuel units are expected to develop this plan.

Sheet Fac-NewLrgLiquid-Yr2
A1: Table 4.B. Annual Respondent Burden and Cost of Recordkeeping and Reporting Requirements for the National Emission Standards
A2: for Hazardous Air Pollutants (NESHAP) for Industrial, Commercial, and Institutional Boilers and Process Heaters - Year 2, New Large Liquid Fuel Units
A3: Burden Item | B3: (A) Respondent Hours per Occurrence (Technical hours) | C3: (B) Stack Testing and Fuel Analysis Cost Per Occurrence | D3: (C) Non-Labor Costs Per Occurrence | E3: (D) Number of Occurrences Per Respondent Per Year | F3: (E) Technical Hours per Respondent Per Year (A X D) | G3: (F) Number of Respondents Per Year | H3: (G) Technical Hours per Year @ $98.20 (F X G) | I3: (H) Clerical Hours per Year @ $48.53 (H X 0.1) | J3: (I) Management Hours per Year @ $114.49 (H X .05) | K3: (J) Total Labor Costs Per Year | L3: (K) Total Non-Labor Annual Cost | M3: (L) Total Number of Responses per Year (D X F) | N3: Footnotes | O3: Annualized Capital/start-up O&M
A4: 1. Applications | B4: na
A5: 2. Surveys and Studies | B5: na
A6: 3. Reporting Requirements
A7: A. Read and Understand Rule Requirements | B7: 40 | C7: 0 | D7: 0 | E7: 1 | F7: =B7*E7 -> 40 | G7: =ROUND('Base Data'!$H$44/3,0) -> 81 | H7: =F7*G7 -> 3240 | I7: =H7*0.1 -> 324 | J7: =H7*0.05 -> 162 | K7: =(H7*'Base Data'!$C$5)+(I7*'Base Data'!$C$6)+(J7*'Base Data'!$C$7) -> 352439.1 | L7: =C7*E7*G7 -> 0 | M7: 0 | N7: a, b
A8: B. Required Activities
A9: 1. Initial Stack Test and Report (for PM) | B9: 12 | C9: 8000 | D9: 0 | E9: 1 | F9: =B9*E9 -> 12 | G9: =ROUND('Base Data'!$D$44/3,0) -> 162 | H9: =F9*G9 -> 1944 | I9: =H9*0.1 -> 194.4 | J9: =H9*0.05 -> 97.2 | K9: =(H9*'Base Data'!$C$5)+(I9*'Base Data'!$C$6)+(J9*'Base Data'!$C$7) -> 211463.46 | L9: =C9*E9*G9 -> 1296000 | M9: 0 | N9: b, c
A10: 2. Annual Stack Test and Report (for PM) | B10: 12 | C10: 8000 | D10: 0 | E10: 1 | F10: =B10*E10 -> 12 | G10: ='Fac-NewLrgLiquid-Yr1'!G9 -> 162 | H10: =F10*G10 -> 1944 | I10: 194.4 | J10: =H10*0.05 -> 97.2 | K10: =(H10*'Base Data'!$C$5)+(I10*'Base Data'!$C$6)+(J10*'Base Data'!$C$7) -> 211463.46 | L10: =(C10+D10)*E10*G10 -> 1296000 | M10: 0 | N10: d
A11: 3. Continuous Parameter Monitoring
A12: Establish Site-specific monitoring plan (all) | B12: 40 | C12: 0 | D12: 0 | E12: 1 | F12: 40 | G12: =ROUND('Base Data'!$H$44/3,0) -> 81 | H12: =F12*G12 -> 3240 | I12: 324 | J12: =H12*0.05 -> 162 | K12: =(H12*'Base Data'!$C$5)+(I12*'Base Data'!$C$6)+(J12*'Base Data'!$C$7) -> 352439.1 | L12: 0 | M12: 0 | N12: e
A13: Opacity
A14: a) initial | B14: 10 | C14: 0 | D14: 43100 | E14: 1 | F14: 10 | G14: =ROUND('Base Data'!$G$50/3,0) -> 147 | H14: =F14*G14 -> 1470 | I14: 147 | J14: =H14*0.05 -> 73.5 | K14: =(H14*'Base Data'!$C$5)+(I14*'Base Data'!$C$6)+(J14*'Base Data'!$C$7) -> 159902.925 | L14: =D14*E14*G14 -> 6335700 | M14: 0
A15: b) annual | B15: 10 | C15: 0 | D15: 14700 | E15: 1 | F15: 10 | G15: =$G$14+'Fac-NewLrgLiquid-Yr1'!$G$15 -> 294 | H15: =F15*G15 -> 2940 | I15: 294 | J15: =H15*0.05 -> 147 | K15: =(H15*'Base Data'!$C$5)+(I15*'Base Data'!$C$6)+(J15*'Base Data'!$C$7) -> 319805.85 | L15: =D15*E15*G15 -> 4321800 | M15: 0
A16: Bag Leak Detection System Operation (all sources that have fabric filters)
A17: a) initial | B17: 10 | C17: 0 | D17: 25500 | E17: 1 | F17: =B17*E17 -> 10 | G17: =ROUND('Base Data'!$C$49/3,0) -> 15 | H17: =F17*G17 -> 150 | I17: 15 | J17: =H17*0.05 -> 7.5 | K17: =(H17*'Base Data'!$C$5)+(I17*'Base Data'!$C$6)+(J17*'Base Data'!$C$7) -> 16316.625 | L17: =D17*E17*G17 -> 382500 | M17: 0
A18: b) annual | B18: 10 | C18: 0 | D18: 9700 | E18: 1 | F18: =B18*E18 -> 10 | G18: =$G$17+'Fac-NewLrgLiquid-Yr1'!$G$18 -> 30 | H18: =F18*G18 -> 300 | I18: 30 | J18: =H18*0.05 -> 15 | K18: =(H18*'Base Data'!$C$5)+(I18*'Base Data'!$C$6)+(J18*'Base Data'!$C$7) -> 32633.25 | L18: =D18*E18*G18 -> 291000 | M18: 0
A19: C. Create Information | B19: na
A20: D. Gather Information | B20: na
A21: E. Report Preparation
A22: 1) Initial Notification that Source is Subject | B22: 2 | C22: 0 | D22: 0 | E22: 1 | F22: 2 | G22: =ROUND('Base Data'!$H$44/3,0) -> 81 | H22: =F22*G22 -> 162 | I22: 16.2 | J22: =H22*0.05 -> 8.1 | K22: =(H22*'Base Data'!$C$5)+(I22*'Base Data'!$C$6)+(J22*'Base Data'!$C$7) -> 17621.955 | L22: 0 | M22: =E22*G22 -> 81 | N22: a, b
A23: 2) Notification of Compliance Status | B23: 8 | C23: 0 | D23: 0 | E23: 1 | F23: 8 | G23: =ROUND('Base Data'!$H$44/3,0) -> 81 | H23: =F23*G23 -> 648 | I23: 64.8 | J23: =H23*0.05 -> 32.4 | K23: =(H23*'Base Data'!$C$5)+(I23*'Base Data'!$C$6)+(J23*'Base Data'!$C$7) -> 70487.82 | L23: 0 | M23: =E23*G23 -> 81 | N23: a, b
A24: 3) Annual Compliance Report | B24: 30 | C24: 0 | D24: 0 | E24: 1 | F24: 30 | G24: =ROUND('Base Data'!$H$44/3,0)+'Fac-NewLrgLiquid-Yr1'!G24 -> 162 | H24: =F24*G24 -> 4860 | I24: 486 | J24: =H24*0.05 -> 243 | K24: =(H24*'Base Data'!$C$5)+(I24*'Base Data'!$C$6)+(J24*'Base Data'!$C$7) -> 528658.65 | L24: 0 | M24: =E24*G24 -> 162 | N24: a
A25: Reporting Subtotal | H25: =SUM(H7:H13,H18:H24,H15) -> 19278 | I25: =SUM(I7:I13,I18:I24,I15) -> 1927.8 | J25: 963.9 | K25: =SUM(K7:K13,K18:K24,K15) -> 2097012.645 | L25: =SUM(L7:L13,L18:L24,L15) -> 7204800 | M25: =SUM(M22:M24) -> 324 | O25: =SUM(#REF!,#REF!,#REF!,#REF!) ->  | P25: =SUM(#REF!,#REF!,#REF!) -> 
A26: 4. Recordkeeping Requirements
A27: A. Read Instructions | B27: see 3.A
A28: B. Implement Activities | B28: na
A29: C. Develop Record System | B29: na
A30: D. Record Information
A31: 1) Records of Operating Parameter Values | B31: 20 | C31: 0 | D31: 0 | E31: 1 | F31: 20 | G31: =ROUND('Base Data'!$D$44/3,0)+'Fac-NewLrgLiquid-Yr1'!G31 -> 324 | H31: =F31*G31 -> 6480 | I31: 648 | J31: =H31*0.05 -> 324 | K31: =(H31*'Base Data'!$C$5)+(I31*'Base Data'!$C$6)+(J31*'Base Data'!$C$7) -> 704878.2 | L31: 0 | M31: 0 | N31: a
A32: 2) Records of Deviations | B32: 15 | C32: 0 | D32: 0 | E32: 1 | F32: 15 | G32: =ROUND('Base Data'!$D$44/3,0)+'Fac-NewLrgLiquid-Yr1'!G32 -> 324 | H32: 4860 | I32: 486 | J32: 243 | K32: =(H32*'Base Data'!$C$5)+(I32*'Base Data'!$C$6)+(J32*'Base Data'!$C$7) -> 528658.65 | L32: 0 | M32: 0 | N32: a
A33: 3) Records of Stack Tests | B33: 2 | C33: 0 | D33: 0 | E33: 1 | F33: 2 | G33: =ROUND('Base Data'!$D$44/3,0)+'Fac-NewLrgLiquid-Yr1'!G33 -> 324 | H33: 648 | I33: 64.8 | J33: 32.4 | K33: =(H33*'Base Data'!$C$5)+(I33*'Base Data'!$C$6)+(J33*'Base Data'!$C$7) -> 70487.82 | L33: 0 | M33: 0 | N33: a
A34: 4) Records of Monitoring Device Calibrations | B34: 2 | C34: 0 | D34: 0 | E34: 1 | F34: 2 | G34: =ROUND('Base Data'!$D$44/3,0)+'Fac-NewLrgLiquid-Yr1'!G34 -> 324 | H34: 648 | I34: 64.8 | J34: 32.4 | K34: =(H34*'Base Data'!$C$5)+(I34*'Base Data'!$C$6)+(J34*'Base Data'!$C$7) -> 70487.82 | L34: 0 | M34: 0 | N34: a
A35: 5) Records of All Compliance Reports Submitted | B35: 2 | C35: 0 | D35: 0 | E35: 2 | F35: 4 | G35: =G24+'Fac-NewLrgLiquid-Yr1'!G35 -> 324 | H35: 1296 | I35: 129.6 | J35: 64.8 | K35: =(H35*'Base Data'!$C$5)+(I35*'Base Data'!$C$6)+(J35*'Base Data'!$C$7) -> 140975.64 | L35: 0 | M35: 0 | N35: a
A36: 6) Records of Monthly Fuel Use | B36: 0.5 | C36: 0 | D36: 0 | E36: 12 | F36: 6 | G36: =ROUND('Base Data'!$D$44/3,0)+'Fac-NewLrgLiquid-Yr1'!G36 -> 324 | H36: 1944 | I36: 194.4 | J36: 97.2 | K36: =(H36*'Base Data'!$C$5)+(I36*'Base Data'!$C$6)+(J36*'Base Data'!$C$7) -> 211463.46 | L36: 0 | M36: 0 | N36: a
A37: E. Personnel Training | B37: na | G37: .
A38: F. Time for Audits | B38: na
A39: Subtotal Recordkeeping | H39: =SUM(H26:H38) -> 15876 | I39: =SUM(I26:I38) -> 1587.6 | J39: 793.8 | K39: =SUM(K31:K38) -> 1726951.59 | L39: =SUM(L31:L38) -> 0 | M39: =SUM(M12:M18,M26:M38) -> 0
A40: Totals | H40: =SUM(H25,H39) -> 35154 | I40: =SUM(I25,I39) -> 3515.4 | J40: 1757.7 | K40: 3823964.235 | L40: 7204800 | M40: 324
A41: a The total number of new large liquid fuel boilers estimated in the first 3 years of this rule is 487. In order to calculate a per year estimate of the number of boilers required to meet these rule requirements, the number of projected boilers is divided by 3, or 162.3 rounded to 162 boilers per year. 162 boilers will be accounted for in year 1 and 2 and 163 in year 3. Assuming 2 unit per facility, 81 new facilities will be subject in year 1 and 2 and 82 facilities in year 3.
A42: b A one-time requirement.
A43: c All projected large liquid fuel units are expected to comply with mercury limits through the fuel testing compliance option instead of stack testing, see note a for the derivation of the number of units per year.
A44: d Subsequent annual testing in year 2 are based on the number of sources that had an initial test in year 1 of this ICR. Subsequent semi-annual compliance reporting and recordkeeping requirements are based on the number of new sources in years 1 and 2 of this ICR.
A45: e If you demonstrate compliance with any applicable emission limit through stack testing, you must develop a site-specific monitoring plan. All new large liquid fuel units are expected to develop this plan.

Sheet Fac-NewLrgLiquid-Yr3
A1: Table 4.C. Annual Respondent Burden and Cost of Recordkeeping and Reporting Requirements for the National Emission Standards
A2: for Hazardous Air Pollutants (NESHAP) for Industrial, Commercial, and Institutional Boilers and Process Heaters - Year 3, New Large Liquid Fuel Units
A3: Burden Item | B3: (A) Respondent Hours per Occurrence (Technical hours) | C3: (B) Stack Testing and Fuel Analysis Cost Per Occurrence | D3: (C) Non-Labor Costs Per Occurrence | E3: (D) Number of Occurrences Per Respondent Per Year | F3: (E) Technical Hours per Respondent Per Year (A X D) | G3: (F) Number of Respondents Per Year | H3: (G) Technical Hours per Year @ $98.20 (F X G) | I3: (H) Clerical Hours per Year @ $48.53 (H X 0.1) | J3: (I) Management Hours per Year @ $114.49 (H X .05) | K3: (J) Total Labor Costs Per Year | L3: (K) Total Non-Labor Annual Cost | M3: (L) Total Number of Responses per Year (D X F) | N3: Footnotes | O3: Annualized Capital/start-up O&M
A4: 1. Applications | B4: na
A5: 2. Surveys and Studies | B5: na
A6: 3. Reporting Requirements
A7: A. Read and Understand Rule Requirements | B7: 40 | C7: 0 | D7: 0 | E7: 1 | F7: =B7*E7 -> 40 | G7: =ROUND('Base Data'!$H$44/3,0)+1 -> 82 | H7: =F7*G7 -> 3280 | I7: =H7*0.1 -> 328 | J7: =H7*0.05 -> 164 | K7: =(H7*'Base Data'!$C$5)+(I7*'Base Data'!$C$6)+(J7*'Base Data'!$C$7) -> 356790.2 | L7: 0 | M7: 0 | N7: a, b
A8: B. Required Activities
A9: 1. Initial Stack Test and Report (for PM) | B9: 12 | C9: 8000 | D9: 0 | E9: 1 | F9: =B9*E9 -> 12 | G9: =ROUND('Base Data'!$D$44/3,0)+1 -> 163 | H9: =F9*G9 -> 1956 | I9: =H9*0.1 -> 195.6 | J9: =H9*0.05 -> 97.8 | K9: =(H9*'Base Data'!$C$5)+(I9*'Base Data'!$C$6)+(J9*'Base Data'!$C$7) -> 212768.79 | L9: =C9*E9*G9 -> 1304000 | M9: 0 | N9: b, c
A10: 2. Annual Stack Test and Report (for PM) | B10: 12 | C10: 8000 | D10: 0 | E10: 1 | F10: =B10*E10 -> 12 | G10: ='Fac-NewLrgLiquid-Yr2'!G9+'Fac-NewLrgLiquid-Yr2'!G10 -> 324 | H10: =F10*G10 -> 3888 | I10: 388.8 | J10: =H10*0.05 -> 194.4 | K10: =(H10*'Base Data'!$C$5)+(I10*'Base Data'!$C$6)+(J10*'Base Data'!$C$7) -> 422926.92 | L10: =C10*E10*G10 -> 2592000 | M10: 0 | N10: d
A11: 3. Continuous Parameter Monitoring
A12: Establish Site-specific monitoring plan (all) | B12: 40 | C12: 0 | D12: 0 | E12: 1 | F12: 40 | G12: =ROUND('Base Data'!$H$44/3,0)+1 -> 82 | H12: =F12*G12 -> 3280 | I12: 328 | J12: =H12*0.05 -> 164 | K12: =(H12*'Base Data'!$C$5)+(I12*'Base Data'!$C$6)+(J12*'Base Data'!$C$7) -> 356790.2 | L12: 0 | M12: 0 | N12: e
A13: Opacity
A14: a) initial | B14: 10 | C14: 0 | D14: 43100 | E14: 1 | F14: 10 | G14: =ROUND('Base Data'!$G$50/3,0) -> 147 | H14: =F14*G14 -> 1470 | I14: 147 | J14: =H14*0.05 -> 73.5 | K14: =(H14*'Base Data'!$C$5)+(I14*'Base Data'!$C$6)+(J14*'Base Data'!$C$7) -> 159902.925 | L14: =D14*E14*G14 -> 6335700 | M14: 0
A15: b) annual | B15: 10 | C15: 0 | D15: 14700 | E15: 1 | F15: 10 | G15: =$G$14+'Fac-NewLrgLiquid-Yr2'!$G$15 -> 441 | H15: =F15*G15 -> 4410 | I15: 441 | J15: =H15*0.05 -> 220.5 | K15: =(H15*'Base Data'!$C$5)+(I15*'Base Data'!$C$6)+(J15*'Base Data'!$C$7) -> 479708.775 | L15: =D15*E15*G15 -> 6482700 | M15: 0
A16: Bag Leak Detection System Operation (all sources that have fabric filters)
A17: a) initial | B17: 10 | C17: 0 | D17: 25500 | E17: 1 | F17: =B17*E17 -> 10 | G17: =ROUND('Base Data'!$C$49/3,0) -> 15 | H17: =F17*G17 -> 150 | I17: 15 | J17: =H17*0.05 -> 7.5 | K17: =(H17*'Base Data'!$C$5)+(I17*'Base Data'!$C$6)+(J17*'Base Data'!$C$7) -> 16316.625 | L17: =D17*E17*G17 -> 382500 | M17: 0
A18: b) annual | B18: 10 | C18: 0 | D18: 9700 | E18: 1 | F18: =B18*E18 -> 10 | G18: =$G$17+'Fac-NewLrgLiquid-Yr2'!$G$18 -> 45 | H18: =F18*G18 -> 450 | I18: 45 | J18: =H18*0.05 -> 22.5 | K18: =(H18*'Base Data'!$C$5)+(I18*'Base Data'!$C$6)+(J18*'Base Data'!$C$7) -> 48949.875 | L18: =D18*E18*G18 -> 436500 | M18: 0
A19: C. Create Information | B19: na
A20: D. Gather Information | B20: na
A21: E. Report Preparation
A22: 1) Initial Notification that Source is Subject | B22: 2 | C22: 0 | D22: 0 | E22: 1 | F22: 2 | G22: =ROUND('Base Data'!$H$44/3,0)+1 -> 82 | H22: =F22*G22 -> 164 | I22: 16.4 | J22: =H22*0.05 -> 8.2 | K22: =(H22*'Base Data'!$C$5)+(I22*'Base Data'!$C$6)+(J22*'Base Data'!$C$7) -> 17839.51 | L22: 0 | M22: =E22*G22 -> 82 | N22: a, b
A23: 2) Notification of Compliance Status | B23: 8 | C23: 0 | D23: 0 | E23: 1 | F23: 8 | G23: =ROUND('Base Data'!$H$44/3,0)+1 -> 82 | H23: =F23*G23 -> 656 | I23: 65.6 | J23: =H23*0.05 -> 32.8 | K23: =(H23*'Base Data'!$C$5)+(I23*'Base Data'!$C$6)+(J23*'Base Data'!$C$7) -> 71358.04 | L23: 0 | M23: =E23*G23 -> 82 | N23: a, b
A24: 3) Annual Compliance Report | B24: 30 | C24: 0 | D24: 0 | E24: 1 | F24: 30 | G24: =ROUND('Base Data'!$H$44/3,0)+'Fac-NewLrgLiquid-Yr2'!G24+1 -> 244 | H24: =F24*G24 -> 7320 | I24: 732 | J24: =H24*0.05 -> 366 | K24: =(H24*'Base Data'!$C$5)+(I24*'Base Data'!$C$6)+(J24*'Base Data'!$C$7) -> 796251.3 | L24: 0 | M24: =E24*G24 -> 244 | N24: a
A25: Reporting Subtotal | H25: =SUM(H7:H13,H18:H24,H15) -> 25404 | I25: =SUM(I7:I13,I18:I24,I15) -> 2540.4 | J25: 1270.2 | K25: =SUM(K7:K13,K18:K24,K15) -> 2763383.61 | L25: =SUM(L7:L13,L18:L24,L15) -> 10815200 | M25: =SUM(M22:M24) -> 408 | O25: =SUM(L9:L10,L15,#REF!,L18) ->  | P25: =SUM(#REF!,L17,L14) -> 
A26: 4. Recordkeeping Requirements
A27: A. Read Instructions | B27: see 3.A
A28: B. Implement Activities | B28: na
A29: C. Develop Record System | B29: na
A30: D. Record Information
A31: 1) Records of Operating Parameter Values | B31: 20 | C31: 0 | D31: 0 | E31: 1 | F31: 20 | G31: =SUM('Base Data'!$D$44) -> 487 | H31: =F31*G31 -> 9740 | I31: 974 | J31: =H31*0.05 -> 487 | K31: =(H31*'Base Data'!$C$5)+(I31*'Base Data'!$C$6)+(J31*'Base Data'!$C$7) -> 1059492.85 | L31: 0 | M31: 0 | N31: a
A32: 2) Records of Deviations | B32: 15 | C32: 0 | D32: 0 | E32: 1 | F32: 15 | G32: =SUM('Base Data'!$D$44) -> 487 | H32: 7305 | I32: 730.5 | J32: 365.25 | K32: =(H32*'Base Data'!$C$5)+(I32*'Base Data'!$C$6)+(J32*'Base Data'!$C$7) -> 794619.6375 | L32: 0 | M32: 0 | N32: a
A33: 3) Records of Stack Tests | B33: 2 | C33: 0 | D33: 0 | E33: 1 | F33: 2 | G33: =SUM('Base Data'!$D$44) -> 487 | H33: 974 | I33: 97.4 | J33: 48.7 | K33: =(H33*'Base Data'!$C$5)+(I33*'Base Data'!$C$6)+(J33*'Base Data'!$C$7) -> 105949.285 | L33: 0 | M33: 0 | N33: a
A34: 4) Records of Monitoring Device Calibrations | B34: 2 | C34: 0 | D34: 0 | E34: 1 | F34: 2 | G34: =SUM('Base Data'!$D$44) -> 487 | H34: 974 | I34: 97.4 | J34: 48.7 | K34: =(H34*'Base Data'!$C$5)+(I34*'Base Data'!$C$6)+(J34*'Base Data'!$C$7) -> 105949.285 | L34: 0 | M34: 0 | N34: a
A35: 5) Records of All Compliance Reports Submitted | B35: 2 | C35: 0 | D35: 0 | E35: 2 | F35: 4 | G35: =SUM('Base Data'!$D$44) -> 487 | H35: 1948 | I35: 194.8 | J35: 97.4 | K35: =(H35*'Base Data'!$C$5)+(I35*'Base Data'!$C$6)+(J35*'Base Data'!$C$7) -> 211898.57 | L35: 0 | M35: 0 | N35: a
A36: 6) Records of Monthly Fuel Use | B36: 0.5 | C36: 0 | D36: 0 | E36: 12 | F36: 6 | G36: ='Base Data'!$D$44 -> 487 | H36: 2922 | I36: 292.2 | J36: 146.1 | K36: =(H36*'Base Data'!$C$5)+(I36*'Base Data'!$C$6)+(J36*'Base Data'!$C$7) -> 317847.855 | L36: 0 | M36: 0 | N36: a
A37: E. Personnel Training | B37: na | G37: .
A38: F. Time for Audits | B38: na
A39: Subtotal Recordkeeping | H39: =SUM(H26:H38) -> 23863 | I39: =SUM(I26:I38) -> 2386.3 | J39: 1193.15 | K39: =SUM(K31:K38) -> 2595757.482 | L39: =SUM(L31:L38) -> 0 | M39: =SUM(M12:M18,M26:M38) -> 0
A40: Totals | H40: =SUM(H25,H39) -> 49267 | I40: =SUM(I25,I39) -> 4926.7 | J40: =SUM(J25,J39) -> 2463.35 | K40: 5359141.092 | L40: 10815200 | M40: 408
A41: a The total number of new large liquid fuel boilers estimated in the first 3 years of this rule is 487. In order to calculate a per year estimate of the number of boilers required to meet these rule requirements, the number of projected boilers is divided by 3, or 162.3 rounded to 162 boilers per year. 162 boilers will be accounted for in year 1 and 2 and 163 in year 3. Assuming 2 unit per facility, 81 new facilities will be subject in year 1 and 2 and 82 facilities in year 3.
A42: b A one-time requirement.
A43: c All projected large liquid fuel units are expected to comply with mercury limits through the fuel testing compliance option instead of stack testing, see note a for the derivation of the number of units per year.
A44: d Subsequent annual testing in year 2 are based on the number of sources that had an initial test in year 1 of this ICR. Subsequent semi-annual compliance reporting and recordkeeping requirements are based on the number of new sources in years 1 and 2 of this ICR.
A45: e If you demonstrate compliance with any applicable emission limit through stack testing, you must develop a site-specific monitoring plan. All new large liquid fuel units are expected to develop this plan.

Sheet Fac - ExistSmlSolid-Yr1
A1: Table 5.A. Annual Respondent Burden and Cost of Recordkeeping and Reporting Requirements for the National Emission Standards
A2: for Hazardous Air Pollutants (NESHAP) for Industrial, Commercial, and Institutional Boilers - Year 1, Existing Small Solid Fuel Units
A3: Burden Item | B3: (A) Respondent Hours per Occurrence (Technical hours) | C3: (B) Tune-Up Cost per Occurrence | D3: (C) Other Non-Labor Costs Per Occurrence | E3: (D) Number of Occurrences Per Respondent Per Year | F3: (E) Technical Hours per Respondent Per Year (A X D) | G3: (F) Number of Respondents Per Year | H3: (G) Technical Hours per Year @ $98.20 (E X F) | I3: (H) Clerical Hours per Year @ $48.53 (G X 0.1) | J3: (I) Management Hours per Year @ $114.49 (G X .05) | K3: (J) Total Labor Costs Per Year | L3: (K) Total Non-Labor Annual Costs | M3: (L) Total Number of Responses per Year (D X F) | N3: Footnotes
A4: 1. Applications | B4: na
A5: 2. Surveys and Studies | B5: na
A6: 3. Reporting Requirements
A7: A. Read and Understand Rule Requirements | B7: 40 | C7: 0 | D7: 0 | E7: 1 | F7: =B7*E7 -> 40 | G7: ='Base Data'!$H$15+'Base Data'!$H$18 -> 5314 | H7: =F7*G7 -> 212560 | I7: =H7*0.1 -> 21256 | J7: =H7*0.05 -> 10628 | K7: =(H7*'Base Data'!$C$5)+(I7*'Base Data'!$C$6)+(J7*'Base Data'!$C$7) -> 23121745.4 | L7: 0 | M7: 0 | N7: a
A8: B. Required Activities
A9: 1. Biennial Tune-Up | B9: 12 | C9: 2228 | D9: 0 | E9: 0.5 | F9: =B9*E9 -> 6 | G9: 0 | H9: =F9*G9 -> 0 | I9: =H9*0.1 -> 0 | J9: =H9*0.05 -> 0 | K9: =(H9*'Base Data'!$C$5)+(I9*'Base Data'!$C$6)+(J9*'Base Data'!$C$7) -> 0 | L9: =C9*E9*G9 -> 0 | M9: 0 | N9: b
A10: C. Create Information | B10: na
A11: D. Gather Information | B11: na
A12: E. Report Preparation
A13: 1) Initial Notification that Source is Subject | B13: 2 | C13: 0 | D13: 0 | E13: 1 | F13: =B13*E13 -> 2 | G13: ='Base Data'!$H$15+'Base Data'!$H$18 -> 5314 | H13: =F13*G13 -> 10628 | I13: =H13*0.1 -> 1062.8 | J13: =H13*0.05 -> 531.4 | K13: =(H13*'Base Data'!$C$5)+(I13*'Base Data'!$C$6)+(J13*'Base Data'!$C$7) -> 1156087.27 | L13: 0 | M13: =E13*G13 -> 5314 | N13: a
A14: 2) Notification of Compliance Status | B14: 8 | C14: 0 | D14: 0 | E14: 1 | F14: =B14*E14 -> 8 | G14: 0 | H14: =F14*G14 -> 0 | I14: =H14*0.1 -> 0 | J14: =H14*0.05 -> 0 | K14: =(H14*'Base Data'!$C$5)+(I14*'Base Data'!$C$6)+(J14*'Base Data'!$C$7) -> 0 | L14: 0 | M14: =E14*G14 -> 0 | N14: b
A15: 3) Biennial Compliance Report | B15: 5 | C15: 0 | D15: 0 | E15: 0.5 | F15: =B15*E15 -> 2.5 | G15: 0 | H15: =F15*G15 -> 0 | I15: =H15*0.1 -> 0 | J15: =H15*0.05 -> 0 | K15: =(H15*'Base Data'!$C$5)+(I15*'Base Data'!$C$6)+(J15*'Base Data'!$C$7) -> 0 | L15: 0 | M15: =E15*G15 -> 0 | N15: b
A16: Reporting Subtotal | H16: =SUM(H7:H15) -> 223188 | I16: =SUM(I7:I15) -> 22318.8 | J16: 11159.4 | K16: 24277832.67 | L16: 0 | M16: =SUM(M12:M15) -> 5314
A17: 4. Recordkeeping Requirements
A18: A. Read Instructions | B18: Included in 3a
A19: B. Implement Activities | B19: na
A20: C. Develop Record System | B20: na | N20: c
A21: D. Record Information
A22: 1) Records of All Compliance Reports Submitted | B22: 2 | C22: 0 | D22: 0 | E22: 1 | F22: =B22*E22 -> 2 | G22: 0 | H22: =F22*G22 -> 0 | I22: =H22*0.1 -> 0 | J22: =H22*0.05 -> 0 | K22: =(H22*'Base Data'!$C$5)+(I22*'Base Data'!$C$6)+(J22*'Base Data'!$C$7) -> 0 | L22: 0 | M22: =E22*G22 -> 0 | N22: b
A23: 2) Records of Biennial Tune-Up | B23: 0.5 | C23: 0 | D23: 0 | E23: 0.5 | F23: =B23*E23 -> 0.25 | G23: 0 | H23: =F23*G23 -> 0 | I23: =H23*0.1 -> 0 | J23: =H23*0.05 -> 0 | K23: =(H23*'Base Data'!$C$5)+(I23*'Base Data'!$C$6)+(J23*'Base Data'!$C$7) -> 0 | L23: 0 | M23: =E23*G23 -> 0 | N23: b
A24: E. Personnel Training | B24: na
A25: F. Time for Audits | B25: na
A26: Recordkeeping Subtotal | H26: =SUM(H22:H23) -> 0 | I26: =SUM(I22:I23) -> 0 | J26: 0 | K26: 0 | L26: 0 | M26: =SUM(M22:M23) -> 0
A27: Totals | H27: =H16+H26 -> 223188 | I27: =I16+I26 -> 22318.8 | J27: 11159.4 | K27: 24277832.67 | L27: 0 | M27: 5314
A29: a Number of respondents based on number of existing large solid fuel boilers which includes biomass and coal units greater than 10 mmBtu/hr (assumption of 2 units per facility).
A30: b Since existing units have three years after the publication date of the final rule to submit initial notification of compliance status, conduct compliance activities, or meet recordkeeping or reporting requirements, no burden is assumed in year 1.
A31: c Assumes facility must already maintain records on boiler insurance and/or maintenance schedule. No new record system would be required.

Sheet Fac - ExistSmlSolid-Yr2
A1: Table 5.B. Annual Respondent Burden and Cost of Recordkeeping and Reporting Requirements for the National Emission Standards
A2: for Hazardous Air Pollutants (NESHAP) for Industrial, Commercial, and Institutional Boilers - Year 2, Existing Small Solid Fuel Units
A3: Burden Item | B3: (A) Respondent Hours per Occurrence (Technical hours) | C3: (B) Tune-Up Cost per Occurrence | D3: (C) Other Non-Labor Costs Per Occurrence | E3: (D) Number of Occurrences Per Respondent Per Year | F3: (E) Technical Hours per Respondent Per Year (A X D) | G3: (F) Number of Respondents Per Year | H3: (G) Technical Hours per Year @ $98.20 (E X F) | I3: (H) Clerical Hours per Year @ $48.53 (G X 0.1) | J3: (I) Management Hours per Year @ $114.49 (G X .05) | K3: (J) Total Labor Costs Per Year | L3: (K) Total Non-Labor Annual Costs | M3: (L) Total Number of Responses per Year (D X F) | N3: Footnotes
A4: 1. Applications | B4: na
A5: 2. Surveys and Studies | B5: na
A6: 3. Reporting Requirements
A7: A. Read and Understand Rule Requirements | B7: 40 | C7: 0 | D7: 0 | E7: 1 | F7: =B7*E7 -> 40 | G7: 0 | H7: =F7*G7 -> 0 | I7: =H7*0.1 -> 0 | J7: =H7*0.05 -> 0 | K7: =(H7*'Base Data'!$C$5)+(I7*'Base Data'!$C$6)+(J7*'Base Data'!$C$7) -> 0 | L7: 0 | M7: 0 | N7: a
A8: B. Required Activities
A9: 1. Biennial Tune-Up | B9: 12 | C9: 2228 | D9: 0 | E9: 0.5 | F9: =B9*E9 -> 6 | G9: =ROUND(SUM('Base Data'!$D$15,'Base Data'!$D$18)/2,0) -> 5315 | H9: =F9*G9 -> 31890 | I9: =H9*0.1 -> 3189 | J9: =H9*0.05 -> 1594.5 | K9: =(H9*'Base Data'!$C$5)+(I9*'Base Data'!$C$6)+(J9*'Base Data'!$C$7) -> 3468914.475 | L9: =C9*E9*G9 -> 5920910 | M9: 0 | N9: b
A10: C. Create Information | B10: na
A11: D. Gather Information | B11: na
A12: E. Report Preparation
A13: 1) Initial Notification that Source is Subject | B13: 2 | C13: 0 | D13: 0 | E13: 1 | F13: =B13*E13 -> 2 | G13: 0 | H13: =F13*G13 -> 0 | I13: =H13*0.1 -> 0 | J13: =H13*0.05 -> 0 | K13: =(H13*'Base Data'!$C$5)+(I13*'Base Data'!$C$6)+(J13*'Base Data'!$C$7) -> 0 | L13: 0 | M13: =E13*G13 -> 0 | N13: a
A14: 2) Notification of Compliance Status | B14: 8 | C14: 0 | D14: 0 | E14: 1 | F14: =B14*E14 -> 8 | G14: 0 | H14: =F14*G14 -> 0 | I14: =H14*0.1 -> 0 | J14: =H14*0.05 -> 0 | K14: =(H14*'Base Data'!$C$5)+(I14*'Base Data'!$C$6)+(J14*'Base Data'!$C$7) -> 0 | L14: 0 | M14: =E14*G14 -> 0 | N14: b
A15: 3) Biennial Compliance Report | B15: 5 | C15: 0 | D15: 0 | E15: 0.5 | F15: =B15*E15 -> 2.5 | G15: 0 | H15: =F15*G15 -> 0 | I15: =H15*0.1 -> 0 | J15: =H15*0.05 -> 0 | K15: =(H15*'Base Data'!$C$5)+(I15*'Base Data'!$C$6)+(J15*'Base Data'!$C$7) -> 0 | L15: 0 | M15: =E15*G15 -> 0 | N15: b
A16: Reporting Subtotal | H16: =SUM(H7:H15) -> 31890 | I16: =SUM(I7:I15) -> 3189 | J16: =SUM(J7:J15) -> 1594.5 | K16: =SUM(K7:K15) -> 3468914.475 | L16: =SUM(L7:L15) -> 5920910 | M16: =SUM(M12:M15) -> 0
A17: 4. Recordkeeping Requirements
A18: A. Read Instructions | B18: Included in 3a
A19: B. Implement Activities | B19: na
A20: C. Develop Record System | B20: na | N20: c
A21: D. Record Information
A22: 1) Records of All Compliance Reports Submitted | B22: 2 | C22: 0 | D22: 0 | E22: 1 | F22: =B22*E22 -> 2 | G22: 0 | H22: =F22*G22 -> 0 | I22: =H22*0.1 -> 0 | J22: =H22*0.05 -> 0 | K22: =(H22*'Base Data'!$C$5)+(I22*'Base Data'!$C$6)+(J22*'Base Data'!$C$7) -> 0 | L22: 0 | M22: =E22*G22 -> 0 | N22: b
A23: 2) Records of Biennial Tune-Up | B23: 0.5 | C23: 0 | D23: 0 | E23: 0.5 | F23: =B23*E23 -> 0.25 | G23: 0 | H23: =F23*G23 -> 0 | I23: =H23*0.1 -> 0 | J23: =H23*0.05 -> 0 | K23: =(H23*'Base Data'!$C$5)+(I23*'Base Data'!$C$6)+(J23*'Base Data'!$C$7) -> 0 | L23: 0 | M23: =E23*G23 -> 0 | N23: b
A24: E. Personnel Training | B24: na
A25: F. Time for Audits | B25: na
A26: Recordkeeping Subtotal | H26: =SUM(H22:H23) -> 0 | I26: =SUM(I22:I23) -> 0 | J26: 0 | K26: 0 | L26: 0 | M26: =SUM(M22:M23) -> 0
A27: Totals | H27: =H16+H26 -> 31890 | I27: =I16+I26 -> 3189 | J27: 1594.5 | K27: 3468914.475 | L27: 5920910 | M27: 0
A29: a The burden on existing sources to read and understand rule requirements, and submit an initial notification were assumed to all occur in year 1.
A30: b Since existing units have three years after the publication date of the final rule to submit initial notification of compliance status, conduct compliance activities, or meet recordkeeping or reporting requirements, it is assumed that half the affected units will conduct a tune-up in year 2 and half will conduct them in year 3 in order to be in compliance by the third year after promulgation. Initial Notification of Compliance Reports and recordkeeping requirements will not begin until year 3 of this ICR.
A31: c Assumes facility must already maintain records on boiler insurance and/or maintenance schedule. No new record system would be required.

Sheet Fac - ExistSmlSolid-Yr3
A1: Table 5.C. Annual Respondent Burden and Cost of Recordkeeping and Reporting Requirements for the National Emission Standards
A2: for Hazardous Air Pollutants (NESHAP) for Industrial, Commercial, and Institutional Boilers - Year 3, Existing Small Solid Fuel Units
A3: Burden Item | B3: (A) Respondent Hours per Occurrence (Technical hours) | C3: (B) Tune-Up Cost per Occurrence | D3: (C) Other Non-Labor Costs Per Occurrence | E3: (D) Number of Occurrences Per Respondent Per Year | F3: (E) Technical Hours per Respondent Per Year (A X D) | G3: (F) Number of Respondents Per Year | H3: (G) Technical Hours per Year @ $98.20 (E X F) | I3: (H) Clerical Hours per Year @ $48.53 (G X 0.1) | J3: (I) Management Hours per Year @ $114.49 (G X .05) | K3: (J) Total Labor Costs Per Year | L3: (K) Total Non-Labor Annual Costs | M3: (L) Total Number of Responses per Year (D X F) | N3: Footnotes
A4: 1. Applications | B4: na
A5: 2. Surveys and Studies | B5: na
A6: 3. Reporting Requirements
A7: A. Read and Understand Rule Requirements | B7: 40 | C7: 0 | D7: 0 | E7: 1 | F7: =B7*E7 -> 40 | G7: 0 | H7: =F7*G7 -> 0 | I7: =H7*0.1 -> 0 | J7: =H7*0.05 -> 0 | K7: =(H7*'Base Data'!$C$5)+(I7*'Base Data'!$C$6)+(J7*'Base Data'!$C$7) -> 0 | L7: 0 | M7: 0 | N7: a
A8: B. Required Activities
A9: 1. Biennial Tune-Up | B9: 12 | C9: 2228 | D9: 0 | E9: 0.5 | F9: =B9*E9 -> 6 | G9: =ROUND(SUM('Base Data'!$D$15,'Base Data'!$D$18)/2,0)-1 -> 5314 | H9: =F9*G9 -> 31884 | I9: =H9*0.1 -> 3188.4 | J9: =H9*0.05 -> 1594.2 | K9: =(H9*'Base Data'!$C$5)+(I9*'Base Data'!$C$6)+(J9*'Base Data'!$C$7) -> 3468261.81 | L9: =C9*E9*G9 -> 5919796 | M9: 0 | N9: b
A10: C. Create Information | B10: na
A11: D. Gather Information | B11: na
A12: E. Report Preparation
A13: 1) Initial Notification that Source is Subject | B13: 2 | C13: 0 | D13: 0 | E13: 1 | F13: =B13*E13 -> 2 | G13: 0 | H13: =F13*G13 -> 0 | I13: =H13*0.1 -> 0 | J13: =H13*0.05 -> 0 | K13: =(H13*'Base Data'!$C$5)+(I13*'Base Data'!$C$6)+(J13*'Base Data'!$C$7) -> 0 | L13: 0 | M13: =E13*G13 -> 0 | N13: a
A14: 2) Notification of Compliance Status | B14: 8 | C14: 0 | D14: 0 | E14: 1 | F14: =B14*E14 -> 8 | G14: ='Base Data'!$H$15+'Base Data'!$H$18 -> 5314 | H14: =F14*G14 -> 42512 | I14: =H14*0.1 -> 4251.2 | J14: =H14*0.05 -> 2125.6 | K14: =(H14*'Base Data'!$C$5)+(I14*'Base Data'!$C$6)+(J14*'Base Data'!$C$7) -> 4624349.08 | L14: 0 | M14: =E14*G14 -> 5314 | N14: b
A15: 3) Biennial Compliance Report | B15: 5 | C15: 0 | D15: 0 | E15: 0.5 | F15: =B15*E15 -> 2.5 | G15: ='Base Data'!$H$15+'Base Data'!$H$18 -> 5314 | H15: =F15*G15 -> 13285 | I15: =H15*0.1 -> 1328.5 | J15: =H15*0.05 -> 664.25 | K15: =(H15*'Base Data'!$C$5)+(I15*'Base Data'!$C$6)+(J15*'Base Data'!$C$7) -> 1445109.087 | L15: 0 | M15: =E15*G15 -> 2657 | N15: b
A16: Reporting Subtotal | H16: =SUM(H7:H15) -> 87681 | I16: =SUM(I7:I15) -> 8768.1 | J16: 4384.05 | K16: 9537719.978 | L16: 5919796 | M16: =SUM(M12:M15) -> 7971
A17: 4. Recordkeeping Requirements
A18: A. Read Instructions | B18: Included in 3a
A19: B. Implement Activities | B19: na
A20: C. Develop Record System | B20: na | N20: c
A21: D. Record Information
A22: 1) Records of All Compliance Reports Submitted | B22: 2 | C22: 0 | D22: 0 | E22: 1 | F22: =B22*E22 -> 2 | G22: ='Base Data'!$D$15+'Base Data'!$D$18 -> 10629 | H22: =F22*G22 -> 21258 | I22: =H22*0.1 -> 2125.8 | J22: =H22*0.05 -> 1062.9 | K22: =(H22*'Base Data'!$C$5)+(I22*'Base Data'!$C$6)+(J22*'Base Data'!$C$7) -> 2312392.095 | L22: 0 | M22: 0 | N22: b
A23: 2) Records of Biennial Tune-Up | B23: 0.5 | C23: 0 | D23: 0 | E23: 0.5 | F23: =B23*E23 -> 0.25 | G23: ='Base Data'!$D$15+'Base Data'!$D$18 -> 10629 | H23: =F23*G23 -> 2657.25 | I23: =H23*0.1 -> 265.725 | J23: =H23*0.05 -> 132.8625 | K23: =(H23*'Base Data'!$C$5)+(I23*'Base Data'!$C$6)+(J23*'Base Data'!$C$7) -> 289049.0119 | L23: 0 | M23: 0 | N23: b
A24: E. Personnel Training | B24: na
A25: F. Time for Audits | B25: na
A26: Recordkeeping Subtotal | H26: =SUM(H22:H23) -> 23915.25 | I26: =SUM(I22:I23) -> 2391.525 | J26: 1195.7625 | K26: 2601441.107 | L26: 0 | M26: =SUM(M22:M23) -> 0
A27: Totals | H27: =H16+H26 -> 111596.25 | I27: =I16+I26 -> 11159.625 | J27: 5579.8125 | K27: 12139161.08 | L27: 5919796 | M27: 7971
A29: a The burden on existing sources to read and understand rule requirements, and submit an initial notification were assumed to all occur in year 1.
A30: b Since existing units have three years after the publication date of the final rule to submit initial notification of compliance status, conduct compliance activities, or meet recordkeeping or reporting requirements, it is assumed that half the affected units will conduct a tune-up in year 2 and half will conduct them in year 3 in order to be in compliance by the third year after promulgation. Initial Notification of Compliance Reports and recordkeeping requirements will not begin until year 3 of this ICR.
A31: c Assumes facility must already maintain records on boiler insurance and/or maintenance schedule. No new record system would be required.

Sheet Fac - ExistSmlLiquid-Yr1
A1: Table 6.A. Annual Respondent Burden and Cost of Recordkeeping and Reporting Requirements for the National Emission Standards
A2: for Hazardous Air Pollutants (NESHAP) for Industrial, Commercial, and Institutional Boilers - Year 1, Existing Small Liquid Fuel Units
A3: Burden Item | B3: (A) Respondent Hours per Occurrence (Technical hours) | C3: (B) Tune-Up Cost per Occurrence | D3: (C) Other Non-Labor Costs Per Occurrence | E3: (D) Number of Occurrences Per Respondent Per Year | F3: (E) Technical Hours per Respondent Per Year (A X D) | G3: (F) Number of Respondents Per Year | H3: (G) Technical Hours per Year @ $98.20 (E X F) | I3: (H) Clerical Hours per Year @ $48.53 (G X 0.1) | J3: (I) Management Hours per Year @ $114.49 (G X .05) | K3: (J) Total Labor Costs Per Year | L3: (K) Total Non-Labor Annual Costs | M3: (L) Total Number of Responses per Year (D X F) | N3: Footnotes
A4: 1. Applications | B4: na
A5: 2. Surveys and Studies | B5: na
A6: 3. Reporting Requirements
A7: A. Read and Understand Rule Requirements | B7: 40 | C7: 0 | D7: 0 | E7: 1 | F7: =B7*E7 -> 40 | G7: =ROUND('Base Data'!$H$20,0) -> 79387 | H7: =F7*G7 -> 3175480 | I7: =H7*0.1 -> 317548 | J7: =H7*0.05 -> 158774 | K7: =(H7*'Base Data'!$C$5)+(I7*'Base Data'!$C$6)+(J7*'Base Data'!$C$7) -> 345420775.7 | L7: 0 | M7: 0 | N7: a
A8: B. Required Activities
A9: 1. Biennial Tune-Up | B9: 12 | C9: 2228 | D9: 0 | E9: 0.5 | F9: =B9*E9 -> 6 | G9: 0 | H9: =F9*G9 -> 0 | I9: =H9*0.1 -> 0 | J9: =H9*0.05 -> 0 | K9: =(H9*'Base Data'!$C$5)+(I9*'Base Data'!$C$6)+(J9*'Base Data'!$C$7) -> 0 | L9: =C9*G9 -> 0 | M9: 0 | N9: b
A10: C. Create Information | B10: na
A11: D. Gather Information | B11: na
A12: E. Report Preparation
A13: 1) Initial Notification that Source is Subject | B13: 2 | C13: 0 | D13: 0 | E13: 1 | F13: =B13*E13 -> 2 | G13: =ROUND('Base Data'!$H$20,0) -> 79387 | H13: =F13*G13 -> 158774 | I13: =H13*0.1 -> 15877.4 | J13: =H13*0.05 -> 7938.7 | K13: =(H13*'Base Data'!$C$5)+(I13*'Base Data'!$C$6)+(J13*'Base Data'!$C$7) -> 17271038.79 | L13: 0 | M13: =E13*G13 -> 79387 | N13: a
A14: 2) Notification of Compliance Status | B14: 8 | C14: 0 | D14: 0 | E14: 1 | F14: =B14*E14 -> 8 | G14: 0 | H14: =F14*G14 -> 0 | I14: =H14*0.1 -> 0 | J14: =H14*0.05 -> 0 | K14: =(H14*'Base Data'!$C$5)+(I14*'Base Data'!$C$6)+(J14*'Base Data'!$C$7) -> 0 | L14: 0 | M14: =E14*G14 -> 0 | N14: b
A15: 3) Biennial Compliance Report | B15: 5 | C15: 0 | D15: 0 | E15: 0.5 | F15: =B15*E15 -> 2.5 | G15: 0 | H15: =F15*G15 -> 0 | I15: =H15*0.1 -> 0 | J15: =H15*0.05 -> 0 | K15: =(H15*'Base Data'!$C$5)+(I15*'Base Data'!$C$6)+(J15*'Base Data'!$C$7) -> 0 | L15: 0 | M15: =E15*G15 -> 0 | N15: b
A16: Reporting Subtotal | H16: =SUM(H4:H15) -> 3334254 | I16: 333425.4 | J16: 166712.7 | K16: 362691814.5 | L16: 0 | M16: 79387
A17: 4. Recordkeeping Requirements
A18: A. Read Instructions | B18: Included in 3a
A19: B. Implement Activities | B19: na
A20: C. Develop Record System | B20: na | N20: c
A21: D. Record Information
A22: 1) Records of All Compliance Reports Submitted | B22: 2 | C22: 0 | D22: 0 | E22: 1 | F22: =B22*E22 -> 2 | G22: 0 | H22: =F22*G22 -> 0 | I22: =H22*0.1 -> 0 | J22: =H22*0.05 -> 0 | K22: =(H22*'Base Data'!$C$5)+(I22*'Base Data'!$C$6)+(J22*'Base Data'!$C$7) -> 0 | L22: 0 | M22: =E22*G22 -> 0 | N22: b
A23: 2) Records of Biennial Tune-Up | B23: 0.5 | C23: 0 | D23: 0 | E23: 0.5 | F23: =B23*E23 -> 0.25 | G23: 0 | H23: =F23*G23 -> 0 | I23: =H23*0.1 -> 0 | J23: =H23*0.05 -> 0 | K23: =(H23*'Base Data'!$C$5)+(I23*'Base Data'!$C$6)+(J23*'Base Data'!$C$7) -> 0 | L23: 0 | M23: =E23*G23 -> 0 | N23: b
A24: E. Personnel Training | B24: na
A25: F. Time for Audits | B25: na
A26: Recordkeeping Subtotal | H26: =SUM(H18:H25) -> 0 | I26: =SUM(I18:I25) -> 0 | J26: 0 | K26: 0 | L26: 0 | M26: 0
A27: Totals | H27: =SUM(H16,H26) -> 3334254 | I27: 333425.4 | J27: 166712.7 | K27: 362691814.5 | L27: 0 | M27: 79387
A29: a Number of respondents based on number of existing small liquid fuel boilers which includes biomass and coal units less than 10 mmBtu/hr (assumption of 2 units per facility).
A30: b Since existing units have three years after the publication date of the final rule to submit initial notification of compliance status, conduct compliance activities, or meet recordkeeping or reporting requirements, no burden is assumed in year 1.
A31: c Assumes facility must already maintain records on boiler insurance and/or maintenance schedule. No new record system would be required.

Sheet Fac - ExistSmlLiquid-Yr2
A1: Table 6.B. Annual Respondent Burden and Cost of Recordkeeping and Reporting Requirements for the National Emission Standards
A2: for Hazardous Air Pollutants (NESHAP) for Industrial, Commercial, and Institutional Boilers - Year 2, Existing Small Liquid Fuel Units
A3: Burden Item | B3: (A) Respondent Hours per Occurrence (Technical hours) | C3: (B) Tune-Up Cost per Occurrence | D3: (C) Other Non-Labor Costs Per Occurrence | E3: (D) Number of Occurrences Per Respondent Per Year | F3: (E) Technical Hours per Respondent Per Year (A X D) | G3: (F) Number of Respondents Per Year | H3: (G) Technical Hours per Year @ $98.20 (E X F) | I3: (H) Clerical Hours per Year @ $48.53 (G X 0.1) | J3: (I) Management Hours per Year @ $114.49 (G X .05) | K3: (J) Total Labor Costs Per Year | L3: (K) Total Non-Labor Annual Costs | M3: (L) Total Number of Responses per Year (D X F) | N3: Footnotes
A4: 1. Applications | B4: na
A5: 2. Surveys and Studies | B5: na
A6: 3. Reporting Requirements
A7: A. Read and Understand Rule Requirements | B7: 40 | C7: 0 | D7: 0 | E7: 1 | F7: =B7*E7 -> 40 | G7: 0 | H7: =F7*G7 -> 0 | I7: =H7*0.1 -> 0 | J7: =H7*0.05 -> 0 | K7: =(H7*'Base Data'!$C$5)+(I7*'Base Data'!$C$6)+(J7*'Base Data'!$C$7) -> 0 | L7: 0 | M7: 0 | N7: a
A8: B. Required Activities
A9: 1. Biennial Tune-Up | B9: 12 | C9: 2228 | D9: 0 | E9: 0.5 | F9: =B9*E9 -> 6 | G9: =ROUND('Base Data'!$D$20/2,0) -> 79387 | H9: =F9*G9 -> 476322 | I9: =H9*0.1 -> 47632.2 | J9: =H9*0.05 -> 23816.1 | K9: =(H9*'Base Data'!$C$5)+(I9*'Base Data'!$C$6)+(J9*'Base Data'!$C$7) -> 51813116.35 | L9: =C9*G9 -> 176874236 | M9: 0 | N9: b
A10: C. Create Information | B10: na
A11: D. Gather Information | B11: na
A12: E. Report Preparation
A13: 1) Initial Notification that Source is Subject | B13: 2 | C13: 0 | D13: 0 | E13: 1 | F13: =B13*E13 -> 2 | G13: 0 | H13: =F13*G13 -> 0 | I13: =H13*0.1 -> 0 | J13: =H13*0.05 -> 0 | K13: =(H13*'Base Data'!$C$5)+(I13*'Base Data'!$C$6)+(J13*'Base Data'!$C$7) -> 0 | L13: 0 | M13: =E13*G13 -> 0 | N13: a
A14: 2) Notification of Compliance Status | B14: 8 | C14: 0 | D14: 0 | E14: 1 | F14: =B14*E14 -> 8 | G14: 0 | H14: =F14*G14 -> 0 | I14: =H14*0.1 -> 0 | J14: =H14*0.05 -> 0 | K14: =(H14*'Base Data'!$C$5)+(I14*'Base Data'!$C$6)+(J14*'Base Data'!$C$7) -> 0 | L14: 0 | M14: =E14*G14 -> 0 | N14: b
A15: 3) Biennial Compliance Report | B15: 5 | C15: 0 | D15: 0 | E15: 0.5 | F15: =B15*E15 -> 2.5 | G15: 0 | H15: =F15*G15 -> 0 | I15: =H15*0.1 -> 0 | J15: =H15*0.05 -> 0 | K15: =(H15*'Base Data'!$C$5)+(I15*'Base Data'!$C$6)+(J15*'Base Data'!$C$7) -> 0 | L15: 0 | M15: =E15*G15 -> 0 | N15: b
A16: Reporting Subtotal | H16: =SUM(H4:H15) -> 476322 | I16: 47632.2 | J16: 23816.1 | K16: 51813116.35 | L16: 176874236 | M16: 0
A17: 4. Recordkeeping Requirements
A18: A. Read Instructions | B18: Included in 3a
A19: B. Implement Activities | B19: na
A20: C. Develop Record System | B20: na | N20: c
A21: D. Record Information
A22: 1) Records of All Compliance Reports Submitted | B22: 2 | C22: 0 | D22: 0 | E22: 1 | F22: =B22*E22 -> 2 | G22: 0 | H22: =F22*G22 -> 0 | I22: =H22*0.1 -> 0 | J22: =H22*0.05 -> 0 | K22: =(H22*'Base Data'!$C$5)+(I22*'Base Data'!$C$6)+(J22*'Base Data'!$C$7) -> 0 | L22: 0 | M22: =E22*G22 -> 0 | N22: b
A23: 2) Records of Biennial Tune-Up | B23: 0.5 | C23: 0 | D23: 0 | E23: 0.5 | F23: =B23*E23 -> 0.25 | G23: 0 | H23: =F23*G23 -> 0 | I23: =H23*0.1 -> 0 | J23: =H23*0.05 -> 0 | K23: =(H23*'Base Data'!$C$5)+(I23*'Base Data'!$C$6)+(J23*'Base Data'!$C$7) -> 0 | L23: 0 | M23: =E23*G23 -> 0 | N23: b
A24: E. Personnel Training | B24: na
A25: F. Time for Audits | B25: na
A26: Recordkeeping Subtotal | H26: =SUM(H18:H25) -> 0 | I26: =SUM(I18:I25) -> 0 | J26: 0 | K26: 0 | L26: 0 | M26: 0
A27: Totals | H27: =SUM(H16,H26) -> 476322 | I27: 47632.2 | J27: 23816.1 | K27: 51813116.35 | L27: 176874236 | M27: 0
A29: a The burden on existing sources to read and understand rule requirements, and submit an initial notification were assumed to all occur in year 1.
A30: b Since existing units have three years after the publication date of the final rule to submit initial notification of compliance status, conduct compliance activities, or meet recordkeeping or reporting requirements, it is assumed that half the affected units will conduct a tune-up in year 2 and half will conduct them in year 3 in order to be in compliance by the third year after promulgation. Initial Notification of Compliance Reports and recordkeeping requirements will not begin until year 3 of this ICR.
A31: c Assumes facility must already maintain records on boiler insurance and/or maintenance schedule. No new record system would be required.

Sheet Fac - ExistSmlLiquid-Yr3
A1: Table 6.C. Annual Respondent Burden and Cost of Recordkeeping and Reporting Requirements for the National Emission Standards
A2: for Hazardous Air Pollutants (NESHAP) for Industrial, Commercial, and Institutional Boilers - Year 3, Existing Small Liquid Fuel Units
A3: Burden Item | B3: (A) Respondent Hours per Occurrence (Technical hours) | C3: (B) Tune-Up Cost per Occurrence | D3: (C) Other Non-Labor Costs Per Occurrence | E3: (D) Number of Occurrences Per Respondent Per Year | F3: (E) Technical Hours per Respondent Per Year (A X D) | G3: (F) Number of Respondents Per Year | H3: (G) Technical Hours per Year @ $98.20 (E X F) | I3: (H) Clerical Hours per Year @ $48.53 (G X 0.1) | J3: (I) Management Hours per Year @ $114.49 (G X .05) | K3: (J) Total Labor Costs Per Year | L3: (K) Total Non-Labor Annual Costs | M3: (L) Total Number of Responses per Year (D X F) | N3: Footnotes
A4: 1. Applications | B4: na
A5: 2. Surveys and Studies | B5: na
A6: 3. Reporting Requirements
A7: A. Read and Understand Rule Requirements | B7: 40 | C7: 0 | D7: 0 | E7: 1 | F7: =B7*E7 -> 40 | G7: 0 | H7: =F7*G7 -> 0 | I7: =H7*0.1 -> 0 | J7: =H7*0.05 -> 0 | K7: =(H7*'Base Data'!$C$5)+(I7*'Base Data'!$C$6)+(J7*'Base Data'!$C$7) -> 0 | L7: 0 | M7: 0 | N7: a
A8: B. Required Activities
A9: 1. Biennial Tune-Up | B9: 12 | C9: 2228 | D9: 0 | E9: 0.5 | F9: =B9*E9 -> 6 | G9: =ROUND('Base Data'!$D$20/2,0) -> 79387 | H9: =F9*G9 -> 476322 | I9: =H9*0.1 -> 47632.2 | J9: =H9*0.05 -> 23816.1 | K9: =(H9*'Base Data'!$C$5)+(I9*'Base Data'!$C$6)+(J9*'Base Data'!$C$7) -> 51813116.35 | L9: =C9*G9 -> 176874236 | M9: 0 | N9: b
A10: C. Create Information | B10: na
A11: D. Gather Information | B11: na
A12: E. Report Preparation
A13: 1) Initial Notification that Source is Subject | B13: 2 | C13: 0 | D13: 0 | E13: 1 | F13: =B13*E13 -> 2 | G13: 0 | H13: =F13*G13 -> 0 | I13: =H13*0.1 -> 0 | J13: =H13*0.05 -> 0 | K13: =(H13*'Base Data'!$C$5)+(I13*'Base Data'!$C$6)+(J13*'Base Data'!$C$7) -> 0 | L13: 0 | M13: =E13*G13 -> 0 | N13: a
A14: 2) Notification of Compliance Status | B14: 8 | C14: 0 | D14: 0 | E14: 1 | F14: =B14*E14 -> 8 | G14: ='Base Data'!$H$20 -> 79387 | H14: =F14*G14 -> 635096 | I14: =H14*0.1 -> 63509.6 | J14: =H14*0.05 -> 31754.8 | K14: =(H14*'Base Data'!$C$5)+(I14*'Base Data'!$C$6)+(J14*'Base Data'!$C$7) -> 69084155.14 | L14: 0 | M14: =E14*G14 -> 79387 | N14: b
A15: 3) Biennial Compliance Report | B15: 5 | C15: 0 | D15: 0 | E15: 0.5 | F15: =B15*E15 -> 2.5 | G15: ='Base Data'!$H$20 -> 79387 | H15: =F15*G15 -> 198467.5 | I15: =H15*0.1 -> 19846.75 | J15: =H15*0.05 -> 9923.375 | K15: =(H15*'Base Data'!$C$5)+(I15*'Base Data'!$C$6)+(J15*'Base Data'!$C$7) -> 21588798.48 | L15: 0 | M15: =E15*G15 -> 39693.5 | N15: b
A16: Reporting Subtotal | H16: =SUM(H4:H15) -> 1309885.5 | I16: 130988.55 | J16: 65494.275 | K16: 142486070 | L16: 176874236 | M16: 119080.5
A17: 4. Recordkeeping Requirements
A18: A. Read Instructions | B18: Included in 3a
A19: B. Implement Activities | B19: na
A20: C. Develop Record System | B20: na | N20: c
A21: D. Record Information
A22: 1) Records of All Compliance Reports Submitted | B22: 2 | C22: 0 | D22: 0 | E22: 1 | F22: =B22*E22 -> 2 | G22: ='Base Data'!$D$20 -> 158774 | H22: =F22*G22 -> 317548 | I22: =H22*0.1 -> 31754.8 | J22: =H22*0.05 -> 15877.4 | K22: =(H22*'Base Data'!$C$5)+(I22*'Base Data'!$C$6)+(J22*'Base Data'!$C$7) -> 34542077.57 | L22: 0 | M22: 0 | N22: b
A23: 2) Records of Biennial Tune-Up | B23: 0.5 | C23: 0 | D23: 0 | E23: 0.5 | F23: =B23*E23 -> 0.25 | G23: ='Base Data'!$D$20 -> 158774 | H23: =F23*G23 -> 39693.5 | I23: =H23*0.1 -> 3969.35 | J23: =H23*0.05 -> 1984.675 | K23: =(H23*'Base Data'!$C$5)+(I23*'Base Data'!$C$6)+(J23*'Base Data'!$C$7) -> 4317759.696 | L23: 0 | M23: 0 | N23: b
A24: E. Personnel Training | B24: na
A25: F. Time for Audits | B25: na
A26: Recordkeeping Subtotal | H26: =SUM(H18:H25) -> 357241.5 | I26: =SUM(I18:I25) -> 35724.15 | J26: 17862.075 | K26: 38859837.27 | L26: 0 | M26: 0
A27: Totals | H27: =SUM(H16,H26) -> 1667127 | I27: 166712.7 | J27: 83356.35 | K27: 181345907.2 | L27: 176874236 | M27: 119080.5
A29: a The burden on existing sources to read and understand rule requirements, and submit an initial notification were assumed to all occur in year 1.
A30: b Since existing units have three years after the publication date of the final rule to submit initial notification of compliance status, conduct compliance activities, or meet recordkeeping or reporting requirements, it is assumed that half the affected units will conduct a tune-up in year 2 and half will conduct them in year 3 in order to be in compliance by the third year after promulgation. Initial Notification of Compliance Reports and recordkeeping requirements will not begin until year 3 of this ICR.
A31: c Assumes facility must already maintain records on boiler insurance and/or maintenance schedule. No new record system would be required.

Sheet Fac-NewSmlSolid-Yr1
A1: Table 7.A. Annual Respondent Burden and Cost of Recordkeeping and Reporting Requirements for the National Emission Standards
A2: for Hazardous Air Pollutants (NESHAP) for Industrial, Commercial, and Institutional Boilers and Process Heaters - Year 1, New Small Solid Fuel Units
A3: Burden Item | B3: (A) Respondent Hours per Occurrence (Technical hours) | C3: (B) Tune-Up Cost per Occurrence | D3: (C) Other Non-Labor Costs Per Occurrence | E3: (D) Number of Occurrences Per Respondent Per Year | F3: (E) Technical Hours per Respondent Per Year (A X D) | G3: (F) Number of Respondents Per Year | H3: (G) Technical Hours per Year @ $98.20 (E X F) | I3: (H) Clerical Hours per Year @ $48.53 (G X 0.1) | J3: (I) Management Hours per Year @ $114.49 (G X .05) | K3: (J) Total Labor Costs Per Year | L3: (K) Total Non-Labor Annual Costs | M3: (L) Total Number of Responses per Year (D X F) | N3: Footnotes
A4: 1. Applications | B4: na
A5: 2. Surveys and Studies | B5: na
A6: 3. Reporting Requirements
A7: A. Read and Understand Rule Requirements | B7: 40 | C7: 0 | D7: 0 | E7: 1 | F7: =B7*E7 -> 40 | G7: =ROUND(SUM('Base Data'!$H$39,'Base Data'!$H$42)/3,0) -> 49 | H7: =F7*G7 -> 1960 | I7: =H7*0.1 -> 196 | J7: =H7*0.05 -> 98 | K7: =(H7*'Base Data'!$C$5)+(I7*'Base Data'!$C$6)+(J7*'Base Data'!$C$7) -> 213203.9 | L7: 0 | M7: 0 | N7: a
A8: B. Required Activities
A9: 1. Biennial Tune-Up | B9: 12 | C9: 2228 | D9: 0 | E9: 0.5 | F9: =B9*E9 -> 6 | G9: =ROUND(SUM('Base Data'!$D$39,'Base Data'!$D$42)/3,0) -> 98 | H9: =F9*G9 -> 588 | I9: =H9*0.1 -> 58.8 | J9: =H9*0.05 -> 29.4 | K9: =(H9*'Base Data'!$C$5)+(I9*'Base Data'!$C$6)+(J9*'Base Data'!$C$7) -> 63961.17 | L9: =C9*G9 -> 218344 | M9: 0 | N9: b
A10: C. Create Information | B10: na
A11: D. Gather Information | B11: na
A12: E. Report Preparation
A13: 1) Initial Notification that Source is Subject | B13: 2 | C13: 0 | D13: 0 | E13: 1 | F13: =B13*E13 -> 2 | G13: =$G$7 -> 49 | H13: =F13*G13 -> 98 | I13: =H13*0.1 -> 9.8 | J13: =H13*0.05 -> 4.9 | K13: =(H13*'Base Data'!$C$5)+(I13*'Base Data'!$C$6)+(J13*'Base Data'!$C$7) -> 10660.195 | L13: 0 | M13: =E13*G13 -> 49 | N13: b
A14: 2) Notification of Compliance Status | B14: 8 | C14: 0 | D14: 0 | E14: 1 | F14: =B14*E14 -> 8 | G14: =$G$7 -> 49 | H14: =F14*G14 -> 392 | I14: =H14*0.1 -> 39.2 | J14: =H14*0.05 -> 19.6 | K14: =(H14*'Base Data'!$C$5)+(I14*'Base Data'!$C$6)+(J14*'Base Data'!$C$7) -> 42640.78 | L14: 0 | M14: =E14*G14 -> 49 | N14: b
A15: 3) Biennial Compliance Report | B15: 5 | C15: 0 | D15: 0 | E15: 0.5 | F15: =B15*E15 -> 2.5 | G15: =$G$7 -> 49 | H15: =F15*G15 -> 122.5 | I15: =H15*0.1 -> 12.25 | J15: =H15*0.05 -> 6.125 | K15: =(H15*'Base Data'!$C$5)+(I15*'Base Data'!$C$6)+(J15*'Base Data'!$C$7) -> 13325.24375 | L15: 0 | M15: =E15*G15 -> 24.5 | N15: b
A16: Reporting Subtotal | H16: =SUM(H4:H15) -> 3160.5 | I16: 316.05 | J16: 158.025 | K16: 343791.2888 | L16: 218344 | M16: 122.5
A17: 4. Recordkeeping Requirements
A18: A. Read Instructions | B18: Included in 3a
A19: B. Implement Activities | B19: na
A20: C. Develop Record System | B20: na | N20: c
A21: D. Record Information
A22: 1) Records of All Compliance Reports Submitted | B22: 2 | C22: 0 | D22: 0 | E22: 1 | F22: =B22*E22 -> 2 | G22: =$G$9 -> 98 | H22: =F22*G22 -> 196 | I22: =H22*0.1 -> 19.6 | J22: =H22*0.05 -> 9.8 | K22: =(H22*'Base Data'!$C$5)+(I22*'Base Data'!$C$6)+(J22*'Base Data'!$C$7) -> 21320.39 | L22: 0 | M22: 0 | N22: b
A23: 2) Records of Biennial Tune-Up | B23: 0.5 | C23: 0 | D23: 0 | E23: 0.5 | F23: =B23*E23 -> 0.25 | G23: =$G$9 -> 98 | H23: =F23*G23 -> 24.5 | I23: =H23*0.1 -> 2.45 | J23: =H23*0.05 -> 1.225 | K23: =(H23*'Base Data'!$C$5)+(I23*'Base Data'!$C$6)+(J23*'Base Data'!$C$7) -> 2665.04875 | L23: 0 | M23: 0 | N23: b
A24: E. Personnel Training | B24: na
A25: F. Time for Audits | B25: na
A26: Recordkeeping Subtotal | H26: =SUM(H18:H25) -> 220.5 | I26: =SUM(I18:I25) -> 22.05 | J26: 11.025 | K26: 23985.43875 | L26: 0 | M26: 0
A27: Totals | H27: =SUM(H16,H26) -> 3381 | I27: 338.1 | J27: 169.05 | K27: 367776.7275 | L27: 218344 | M27: 122.5
A29: a Number of respondents based on number of new small solid fuel boilers which includes biomass and coal units less than 10 mmBtu/hr (assumption of 2 units per facility). One-third of the units will comply each year.
A30: b Compliance activities will start the year the boiler complies.
A31: c Assumes facility must already maintain records on boiler insurance and/or maintenance schedule. No new record system would be required.

Sheet Fac-NewSmlSolid-Yr2
A1: Table 7.B. Annual Respondent Burden and Cost of Recordkeeping and Reporting Requirements for the National Emission Standards
A2: for Hazardous Air Pollutants (NESHAP) for Industrial, Commercial, and Institutional Boilers and Process Heaters - Year 2, New Small Solid Fuel Units
A3: Burden Item | B3: (A) Respondent Hours per Occurrence (Technical hours) | C3: (B) Tune-Up Cost per Occurrence | D3: (C) Other Non-Labor Costs Per Occurrence | E3: (D) Number of Occurrences Per Respondent Per Year | F3: (E) Technical Hours per Respondent Per Year (A X D) | G3: (F) Number of Respondents Per Year | H3: (G) Technical Hours per Year @ $98.20 (E X F) | I3: (H) Clerical Hours per Year @ $48.53 (G X 0.1) | J3: (I) Management Hours per Year @ $114.49 (G X .05) | K3: (J) Total Labor Costs Per Year | L3: (K) Total Non-Labor Annual Costs | M3: (L) Total Number of Responses per Year (D X F) | N3: Footnotes
A4: 1. Applications | B4: na
A5: 2. Surveys and Studies | B5: na
A6: 3. Reporting Requirements
A7: A. Read and Understand Rule Requirements | B7: 40 | C7: 0 | D7: 0 | E7: 1 | F7: =B7*E7 -> 40 | G7: =ROUND(SUM('Base Data'!H39,'Base Data'!H42)/3,0) -> 49 | H7: =F7*G7 -> 1960 | I7: =H7*0.1 -> 196 | J7: =H7*0.05 -> 98 | K7: =(H7*'Base Data'!$C$5)+(I7*'Base Data'!$C$6)+(J7*'Base Data'!$C$7) -> 213203.9 | L7: 0 | M7: 0 | N7: a
A8: B. Required Activities
A9: 1. Biennial Tune-Up | B9: 12 | C9: 2228 | D9: 0 | E9: 0.5 | F9: =B9*E9 -> 6 | G9: =ROUND(SUM('Base Data'!$D$39,'Base Data'!$D$42)/3,0) -> 98 | H9: =F9*G9 -> 588 | I9: =H9*0.1 -> 58.8 | J9: =H9*0.05 -> 29.4 | K9: =(H9*'Base Data'!$C$5)+(I9*'Base Data'!$C$6)+(J9*'Base Data'!$C$7) -> 63961.17 | L9: =C9*G9 -> 218344 | M9: 0 | N9: b
A10: C. Create Information | B10: na
A11: D. Gather Information | B11: na
A12: E. Report Preparation
A13: 1) Initial Notification that Source is Subject | B13: 2 | C13: 0 | D13: 0 | E13: 1 | F13: =B13*E13 -> 2 | G13: =$G$7 -> 49 | H13: =F13*G13 -> 98 | I13: =H13*0.1 -> 9.8 | J13: =H13*0.05 -> 4.9 | K13: =(H13*'Base Data'!$C$5)+(I13*'Base Data'!$C$6)+(J13*'Base Data'!$C$7) -> 10660.195 | L13: 0 | M13: =E13*G13 -> 49 | N13: b
A14: 2) Notification of Compliance Status | B14: 8 | C14: 0 | D14: 0 | E14: 1 | F14: =B14*E14 -> 8 | G14: =$G$7 -> 49 | H14: =F14*G14 -> 392 | I14: =H14*0.1 -> 39.2 | J14: =H14*0.05 -> 19.6 | K14: =(H14*'Base Data'!$C$5)+(I14*'Base Data'!$C$6)+(J14*'Base Data'!$C$7) -> 42640.78 | L14: 0 | M14: =E14*G14 -> 49 | N14: b
A15: 3) Biennial Compliance Report | B15: 5 | C15: 0 | D15: 0 | E15: 0.5 | F15: =B15*E15 -> 2.5 | G15: =$G$7+'Fac-NewSmlSolid-Yr1'!G15 -> 98 | H15: =F15*G15 -> 245 | I15: =H15*0.1 -> 24.5 | J15: =H15*0.05 -> 12.25 | K15: =(H15*'Base Data'!$C$5)+(I15*'Base Data'!$C$6)+(J15*'Base Data'!$C$7) -> 26650.4875 | L15: 0 | M15: =E15*G15 -> 49 | N15: b
A16: Reporting Subtotal | H16: =SUM(H4:H15) -> 3283 | I16: 328.3 | J16: 164.15 | K16: 357116.5325 | L16: 218344 | M16: 147
A17: 4. Recordkeeping Requirements
A18: A. Read Instructions | B18: Included in 3a
A19: B. Implement Activities | B19: na
A20: C. Develop Record System | B20: na | N20: c
A21: D. Record Information
A22: 1) Records of All Compliance Reports Submitted | B22: 2 | C22: 0 | D22: 0 | E22: 1 | F22: =B22*E22 -> 2 | G22: =$G$9+'Fac-NewSmlSolid-Yr1'!G22 -> 196 | H22: =F22*G22 -> 392 | I22: =H22*0.1 -> 39.2 | J22: =H22*0.05 -> 19.6 | K22: =(H22*'Base Data'!$C$5)+(I22*'Base Data'!$C$6)+(J22*'Base Data'!$C$7) -> 42640.78 | L22: 0 | M22: 0 | N22: b
A23: 2) Records of Biennial Tune-Up | B23: 0.5 | C23: 0 | D23: 0 | E23: 0.5 | F23: =B23*E23 -> 0.25 | G23: =$G$9+'Fac-NewSmlSolid-Yr1'!G23 -> 196 | H23: =F23*G23 -> 49 | I23: =H23*0.1 -> 4.9 | J23: =H23*0.05 -> 2.45 | K23: =(H23*'Base Data'!$C$5)+(I23*'Base Data'!$C$6)+(J23*'Base Data'!$C$7) -> 5330.0975 | L23: 0 | M23: 0 | N23: b
A24: E. Personnel Training | B24: na
A25: F. Time for Audits | B25: na
A26: Recordkeeping Subtotal | H26: =SUM(H18:H25) -> 441 | I26: =SUM(I18:I25) -> 44.1 | J26: 22.05 | K26: 47970.8775 | L26: 0 | M26: 0
A27: Totals | H27: =SUM(H16,H26) -> 3724 | I27: 372.4 | J27: 186.2 | K27: 405087.41 | L27: 218344 | M27: 147
A29: a Number of respondents based on number of new small solid fuel boilers which includes biomass and coal units less than 10 mmBtu/hr (assumption of 2 units per facility). One-third of the units will comply each year.
A30: b Compliance activities will start the year the boiler complies.
A31: c Assumes facility must already maintain records on boiler insurance and/or maintenance schedule. No new record system would be required.

Sheet Fac-NewSmlSolid-Yr3
A1: Table 7.C. Annual Respondent Burden and Cost of Recordkeeping and Reporting Requirements for the National Emission Standards
A2: for Hazardous Air Pollutants (NESHAP) for Industrial, Commercial, and Institutional Boilers and Process Heaters - Year 3, New Small Solid Fuel Units
A3: Burden Item | B3: (A) Respondent Hours per Occurrence (Technical hours) | C3: (B) Tune-Up Cost per Occurrence | D3: (C) Other Non-Labor Costs Per Occurrence | E3: (D) Number of Occurrences Per Respondent Per Year | F3: (E) Technical Hours per Respondent Per Year (A X D) | G3: (F) Number of Respondents Per Year | H3: (G) Technical Hours per Year @ $98.20 (E X F) | I3: (H) Clerical Hours per Year @ $48.53 (G X 0.1) | J3: (I) Management Hours per Year @ $114.49 (G X .05) | K3: (J) Total Labor Costs Per Year | L3: (K) Total Non-Labor Annual Costs | M3: (L) Total Number of Responses per Year (D X F) | N3: Footnotes
A4: 1. Applications | B4: na
A5: 2. Surveys and Studies | B5: na
A6: 3. Reporting Requirements
A7: A. Read and Understand Rule Requirements | B7: 40 | C7: 0 | D7: 0 | E7: 1 | F7: =B7*E7 -> 40 | G7: =ROUNDUP(SUM('Base Data'!H39,'Base Data'!H42)/3,0) -> 50 | H7: =F7*G7 -> 2000 | I7: =H7*0.1 -> 200 | J7: =H7*0.05 -> 100 | K7: =(H7*'Base Data'!$C$5)+(I7*'Base Data'!$C$6)+(J7*'Base Data'!$C$7) -> 217555 | L7: 0 | M7: 0 | N7: a
A8: B. Required Activities
A9: 1. Biennial Tune-Up | B9: 12 | C9: 2228 | D9: 0 | E9: 0.5 | F9: =B9*E9 -> 6 | G9: =ROUNDUP(SUM('Base Data'!$D$39,'Base Data'!$D$42)/3,0) -> 99 | H9: =F9*G9 -> 594 | I9: =H9*0.1 -> 59.4 | J9: =H9*0.05 -> 29.7 | K9: =(H9*'Base Data'!$C$5)+(I9*'Base Data'!$C$6)+(J9*'Base Data'!$C$7) -> 64613.835 | L9: =C9*G9 -> 220572 | M9: 0 | N9: b
A10: C. Create Information | B10: na
A11: D. Gather Information | B11: na
A12: E. Report Preparation
A13: 1) Initial Notification that Source is Subject | B13: 2 | C13: 0 | D13: 0 | E13: 1 | F13: =B13*E13 -> 2 | G13: =$G$7 -> 50 | H13: =F13*G13 -> 100 | I13: =H13*0.1 -> 10 | J13: =H13*0.05 -> 5 | K13: =(H13*'Base Data'!$C$5)+(I13*'Base Data'!$C$6)+(J13*'Base Data'!$C$7) -> 10877.75 | L13: 0 | M13: =E13*G13 -> 50 | N13: b
A14: 2) Notification of Compliance Status | B14: 8 | C14: 0 | D14: 0 | E14: 1 | F14: =B14*E14 -> 8 | G14: =$G$7 -> 50 | H14: =F14*G14 -> 400 | I14: =H14*0.1 -> 40 | J14: =H14*0.05 -> 20 | K14: =(H14*'Base Data'!$C$5)+(I14*'Base Data'!$C$6)+(J14*'Base Data'!$C$7) -> 43511 | L14: 0 | M14: =E14*G14 -> 50 | N14: b
A15: 3) Biennial Compliance Report | B15: 5 | C15: 0 | D15: 0 | E15: 0.5 | F15: =B15*E15 -> 2.5 | G15: =$G$7+'Fac-NewSmlSolid-Yr2'!G15 -> 148 | H15: =F15*G15 -> 370 | I15: =H15*0.1 -> 37 | J15: =H15*0.05 -> 18.5 | K15: =(H15*'Base Data'!$C$5)+(I15*'Base Data'!$C$6)+(J15*'Base Data'!$C$7) -> 40247.675 | L15: 0 | M15: =E15*G15 -> 74 | N15: b
A16: Reporting Subtotal | H16: =SUM(H4:H15) -> 3464 | I16: 346.4 | J16: 173.2 | K16: 376805.26 | L16: 220572 | M16: 174
A17: 4. Recordkeeping Requirements
A18: A. Read Instructions | B18: Included in 3a
A19: B. Implement Activities | B19: na
A20: C. Develop Record System | B20: na | N20: c
A21: D. Record Information
A22: 1) Records of All Compliance Reports Submitted | B22: 2 | C22: 0 | D22: 0 | E22: 1 | F22: =B22*E22 -> 2 | G22: =$G$9+'Fac-NewSmlSolid-Yr2'!G22 -> 295 | H22: =F22*G22 -> 590 | I22: =H22*0.1 -> 59 | J22: =H22*0.05 -> 29.5 | K22: =(H22*'Base Data'!$C$5)+(I22*'Base Data'!$C$6)+(J22*'Base Data'!$C$7) -> 64178.725 | L22: 0 | M22: 0 | N22: b
A23: 2) Records of Biennial Tune-Up | B23: 0.5 | C23: 0 | D23: 0 | E23: 0.5 | F23: =B23*E23 -> 0.25 | G23: =$G$9+'Fac-NewSmlSolid-Yr2'!G23 -> 295 | H23: =F23*G23 -> 73.75 | I23: =H23*0.1 -> 7.375 | J23: =H23*0.05 -> 3.6875 | K23: =(H23*'Base Data'!$C$5)+(I23*'Base Data'!$C$6)+(J23*'Base Data'!$C$7) -> 8022.340625 | L23: 0 | M23: 0 | N23: b
A24: E. Personnel Training | B24: na
A25: F. Time for Audits | B25: na
A26: Recordkeeping Subtotal | H26: =SUM(H18:H25) -> 663.75 | I26: =SUM(I18:I25) -> 66.375 | J26: 33.1875 | K26: 72201.06563 | L26: 0 | M26: 0
A27: Totals | H27: =SUM(H16,H26) -> 4127.75 | I27: 412.775 | J27: 206.3875 | K27: 449006.3256 | L27: 220572 | M27: 174
A29: a Number of respondents based on number of new small solid fuel boilers which includes biomass and coal units less than 10 mmBtu/hr (assumption of 2 units per facility). One-third of the units will comply each year.
A30: b Compliance activities will start the year the boiler complies.
A31: c Assumes facility must already maintain records on boiler insurance and/or maintenance schedule. No new record system would be required.

Sheet Fac-NewSmlLiquid-Yr1
A1: Table 8.A. Annual Respondent Burden and Cost of Recordkeeping and Reporting Requirements for the National Emission Standards
A2: for Hazardous Air Pollutants (NESHAP) for Industrial, Commercial, and Institutional Boilers and Process Heaters - Year 1, New Small Liquid Fuel Units
A3: Burden Item | B3: (A) Respondent Hours per Occurrence (Technical hours) | C3: (B) Tune-Up Cost per Occurrence | D3: (C) Other Non-Labor Costs Per Occurrence | E3: (D) Number of Occurrences Per Respondent Per Year | F3: (E) Technical Hours per Respondent Per Year (A X D) | G3: (F) Number of Respondents Per Year | H3: (G) Technical Hours per Year @ $98.20 (E X F) | I3: (H) Clerical Hours per Year @ $48.53 (G X 0.1) | J3: (I) Management Hours per Year @ $114.49 (G X .05) | K3: (J) Total Labor Costs Per Year | L3: (K) Total Non-Labor Annual Costs | M3: (L) Total Number of Responses per Year (D X F) | N3: Footnotes
A4: 1. Applications | B4: na
A5: 2. Surveys and Studies | B5: na
A6: 3. Reporting Requirements
A7: A. Read and Understand Rule Requirements | B7: 40 | C7: 0 | D7: 0 | E7: 1 | F7: =B7*E7 -> 40 | G7: =ROUND('Base Data'!$H$43/3,0) -> 989 | H7: =F7*G7 -> 39560 | I7: =H7*0.1 -> 3956 | J7: =H7*0.05 -> 1978 | K7: =(H7*'Base Data'!$C$5)+(I7*'Base Data'!$C$6)+(J7*'Base Data'!$C$7) -> 4303237.9 | L7: 0 | M7: 0 | N7: a
A8: B. Required Activities
A9: 1. Biennial Tune-Up | B9: 12 | C9: 2228 | D9: 0 | E9: 0.5 | F9: =B9*E9 -> 6 | G9: =ROUND('Base Data'!$D$43/3,0) -> 1979 | H9: =F9*G9 -> 11874 | I9: =H9*0.1 -> 1187.4 | J9: =H9*0.05 -> 593.7 | K9: =(H9*'Base Data'!$C$5)+(I9*'Base Data'!$C$6)+(J9*'Base Data'!$C$7) -> 1291624.035 | L9: =C9*G9 -> 4409212 | M9: 0 | N9: b
A10: C. Create Information | B10: na
A11: D. Gather Information | B11: na
A12: E. Report Preparation
A13: 1) Initial Notification that Source is Subject | B13: 2 | C13: 0 | D13: 0 | E13: 1 | F13: =B13*E13 -> 2 | G13: =$G$7 -> 989 | H13: =F13*G13 -> 1978 | I13: =H13*0.1 -> 197.8 | J13: =H13*0.05 -> 98.9 | K13: =(H13*'Base Data'!$C$5)+(I13*'Base Data'!$C$6)+(J13*'Base Data'!$C$7) -> 215161.895 | L13: 0 | M13: =E13*G13 -> 989 | N13: b
A14: 2) Notification of Compliance Status | B14: 8 | C14: 0 | D14: 0 | E14: 1 | F14: =B14*E14 -> 8 | G14: =$G$7 -> 989 | H14: =F14*G14 -> 7912 | I14: =H14*0.1 -> 791.2 | J14: =H14*0.05 -> 395.6 | K14: =(H14*'Base Data'!$C$5)+(I14*'Base Data'!$C$6)+(J14*'Base Data'!$C$7) -> 860647.58 | L14: 0 | M14: =E14*G14 -> 989 | N14: b
A15: 3) Biennial Compliance Report | B15: 5 | C15: 0 | D15: 0 | E15: 0.5 | F15: =B15*E15 -> 2.5 | G15: =$G$7 -> 989 | H15: =F15*G15 -> 2472.5 | I15: =H15*0.1 -> 247.25 | J15: =H15*0.05 -> 123.625 | K15: =(H15*'Base Data'!$C$5)+(I15*'Base Data'!$C$6)+(J15*'Base Data'!$C$7) -> 268952.3688 | L15: 0 | M15: =E15*G15 -> 494.5 | N15: b
A16: Reporting Subtotal | H16: =SUM(H4:H15) -> 63796.5 | I16: 6379.65 | J16: 3189.825 | K16: 6939623.779 | L16: 4409212 | M16: 2472.5
A17: 4. Recordkeeping Requirements
A18: A. Read Instructions | B18: Included in 3a
A19: B. Implement Activities | B19: na
A20: C. Develop Record System | B20: na | N20: c
A21: D. Record Information
A22: 1) Records of All Compliance Reports Submitted | B22: 2 | C22: 0 | D22: 0 | E22: 1 | F22: =B22*E22 -> 2 | G22: =$G$9 -> 1979 | H22: =F22*G22 -> 3958 | I22: =H22*0.1 -> 395.8 | J22: =H22*0.05 -> 197.9 | K22: =(H22*'Base Data'!$C$5)+(I22*'Base Data'!$C$6)+(J22*'Base Data'!$C$7) -> 430541.345 | L22: 0 | M22: 0 | N22: b
A23: 2) Records of Biennial Tune-Up | B23: 0.5 | C23: 0 | D23: 0 | E23: 0.5 | F23: =B23*E23 -> 0.25 | G23: =$G$9 -> 1979 | H23: =F23*G23 -> 494.75 | I23: =H23*0.1 -> 49.475 | J23: =H23*0.05 -> 24.7375 | K23: =(H23*'Base Data'!$C$5)+(I23*'Base Data'!$C$6)+(J23*'Base Data'!$C$7) -> 53817.66813 | L23: 0 | M23: 0 | N23: b
A24: E. Personnel Training | B24: na
A25: F. Time for Audits | B25: na
A26: Recordkeeping Subtotal | H26: =SUM(H18:H25) -> 4452.75 | I26: =SUM(I18:I25) -> 445.275 | J26: 222.6375 | K26: =SUM(K18:K25) -> 484359.0131 | L26: 0 | M26: 0
A27: Totals | H27: =SUM(H16,H26) -> 68249.25 | I27: 6824.925 | J27: 3412.4625 | K27: 7423982.792 | L27: 4409212 | M27: 2472.5
A29: a Number of respondents based on number of new small liquid fuel boilers less than 10 mmBtu/hr (assumption of 2 units per facility). One-third of the units will comply each year.
A30: b Compliance activities will start the year the boiler complies.
A31: c Assumes facility must already maintain records on boiler insurance and/or maintenance schedule. No new record system would be required.

Sheet Fac-NewSmlLiquid-Yr2
A1: Table 8.B. Annual Respondent Burden and Cost of Recordkeeping and Reporting Requirements for the National Emission Standards
A2: for Hazardous Air Pollutants (NESHAP) for Industrial, Commercial, and Institutional Boilers and Process Heaters - Year 2, New Small Liquid Fuel Units
A3: Burden Item | B3: (A) Respondent Hours per Occurrence (Technical hours) | C3: (B) Tune-Up Cost per Occurrence | D3: (C) Other Non-Labor Costs Per Occurrence | E3: (D) Number of Occurrences Per Respondent Per Year | F3: (E) Technical Hours per Respondent Per Year (A X D) | G3: (F) Number of Respondents Per Year | H3: (G) Technical Hours per Year @ $98.20 (E X F) | I3: (H) Clerical Hours per Year @ $48.53 (G X 0.1) | J3: (I) Management Hours per Year @ $114.49 (G X .05) | K3: (J) Total Labor Costs Per Year | L3: (K) Total Non-Labor Annual Costs | M3: (L) Total Number of Responses per Year (D X F) | N3: Footnotes
A4: 1. Applications | B4: na
A5: 2. Surveys and Studies | B5: na
A6: 3. Reporting Requirements
A7: A. Read and Understand Rule Requirements | B7: 40 | C7: 0 | D7: 0 | E7: 1 | F7: =B7*E7 -> 40 | G7: =ROUND('Base Data'!$H$43/3,0) -> 989 | H7: =F7*G7 -> 39560 | I7: =H7*0.1 -> 3956 | J7: =H7*0.05 -> 1978 | K7: =(H7*'Base Data'!$C$5)+(I7*'Base Data'!$C$6)+(J7*'Base Data'!$C$7) -> 4303237.9 | L7: 0 | M7: 0 | N7: a
A8: B. Required Activities
A9: 1. Biennial Tune-Up | B9: 12 | C9: 2228 | D9: 0 | E9: 0.5 | F9: =B9*E9 -> 6 | G9: =ROUND('Base Data'!$D$43/3,0) -> 1979 | H9: =F9*G9 -> 11874 | I9: =H9*0.1 -> 1187.4 | J9: =H9*0.05 -> 593.7 | K9: =(H9*'Base Data'!$C$5)+(I9*'Base Data'!$C$6)+(J9*'Base Data'!$C$7) -> 1291624.035 | L9: =C9*G9 -> 4409212 | M9: 0 | N9: b
A10: C. Create Information | B10: na
A11: D. Gather Information | B11: na
A12: E. Report Preparation
A13: 1) Initial Notification that Source is Subject | B13: 2 | C13: 0 | D13: 0 | E13: 1 | F13: =B13*E13 -> 2 | G13: =$G$7 -> 989 | H13: =F13*G13 -> 1978 | I13: =H13*0.1 -> 197.8 | J13: =H13*0.05 -> 98.9 | K13: =(H13*'Base Data'!$C$5)+(I13*'Base Data'!$C$6)+(J13*'Base Data'!$C$7) -> 215161.895 | L13: 0 | M13: =E13*G13 -> 989 | N13: b
A14: 2) Notification of Compliance Status | B14: 8 | C14: 0 | D14: 0 | E14: 1 | F14: =B14*E14 -> 8 | G14: =$G$7 -> 989 | H14: =F14*G14 -> 7912 | I14: =H14*0.1 -> 791.2 | J14: =H14*0.05 -> 395.6 | K14: =(H14*'Base Data'!$C$5)+(I14*'Base Data'!$C$6)+(J14*'Base Data'!$C$7) -> 860647.58 | L14: 0 | M14: =E14*G14 -> 989 | N14: b
A15: 3) Biennial Compliance Report | B15: 5 | C15: 0 | D15: 0 | E15: 0.5 | F15: =B15*E15 -> 2.5 | G15: =$G$7+'Fac-NewSmlLiquid-Yr1'!G15 -> 1978 | H15: =F15*G15 -> 4945 | I15: =H15*0.1 -> 494.5 | J15: =H15*0.05 -> 247.25 | K15: =(H15*'Base Data'!$C$5)+(I15*'Base Data'!$C$6)+(J15*'Base Data'!$C$7) -> 537904.7375 | L15: 0 | M15: =E15*G15 -> 989 | N15: b
A16: Reporting Subtotal | H16: =SUM(H4:H15) -> 66269 | I16: 6626.9 | J16: 3313.45 | K16: 7208576.147 | L16: 4409212 | M16: 2967
A17: 4. Recordkeeping Requirements
A18: A. Read Instructions | B18: Included in 3a
A19: B. Implement Activities | B19: na
A20: C. Develop Record System | B20: na | N20: c
A21: D. Record Information
A22: 1) Records of All Compliance Reports Submitted | B22: 2 | C22: 0 | D22: 0 | E22: 1 | F22: =B22*E22 -> 2 | G22: =$G$9+'Fac-NewSmlLiquid-Yr1'!G22 -> 3958 | H22: =F22*G22 -> 7916 | I22: =H22*0.1 -> 791.6 | J22: =H22*0.05 -> 395.8 | K22: =(H22*'Base Data'!$C$5)+(I22*'Base Data'!$C$6)+(J22*'Base Data'!$C$7) -> 861082.69 | L22: 0 | M22: 0 | N22: b
A23: 2) Records of Biennial Tune-Up | B23: 0.5 | C23: 0 | D23: 0 | E23: 0.5 | F23: =B23*E23 -> 0.25 | G23: =$G$9+'Fac-NewSmlLiquid-Yr1'!G23 -> 3958 | H23: =F23*G23 -> 989.5 | I23: =H23*0.1 -> 98.95 | J23: =H23*0.05 -> 49.475 | K23: =(H23*'Base Data'!$C$5)+(I23*'Base Data'!$C$6)+(J23*'Base Data'!$C$7) -> 107635.3363 | L23: 0 | M23: 0 | N23: b
A24: E. Personnel Training | B24: na
A25: F. Time for Audits | B25: na
A26: Recordkeeping Subtotal | H26: =SUM(H18:H25) -> 8905.5 | I26: =SUM(I18:I25) -> 890.55 | J26: 445.275 | K26: 968718.0263 | L26: 0 | M26: 0
A27: Totals | H27: =SUM(H16,H26) -> 75174.5 | I27: 7517.45 | J27: 3758.725 | K27: 8177294.174 | L27: 4409212 | M27: 2967
A29: a Number of respondents based on number of new small liquid fuel boilers less than 10 mmBtu/hr (assumption of 2 units per facility). One-third of the units will comply each year.
A30: b Compliance activities will start the year the boiler complies.
A31: c Assumes facility must already maintain records on boiler insurance and/or maintenance schedule. No new record system would be required.

Sheet Fac-NewSmlLiquid-Yr3
A1: Table 8.C. Annual Respondent Burden and Cost of Recordkeeping and Reporting Requirements for the National Emission Standards
A2: for Hazardous Air Pollutants (NESHAP) for Industrial, Commercial, and Institutional Boilers and Process Heaters - Year 3, New Small Liquid Fuel Units
A3: Burden Item | B3: (A) Respondent Hours per Occurrence (Technical hours) | C3: (B) Tune-Up Cost per Occurrence | D3: (C) Other Non-Labor Costs Per Occurrence | E3: (D) Number of Occurrences Per Respondent Per Year | F3: (E) Technical Hours per Respondent Per Year (A X D) | G3: (F) Number of Respondents Per Year | H3: (G) Technical Hours per Year @ $98.20 (E X F) | I3: (H) Clerical Hours per Year @ $48.53 (G X 0.1) | J3: (I) Management Hours per Year @ $114.49 (G X .05) | K3: (J) Total Labor Costs Per Year | L3: (K) Total Non-Labor Annual Costs | M3: (L) Total Number of Responses per Year (D X F) | N3: Footnotes
A4: 1. Applications | B4: na
A5: 2. Surveys and Studies | B5: na
A6: 3. Reporting Requirements
A7: A. Read and Understand Rule Requirements | B7: 40 | C7: 0 | D7: 0 | E7: 1 | F7: =B7*E7 -> 40 | G7: =ROUNDUP('Base Data'!$H$43/3,0) -> 990 | H7: =F7*G7 -> 39600 | I7: =H7*0.1 -> 3960 | J7: =H7*0.05 -> 1980 | K7: =(H7*'Base Data'!$C$5)+(I7*'Base Data'!$C$6)+(J7*'Base Data'!$C$7) -> 4307589 | L7: 0 | M7: 0 | N7: a
A8: B. Required Activities
A9: 1. Biennial Tune-Up | B9: 12 | C9: 2228 | D9: 0 | E9: 0.5 | F9: =B9*E9 -> 6 | G9: =ROUNDUP('Base Data'!$D$43/3,0) -> 1979 | H9: =F9*G9 -> 11874 | I9: =H9*0.1 -> 1187.4 | J9: =H9*0.05 -> 593.7 | K9: =(H9*'Base Data'!$C$5)+(I9*'Base Data'!$C$6)+(J9*'Base Data'!$C$7) -> 1291624.035 | L9: =C9*G9 -> 4409212 | M9: 0 | N9: b
A10: C. Create Information | B10: na
A11: D. Gather Information | B11: na
A12: E. Report Preparation
A13: 1) Initial Notification that Source is Subject | B13: 2 | C13: 0 | D13: 0 | E13: 1 | F13: =B13*E13 -> 2 | G13: =$G$7 -> 990 | H13: =F13*G13 -> 1980 | I13: =H13*0.1 -> 198 | J13: =H13*0.05 -> 99 | K13: =(H13*'Base Data'!$C$5)+(I13*'Base Data'!$C$6)+(J13*'Base Data'!$C$7) -> 215379.45 | L13: 0 | M13: =E13*G13 -> 990 | N13: b
A14: 2) Notification of Compliance Status | B14: 8 | C14: 0 | D14: 0 | E14: 1 | F14: =B14*E14 -> 8 | G14: =$G$7 -> 990 | H14: =F14*G14 -> 7920 | I14: =H14*0.1 -> 792 | J14: =H14*0.05 -> 396 | K14: =(H14*'Base Data'!$C$5)+(I14*'Base Data'!$C$6)+(J14*'Base Data'!$C$7) -> 861517.8 | L14: 0 | M14: =E14*G14 -> 990 | N14: b
A15: 3) Biennial Compliance Report | B15: 5 | C15: 0 | D15: 0 | E15: 0.5 | F15: =B15*E15 -> 2.5 | G15: =$G$7+'Fac-NewSmlLiquid-Yr2'!G15 -> 2968 | H15: =F15*G15 -> 7420 | I15: =H15*0.1 -> 742 | J15: =H15*0.05 -> 371 | K15: =(H15*'Base Data'!$C$5)+(I15*'Base Data'!$C$6)+(J15*'Base Data'!$C$7) -> 807129.05 | L15: 0 | M15: =E15*G15 -> 1484 | N15: b
A16: Reporting Subtotal | H16: =SUM(H4:H15) -> 68794 | I16: 6879.4 | J16: 3439.7 | K16: 7483239.335 | L16: 4409212 | M16: 3464
A17: 4. Recordkeeping Requirements
A18: A. Read Instructions | B18: Included in 3a
A19: B. Implement Activities | B19: na
A20: C. Develop Record System | B20: na | N20: c
A21: D. Record Information
A22: 1) Records of All Compliance Reports Submitted | B22: 2 | C22: 0 | D22: 0 | E22: 1 | F22: =B22*E22 -> 2 | G22: =$G$9+'Fac-NewSmlLiquid-Yr2'!G22 -> 5937 | H22: =F22*G22 -> 11874 | I22: =H22*0.1 -> 1187.4 | J22: =H22*0.05 -> 593.7 | K22: =(H22*'Base Data'!$C$5)+(I22*'Base Data'!$C$6)+(J22*'Base Data'!$C$7) -> 1291624.035 | L22: 0 | M22: 0 | N22: b
A23: 2) Records of Biennial Tune-Up | B23: 0.5 | C23: 0 | D23: 0 | E23: 0.5 | F23: =B23*E23 -> 0.25 | G23: =$G$9+'Fac-NewSmlLiquid-Yr2'!G23 -> 5937 | H23: =F23*G23 -> 1484.25 | I23: =H23*0.1 -> 148.425 | J23: =H23*0.05 -> 74.2125 | K23: =(H23*'Base Data'!$C$5)+(I23*'Base Data'!$C$6)+(J23*'Base Data'!$C$7) -> 161453.0044 | L23: 0 | M23: 0 | N23: b
A24: E. Personnel Training | B24: na
A25: F. Time for Audits | B25: na
A26: Recordkeeping Subtotal | H26: =SUM(H18:H25) -> 13358.25 | I26: =SUM(I18:I25) -> 1335.825 | J26: 667.9125 | K26: 1453077.039 | L26: 0 | M26: 0
A27: Totals | H27: =SUM(H16,H26) -> 82152.25 | I27: 8215.225 | J27: 4107.6125 | K27: 8936316.374 | L27: 4409212 | M27: 3464
A29: a Number of respondents based on number of new small liquid fuel boilers less than 10 mmBtu/hr (assumption of 2 units per facility). One-third of the units will comply each year.
A30: b Compliance activities will start the year the boiler complies.
A31: c Assumes facility must already maintain records on boiler insurance and/or maintenance schedule. No new record system would be required.

Sheet AgencyYR1
A1: Table 9.A. Annual Federal Government Burden and Cost of Recordkeeping and Reporting
A2: for the Industrial, Commercial, and Institutional Boilers Area Source NESHAP Subpart JJJJJJ- Year 1 - First Year After Promulgation
A4: Burden Item | G4: EPA hours per occurrence (A) | H4: Number of occurrences per year (B) | I4: EPA hours per occurrence per year (C=AxB) | J4: Technical hours per year (D=C) | K4: Management hours per year (E=Dx0.05) | L4: Clerical hours per year (F=Dx0.1) | M4: Costs, $L (H) | N4: Footnotes
A5: 1. | B5: Read and understand rule requirements | G5: 40 | H5: 60 | I5: =G5*H5 -> 2400 | J5: =I5 -> 2400 | K5: =J5*0.05 -> 120 | L5: =J5*0.1 -> 240 | M5: =(J5*'Base Data'!$C$60)+(K5*'Base Data'!$C$58)+(L5*'Base Data'!$C$59) -> 124378.8 | N5: a
A6: 2. | B6: Enter and update information into agency recordkeeping system | G6: 2 | H6: =SUM('Fac-ExistLrgSolid-Yr1'!$I$27,'Fac-ExistLrgLiquid-Yr1'!$H$16,'Fac-NewLrgSolid-Yr1'!$G$28,'Fac-NewLrgLiquid-Yr1'!$G$22,'Fac - ExistSmlSolid-Yr1'!$G$13,'Fac - ExistSmlLiquid-Yr1'!$G$13,'Fac-NewSmlSolid-Yr1'!$G$13,'Fac-NewSmlLiquid-Yr1'!$G$13) -> 92465 | I6: =G6*H6 -> 184930 | J6: =I6 -> 184930 | K6: =J6*0.05 -> 9246.5 | L6: =J6*0.1 -> 18493 | M6: =(J6*'Base Data'!$C$60)+(K6*'Base Data'!$C$58)+(L6*'Base Data'!$C$59) -> 9583904.785 | N6: b
A7: 3. | B7: Required activities
B8: A. | C8: Observe initial stack/performance test | G8: 40 | H8: =ROUND(SUM('Fac-NewLrgLiquid-Yr1'!$G$9,'Fac-NewLrgSolid-Yr1'!$G$9:$G$11,'Fac-ExistLrgSolid-Yr1'!$I$12:$I$13)*0.2,0) -> 33 | I8: =G8*H8 -> 1320 | J8: =I8 -> 1320 | K8: =J8*0.05 -> 66 | L8: =J8*0.1 -> 132 | M8: =(J8*'Base Data'!$C$60)+(K8*'Base Data'!$C$58)+(L8*'Base Data'!$C$59) -> 68408.34 | N8: c
B9: B. | C9: Observe repeat performance test | G9: 40 | H9: =ROUND(SUM('Fac-NewLrgLiquid-Yr1'!$G$9,'Fac-NewLrgSolid-Yr1'!$G$9:$G$11,'Fac-ExistLrgSolid-Yr1'!$I$12:$I$13)*0.1,0) -> 17 | I9: =G9*H9 -> 680 | J9: =I9 -> 680 | K9: =J9*0.05 -> 34 | L9: =J9*0.1 -> 68 | M9: =(J9*'Base Data'!$C$60)+(K9*'Base Data'!$C$58)+(L9*'Base Data'!$C$59) -> 35240.66 | N9: d
B10: C. | C10: Review operating parameters | G10: 2 | H10: =ROUND(SUM('Fac-NewLrgLiquid-Yr1'!$G$9,'Fac-NewLrgSolid-Yr1'!$G$9:$G$11,'Fac-ExistLrgSolid-Yr1'!$I$12:$I$13),0) -> 166 | I10: =G10*H10 -> 332 | J10: =I10 -> 332 | K10: =J10*0.05 -> 16.6 | L10: =J10*0.1 -> 33.2 | M10: =(J10*'Base Data'!$C$60)+(K10*'Base Data'!$C$58)+(L10*'Base Data'!$C$59) -> 17205.734 | N10: e
B11: D. | C11: Review continuous parameter monitoring | G11: 2 | H11: =ROUND(SUM('Fac-NewLrgSolid-Yr1'!$G$37,'Fac-NewLrgLiquid-Yr1'!$G$31,'Fac-ExistLrgSolid-Yr1'!$I$38),0) -> 182 | I11: =G11*H11 -> 364 | J11: =I11 -> 364 | K11: =J11*0.05 -> 18.2 | L11: =J11*0.1 -> 36.4 | M11: =(J11*'Base Data'!$C$60)+(K11*'Base Data'!$C$58)+(L11*'Base Data'!$C$59) -> 18864.118 | N11: f
A12: 4 | B12: Excess Emissions Enforcement Activities and Inspections | G12: 24 | H12: =ROUND(SUM('Fac-NewLrgLiquid-Yr1'!$G$9,'Fac-NewLrgSolid-Yr1'!$G$9,'Fac-ExistLrgSolid-Yr1'!$I$12)*0.1,0) -> 17 | I12: 0 | J12: =I12 -> 0 | K12: =J12*0.05 -> 0 | L12: =J12*0.1 -> 0 | M12: =(J12*'Base Data'!$C$60)+(K12*'Base Data'!$C$58)+(L12*'Base Data'!$C$59) -> 0 | N12: g
A13: 5 | B13: Notification requirements
B14: A. | C14: Review initial notification that sources are subject to the standard | G14: 2 | H14: =H6 -> 92465 | I14: =G14*H14 -> 184930 | J14: =I14 -> 184930 | K14: =J14*0.05 -> 9246.5 | L14: =J14*0.1 -> 18493 | M14: =(J14*'Base Data'!$C$60)+(K14*'Base Data'!$C$58)+(L14*'Base Data'!$C$59) -> 9583904.785 | N14: b
B15: B. | C15: Review notification of initial performance tests and review test plan | G15: 20 | H15: =ROUND(SUM('Fac-NewLrgLiquid-Yr1'!$G$9,'Fac-NewLrgSolid-Yr1'!$G$9,'Fac-ExistLrgSolid-Yr1'!$I$12),0) -> 166 | I15: 3320 | J15: 3320 | K15: 166 | L15: 332 | M15: =(J15*'Base Data'!$C$60)+(K15*'Base Data'!$C$58)+(L15*'Base Data'!$C$59) -> 172057.34 | N15: e
B16: C. | C16: Review notification of compliance status | G16: 2 | H16: =SUM('Fac-NewSmlLiquid-Yr1'!$G$14,'Fac-NewSmlSolid-Yr1'!$G$14,'Fac - ExistSmlLiquid-Yr1'!$G$14,'Fac - ExistSmlSolid-Yr1'!$G$14,'Fac-NewLrgLiquid-Yr1'!$G$23,'Fac-NewLrgSolid-Yr1'!$G$29,'Fac-ExistLrgLiquid-Yr1'!$H$17,'Fac-ExistLrgSolid-Yr1'!$I$28) -> 1129 | I16: 2258 | J16: 2258 | K16: 112.9 | L16: 225.8 | M16: =(J16*'Base Data'!$C$60)+(K16*'Base Data'!$C$58)+(L16*'Base Data'!$C$59) -> 117019.721 | N16: b
A17: 6. | B17: Reporting requirements | I17: 0 | J17: 0 | K17: 0 | L17: 0 | M17: =(J17*'Base Data'!$C$60)+(K17*'Base Data'!$C$58)+(L17*'Base Data'!$C$59) -> 0
B18: A. | C18: Review annual compliance report | G18: 4 | H18: ='Fac-NewLrgLiquid-Yr1'!$G$24+'Fac-NewLrgSolid-Yr1'!$G$30+'Fac-ExistLrgSolid-Yr1'!$I$30 -> 91 | I18: 364 | J18: 364 | K18: 18.2 | L18: 36.4 | M18: =(J18*'Base Data'!$C$60)+(K18*'Base Data'!$C$58)+(L18*'Base Data'!$C$59) -> 18864.118 | N18: h
B19: B. | C19: Review biennial compliance report | G19: 2 | H19: =0.5*SUM('Fac-NewSmlLiquid-Yr1'!$G$15,'Fac-NewSmlSolid-Yr1'!$G$15,'Fac - ExistSmlLiquid-Yr1'!$G$15,'Fac - ExistSmlSolid-Yr1'!$G$15,'Fac-ExistLrgLiquid-Yr1'!$H$18,'Fac-ExistLrgSolid-Yr1'!$I$31) -> 519 | I19: =G19*H19 -> 1038 | J19: 1038 | K19: 51.9 | L19: =J19*0.1 -> 103.8 | M19: =(J19*'Base Data'!$C$60)+(K19*'Base Data'!$C$58)+(L19*'Base Data'!$C$59) -> 53793.831 | N19: i
B20: C. | C20: Review initial report on results of energy audit | G20: 2 | H20: =SUM('Fac-ExistLrgLiquid-Yr1'!$H$10:$H$11,'Fac-ExistLrgSolid-Yr1'!$I$10:$I$11) -> 0 | I20: 0 | J20: 0 | K20: 0 | L20: 0 | M20: =(J20*'Base Data'!$C$60)+(K20*'Base Data'!$C$58)+(L20*'Base Data'!$C$59) -> 0 | N20: j
A21: 7. | B21: Travel Expenses for Tests Attended | G21: 3 days * ($110 hotel + $58 meals/incidentals) + ($600 round trip) = $1104 per trip | M21: =(('Base Data'!$C$68*('Base Data'!$C$65+'Base Data'!$C$66))+'Base Data'!$C$67)*SUM(H8:H9) -> 55200 | N21: k
A22: TOTAL BURDEN AND COST (SALARY) | J22: =SUM(J5:J20) -> 381936 | K22: =SUM(K5:K20) -> 19096.8 | L22: =SUM(L5:L20) -> 38193.6 | M22: =SUM(M5:M21) -> 19848842.23
A23: TOTAL ANNUAL HOURS | L23: =(SUM(J5:J20))+(SUM(K5:K20))+(SUM(L5:L20)) -> 439226.4
A25: a Number of occurrences is the number of states where affected sources will exist and each EPA Region (50 states + 10 EPA regions = 60 respondents).
A26: b Number of occurrences is based on the total number of affected facilities in year 1 that are required to submit initial notifications stated they are subject to the standard (all new boilers in the large and small solid and liquid subcategories, plus all existing large and small solid and liquid subcategories). For initial notifications of compliance status, the number of occurrences is based on all new boilers in the large and small solid and liquid subcategories, existing large and small solid and liquid units have until year 3 to submit this notification.
A27: c Number of occurrences is based on the assumption that EPA personnel will observe 20% of the initial performance tests that occur in year 1 (in year 1 only boilers in new large and small solid and liquid subcategories test).
A28: d Number of occurrences is based on the assumption that of the units that test in year 1, 10% will have to retest and EPA personnel will observe all these retests.
A29: e Number of occurrences is based on the number of units that will test and set/submit operating limits in year 1 (in year 1 only new boilers in new large and small solid and liquid subcategories).
A30: f Number of occurrences begins in year 3 for existing units and in year 1 for new units and is based on the number of units maintaining records of control device parameters.
A31: g Number of occurrences is based on the assumption that of the new units in year 1 that test, 10% of them will have exceedances and need enforcement.
A32: h Number of occurrences is the number of projected new units in years 1, 2, and 3 that will submit these semi-annual compliance reports (new units in the large and small solid and liquid subcategories) as well as existing large solid and liquid units that will begin to submit compliance reports in year 3.
A33: i Number of occurrences is the number of units in year 1 that will submit these biennial compliance reports (existing small solid and liquid subcategories).
A34: j Energy audits only occur at existing facilities with large units.
A35: k Total cost is based on the number of trips taken by EPA to observe performance tests in year 1 (4.A. & 4.B.) multiplied by $1104 per trip. The source for hotel and meals/incidental costs is based on FY' 10 per diem rates, averaged across all locations in the United States. Airfares are estimated based on experience from other rulemakings. See: http://www.gsa.gov/Portal/gsa/ep/contentView.do?contentId=17943&contentType=GSA_BASIC
A36: L These rates are from the Office of Personnel Management (OPM), 2010 General Schedule, which excludes locality rates of pay. The rates have been increased by 60 percent to account for the benefit packages available to government employees. These rates can be obtained from the OPM web site, http//www.opm.gov/oca/payrates/index/htm.

Sheet AgencyYR2
A1: Table 9.B. Annual Federal Government Burden and Cost of Recordkeeping and Reporting
A2: for the Industrial, Commercial, and Institutional Boilers Area Source NESHAP Subpart JJJJJJ- Year 2 - Second Year After Promulgation
A4: Burden Item | G4: EPA hours per occurrence (A) | H4: Number of occurrences per year (B) | I4: EPA hours per occurrence per year (C=AxB) | J4: Technical hours per year (D=C) | K4: Management hours per year (E=Dx0.05) | L4: Clerical hours per year (F=Dx0.1) | M4: Costs, $L (H) | N4: Footnotes
A5: 1. | B5: Read and understand rule requirements | G5: 40 | H5: 0 | I5: =G5*H5 -> 0 | J5: =I5 -> 0 | K5: =J5*0.05 -> 0 | L5: =J5*0.1 -> 0 | M5: =(J5*'Base Data'!$C$60)+(K5*'Base Data'!$C$58)+(L5*'Base Data'!$C$59) -> 0 | N5: a
A6: 2. | B6: Enter and update information into agency recordkeeping system | G6: 2 | H6: =SUM('Fac-ExistLrgSolid-Yr2'!$I$27,'Fac-ExistLrgLiquid-Yr2'!$H$16,'Fac-NewLrgSolid-Yr2'!$G$28,'Fac-NewLrgLiquid-Yr2'!$G$22,'Fac - ExistSmlSolid-Yr2'!$G$13,'Fac - ExistSmlLiquid-Yr2'!$G$13,'Fac-NewSmlSolid-Yr2'!$G$13,'Fac-NewSmlLiquid-Yr2'!$G$13) -> 1129 | I6: =G6*H6 -> 2258 | J6: =I6 -> 2258 | K6: =J6*0.05 -> 112.9 | L6: =J6*0.1 -> 225.8 | M6: =(J6*'Base Data'!$C$60)+(K6*'Base Data'!$C$58)+(L6*'Base Data'!$C$59) -> 117019.721 | N6: b
A7: 3. | B7: Required activities
B8: A. | C8: Observe initial stack/performance test | G8: 40 | H8: =ROUND(SUM('Fac-NewLrgLiquid-Yr2'!$G$9,'Fac-NewLrgSolid-Yr2'!$G$9:$G$11,'Fac-ExistLrgSolid-Yr2'!$I$12:$I$13)*0.2,0) -> 148 | I8: =G8*H8 -> 5920 | J8: =I8 -> 5920 | K8: =J8*0.05 -> 296 | L8: =J8*0.1 -> 592 | M8: =(J8*'Base Data'!$C$60)+(K8*'Base Data'!$C$58)+(L8*'Base Data'!$C$59) -> 306801.04 | N8: c
B9: B. | C9: Observe repeat performance test | G9: 40 | H9: =ROUND(SUM('Fac-NewLrgLiquid-Yr2'!$G$9,'Fac-NewLrgSolid-Yr2'!$G$9:$G$11,'Fac-ExistLrgSolid-Yr2'!$I$12:$I$13)*0.1,0) -> 74 | I9: =G9*H9 -> 2960 | J9: =I9 -> 2960 | K9: =J9*0.05 -> 148 | L9: =J9*0.1 -> 296 | M9: =(J9*'Base Data'!$C$60)+(K9*'Base Data'!$C$58)+(L9*'Base Data'!$C$59) -> 153400.52 | N9: d
B10: C. | C10: Review operating parameters | G10: 2 | H10: =ROUND(SUM('Fac-NewLrgLiquid-Yr2'!$G$9,'Fac-NewLrgSolid-Yr2'!$G$9:$G$11,'Fac-ExistLrgSolid-Yr2'!$I$12:$I$13),0) -> 740 | I10: =G10*H10 -> 1480 | J10: =I10 -> 1480 | K10: =J10*0.05 -> 74 | L10: =J10*0.1 -> 148 | M10: =(J10*'Base Data'!$C$60)+(K10*'Base Data'!$C$58)+(L10*'Base Data'!$C$59) -> 76700.26 | N10: e
B11: D. | C11: Review continuous parameter monitoring | G11: 2 | H11: =ROUND(SUM('Fac-NewLrgSolid-Yr2'!$G$37,'Fac-NewLrgLiquid-Yr2'!$G$31,'Fac-ExistLrgSolid-Yr2'!$I$38),0) -> 364 | I11: =G11*H11 -> 728 | J11: =I11 -> 728 | K11: =J11*0.05 -> 36.4 | L11: =J11*0.1 -> 72.8 | M11: =(J11*'Base Data'!$C$60)+(K11*'Base Data'!$C$58)+(L11*'Base Data'!$C$59) -> 37728.236 | N11: f
A12: 4 | B12: Excess Emissions Enforcement Activities and Inspections | G12: 24 | H12: =ROUND(SUM('Fac-NewLrgLiquid-Yr2'!$G$9,'Fac-NewLrgSolid-Yr2'!$G$9,'Fac-ExistLrgSolid-Yr2'!$I$12)*0.1,0) -> 45 | I12: 0 | J12: =I12 -> 0 | K12: =J12*0.05 -> 0 | L12: =J12*0.1 -> 0 | M12: =(J12*'Base Data'!$C$60)+(K12*'Base Data'!$C$58)+(L12*'Base Data'!$C$59) -> 0 | N12: g
A13: 5 | B13: Notification requirements
B14: A. | C14: Review initial notification that sources are subject to the standard | G14: 2 | H14: =H6 -> 1129 | I14: =G14*H14 -> 2258 | J14: =I14 -> 2258 | K14: =J14*0.05 -> 112.9 | L14: =J14*0.1 -> 225.8 | M14: =(J14*'Base Data'!$C$60)+(K14*'Base Data'!$C$58)+(L14*'Base Data'!$C$59) -> 117019.721 | N14: b
B15: B. | C15: Review notification of initial performance tests and review test plan | G15: 20 | H15: =ROUND(SUM('Fac-NewLrgLiquid-Yr2'!$G$9,'Fac-NewLrgSolid-Yr2'!$G$9,'Fac-ExistLrgSolid-Yr2'!$I$12),0) -> 453 | I15: 9060 | J15: 9060 | K15: 453 | L15: 906 | M15: =(J15*'Base Data'!$C$60)+(K15*'Base Data'!$C$58)+(L15*'Base Data'!$C$59) -> 469529.97 | N15: e
B16: C. | C16: Review notification of compliance status | G16: 2 | H16: =SUM('Fac-NewSmlLiquid-Yr2'!$G$14,'Fac-NewSmlSolid-Yr2'!$G$14,'Fac - ExistSmlLiquid-Yr2'!$G$14,'Fac - ExistSmlSolid-Yr2'!$G$14,'Fac-NewLrgLiquid-Yr2'!$G$23,'Fac-NewLrgSolid-Yr2'!$G$29,'Fac-ExistLrgLiquid-Yr2'!$H$17,'Fac-ExistLrgSolid-Yr2'!$I$28) -> 1129 | I16: 2258 | J16: 2258 | K16: 112.9 | L16: 225.8 | M16: =(J16*'Base Data'!$C$60)+(K16*'Base Data'!$C$58)+(L16*'Base Data'!$C$59) -> 117019.721 | N16: b
A17: 6. | B17: Reporting requirements | I17: 0 | J17: 0 | K17: 0 | L17: 0 | M17: =(J17*'Base Data'!$C$60)+(K17*'Base Data'!$C$58)+(L17*'Base Data'!$C$59) -> 0
B18: A. | C18: Review annual compliance report | G18: 4 | H18: ='Fac-NewLrgLiquid-Yr2'!$G$24+'Fac-NewLrgSolid-Yr2'!$G$30+'Fac-ExistLrgSolid-Yr2'!$I$30 -> 182 | I18: 728 | J18: 728 | K18: 36.4 | L18: 72.8 | M18: =(J18*'Base Data'!$C$60)+(K18*'Base Data'!$C$58)+(L18*'Base Data'!$C$59) -> 37728.236 | N18: h
B19: B. | C19: Review biennial compliance report | G19: 2 | H19: =0.5*SUM('Fac-NewSmlLiquid-Yr2'!$G$15,'Fac-NewSmlSolid-Yr2'!$G$15,'Fac - ExistSmlLiquid-Yr2'!$G$15,'Fac - ExistSmlSolid-Yr2'!$G$15,'Fac-ExistLrgLiquid-Yr2'!$H$18,'Fac-ExistLrgSolid-Yr2'!$I$31) -> 1038 | I19: 2076 | J19: 2076 | K19: 103.8 | L19: 207.6 | M19: =(J19*'Base Data'!$C$60)+(K19*'Base Data'!$C$58)+(L19*'Base Data'!$C$59) -> 107587.662 | N19: i
B20: C. | C20: Review initial report on results of energy audit | G20: 2 | H20: =SUM('Fac-ExistLrgLiquid-Yr2'!$H$10:$H$11,'Fac-ExistLrgSolid-Yr2'!$I$10:$I$11) -> 6635 | I20: 13270 | J20: 13270 | K20: 663.5 | L20: 1327 | M20: =(J20*'Base Data'!$C$60)+(K20*'Base Data'!$C$58)+(L20*'Base Data'!$C$59) -> 687711.115 | N20: j
A21: 7. | B21: Travel Expenses for Tests Attended | G21: 3 days * ($110 hotel + $58 meals/incidentals) + ($600 round trip) = $1104 per trip | M21: =(('Base Data'!$C$68*('Base Data'!$C$65+'Base Data'!$C$66))+'Base Data'!$C$67)*SUM(H8:H9) -> 245088 | N21: k
A22: TOTAL BURDEN AND COST (SALARY) | J22: =SUM(J5:J20) -> 42996 | K22: =SUM(K5:K20) -> 2149.8 | L22: =SUM(L5:L20) -> 4299.6 | M22: =SUM(M5:M21) -> 2473334.202
A23: TOTAL ANNUAL HOURS | L23: =(SUM(J5:J20))+(SUM(K5:K20))+(SUM(L5:L20)) -> 49445.4
A25: a Number of occurrences is the number of states where affected sources will exist and each EPA Region (50 states + 10 EPA regions = 60 respondents).
A26: b Number of occurrences is based on the total number of affected facilities in year 1 that are required to submit initial notifications stated they are subject to the standard (all new boilers in the large and small solid and liquid subcategories, plus all existing large and small solid and liquid subcategories). For initial notifications of compliance status, the number of occurrences is based on all new boilers in the large and small solid and liquid subcategories, existing large and small solid and liquid units have until year 3 to submit this notification.
A27: c Number of occurrences is based on the assumption that EPA personnel will observe 20% of the initial performance tests that occur in year 1 (in year 1 only boilers in new large and small solid and liquid subcategories test).
A28: d Number of occurrences is based on the assumption that of the units that test in year 1, 10% will have to retest and EPA personnel will observe all these retests.
A29: e Number of occurrences is based on the number of units that will test and set/submit operating limits in year 1 (in year 1 only new boilers in new large and small solid and liquid subcategories).
A30: f Number of occurrences begins in year 3 for existing units and in year 1 for new units and is based on the number of units maintaining records of control device parameters.
A31: g Number of occurrences is based on the assumption that of the new units in year 1 that test, 10% of them will have exceedances and need enforcement.
A32: h Number of occurrences is the number of projected new units in years 1, 2, and 3 that will submit these semi-annual compliance reports (new units in the large and small solid and liquid subcategories) as well as existing large solid and liquid units that will begin to submit compliance reports in year 3.
A33: i Number of occurrences is the number of units in year 2 that will submit these biennial compliance reports (existing small solid and liquid subcategories).
A34: j Energy audits only occur at existing facilities with large units.
A35: k Total cost is based on the number of trips taken by EPA to observe performance tests in year 1 (4.A. & 4.B.) multiplied by $1104 per trip. The source for hotel and meals/incidental costs is based on FY' 10 per diem rates, averaged across all locations in the United States. Airfares are estimated based on experience from other rulemakings. See: http://www.gsa.gov/Portal/gsa/ep/contentView.do?contentId=17943&contentType=GSA_BASIC
A36: L These rates are from the Office of Personnel Management (OPM), 2010 General Schedule, which excludes locality rates of pay. The rates have been increased by 60 percent to account for the benefit packages available to government employees. These rates can be obtained from the OPM web site, http//www.opm.gov/oca/payrates/index/htm.

Sheet AgencyYR3
A1: Table 9.C. Annual Federal Government Burden and Cost of Recordkeeping and Reporting
A2: for the Industrial, Commercial, and Institutional Boilers Area Source NESHAP Subpart JJJJJJ- Year 3 - Third Year After Promulgation
A4: Burden Item | G4: EPA hours per occurrence (A) | H4: Number of occurrences per year (B) | I4: EPA hours per occurrence per year (C=AxB) | J4: Technical hours per year (D=C) | K4: Management hours per year (E=Dx0.05) | L4: Clerical hours per year (F=Dx0.1) | M4: Costs, $L (H) | N4: Footnotes
A5: 1. | B5: Read and understand rule requirements | G5: 40 | H5: 0 | I5: =G5*H5 -> 0 | J5: =I5 -> 0 | K5: =J5*0.05 -> 0 | L5: =J5*0.1 -> 0 | M5: =(J5*'Base Data'!$C$60)+(K5*'Base Data'!$C$58)+(L5*'Base Data'!$C$59) -> 0 | N5: a
A6: 2. | B6: Enter and update information into agency recordkeeping system | G6: 2 | H6: =SUM('Fac-ExistLrgSolid-Yr3'!$I$27,'Fac-ExistLrgLiquid-Yr3'!$H$16,'Fac-NewLrgSolid-Yr3'!$G$28,'Fac-NewLrgLiquid-Yr3'!$G$22,'Fac - ExistSmlSolid-Yr3'!$G$13,'Fac - ExistSmlLiquid-Yr3'!$G$13,'Fac-NewSmlSolid-Yr3'!$G$13,'Fac-NewSmlLiquid-Yr3'!$G$13) -> 1132 | I6: =G6*H6 -> 2264 | J6: =I6 -> 2264 | K6: =J6*0.05 -> 113.2 | L6: =J6*0.1 -> 226.4 | M6: =(J6*'Base Data'!$C$60)+(K6*'Base Data'!$C$58)+(L6*'Base Data'!$C$59) -> 117330.668 | N6: b
A7: 3. | B7: Required activities
B8: A. | C8: Observe initial stack/performance test | G8: 40 | H8: =ROUND(SUM('Fac-NewLrgLiquid-Yr3'!$G$9,'Fac-NewLrgSolid-Yr3'!$G$9:$G$11,'Fac-ExistLrgSolid-Yr3'!$I$12:$I$13)*0.2,0) -> 148 | I8: =G8*H8 -> 5920 | J8: =I8 -> 5920 | K8: =J8*0.05 -> 296 | L8: =J8*0.1 -> 592 | M8: =(J8*'Base Data'!$C$60)+(K8*'Base Data'!$C$58)+(L8*'Base Data'!$C$59) -> 306801.04 | N8: c
B9: B. | C9: Observe repeat performance test | G9: 40 | H9: =ROUND(SUM('Fac-NewLrgLiquid-Yr3'!$G$9,'Fac-NewLrgSolid-Yr3'!$G$9:$G$11,'Fac-ExistLrgSolid-Yr3'!$I$12:$I$13)*0.1,0) -> 74 | I9: =G9*H9 -> 2960 | J9: =I9 -> 2960 | K9: =J9*0.05 -> 148 | L9: =J9*0.1 -> 296 | M9: =(J9*'Base Data'!$C$60)+(K9*'Base Data'!$C$58)+(L9*'Base Data'!$C$59) -> 153400.52 | N9: d
B10: C. | C10: Review operating parameters | G10: 2 | H10: =ROUND(SUM('Fac-NewLrgLiquid-Yr3'!$G$9,'Fac-NewLrgSolid-Yr3'!$G$9:$G$11,'Fac-ExistLrgSolid-Yr3'!$I$12:$I$13),0) -> 738 | I10: =G10*H10 -> 1476 | J10: =I10 -> 1476 | K10: =J10*0.05 -> 73.8 | L10: =J10*0.1 -> 147.6 | M10: =(J10*'Base Data'!$C$60)+(K10*'Base Data'!$C$58)+(L10*'Base Data'!$C$59) -> 76492.962 | N10: e
B11: D. | C11: Review continuous parameter monitoring | G11: 2 | H11: =ROUND(SUM('Fac-NewLrgSolid-Yr3'!$G$37,'Fac-NewLrgLiquid-Yr3'!$G$31,'Fac-ExistLrgSolid-Yr3'!$I$38),0) -> 1120 | I11: =G11*H11 -> 2240 | J11: =I11 -> 2240 | K11: =J11*0.05 -> 112 | L11: =J11*0.1 -> 224 | M11: =(J11*'Base Data'!$C$60)+(K11*'Base Data'!$C$58)+(L11*'Base Data'!$C$59) -> 116086.88 | N11: f
A12: 4 | B12: Excess Emissions Enforcement Activities and Inspections | G12: 24 | H12: =ROUND(SUM('Fac-NewLrgLiquid-Yr3'!$G$9,'Fac-NewLrgSolid-Yr3'!$G$9,'Fac-ExistLrgSolid-Yr3'!$I$12)*0.1,0) -> 45 | I12: 0 | J12: =I12 -> 0 | K12: =J12*0.05 -> 0 | L12: =J12*0.1 -> 0 | M12: =(J12*'Base Data'!$C$60)+(K12*'Base Data'!$C$58)+(L12*'Base Data'!$C$59) -> 0 | N12: g
A13: 5 | B13: Notification requirements
B14: A. | C14: Review initial notification that sources are subject to the standard | G14: 2 | H14: =H6 -> 1132 | I14: =G14*H14 -> 2264 | J14: =I14 -> 2264 | K14: =J14*0.05 -> 113.2 | L14: =J14*0.1 -> 226.4 | M14: =(J14*'Base Data'!$C$60)+(K14*'Base Data'!$C$58)+(L14*'Base Data'!$C$59) -> 117330.668 | N14: b
B15: B. | C15: Review notification of initial performance tests and review test plan | G15: 20 | H15: =ROUND(SUM('Fac-NewLrgLiquid-Yr3'!$G$9,'Fac-NewLrgSolid-Yr3'!$G$9,'Fac-ExistLrgSolid-Yr3'!$I$12),0) -> 452 | I15: 9040 | J15: 9040 | K15: 452 | L15: 904 | M15: =(J15*'Base Data'!$C$60)+(K15*'Base Data'!$C$58)+(L15*'Base Data'!$C$59) -> 468493.48 | N15: e
B16: C. | C16: Review notification of compliance status | G16: 2 | H16: =SUM('Fac-NewSmlLiquid-Yr3'!$G$14,'Fac-NewSmlSolid-Yr3'!$G$14,'Fac - ExistSmlLiquid-Yr3'!$G$14,'Fac - ExistSmlSolid-Yr3'!$G$14,'Fac-NewLrgLiquid-Yr3'!$G$23,'Fac-NewLrgSolid-Yr3'!$G$29,'Fac-ExistLrgLiquid-Yr3'!$H$17,'Fac-ExistLrgSolid-Yr3'!$I$28) -> 92468 | I16: 184936 | J16: 184936 | K16: 9246.8 | L16: 18493.6 | M16: =(J16*'Base Data'!$C$60)+(K16*'Base Data'!$C$58)+(L16*'Base Data'!$C$59) -> 9584215.732 | N16: b
A17: 6. | B17: Reporting requirements | I17: 0 | J17: 0 | K17: 0 | L17: 0 | M17: =(J17*'Base Data'!$C$60)+(K17*'Base Data'!$C$58)+(L17*'Base Data'!$C$59) -> 0
B18: A. | C18: Review annual compliance report | G18: 4 | H18: ='Fac-NewLrgLiquid-Yr3'!$G$24+'Fac-NewLrgSolid-Yr3'!$G$30+'Fac-ExistLrgSolid-Yr3'!$I$30 -> 561 | I18: 2244 | J18: 2244 | K18: 112.2 | L18: 224.4 | M18: =(J18*'Base Data'!$C$60)+(K18*'Base Data'!$C$58)+(L18*'Base Data'!$C$59) -> 116294.178 | N18: h
B19: B. | C19: Review biennial compliance report | G19: 2 | H19: =0.5*SUM('Fac-NewSmlLiquid-Yr3'!$G$15,'Fac-NewSmlSolid-Yr3'!$G$15,'Fac - ExistSmlLiquid-Yr3'!$G$15,'Fac - ExistSmlSolid-Yr3'!$G$15,'Fac-ExistLrgLiquid-Yr3'!$H$18,'Fac-ExistLrgSolid-Yr3'!$I$31) -> 47082.5 | I19: 94165 | J19: 94165 | K19: 4708.25 | L19: 9416.5 | M19: =(J19*'Base Data'!$C$60)+(K19*'Base Data'!$C$58)+(L19*'Base Data'!$C$59) -> 4880054.043 | N19: i
B20: C. | C20: Review initial report on results of energy audit | G20: 2 | H20: =SUM('Fac-ExistLrgLiquid-Yr3'!$H$10:$H$11,'Fac-ExistLrgSolid-Yr3'!$I$10:$I$11) -> 6633 | I20: 13266 | J20: 13266 | K20: 663.3 | L20: 1326.6 | M20: =(J20*'Base Data'!$C$60)+(K20*'Base Data'!$C$58)+(L20*'Base Data'!$C$59) -> 687503.817 | N20: j
A21: 7. | B21: Travel Expenses for Tests Attended | G21: 3 days * ($110 hotel + $58 meals/incidentals) + ($600 round trip) = $1104 per trip | M21: =(('Base Data'!$C$68*('Base Data'!$C$65+'Base Data'!$C$66))+'Base Data'!$C$67)*SUM(H8:H9) -> 245088 | N21: k
A22: TOTAL BURDEN AND COST (SALARY) | J22: =SUM(J5:J20) -> 320775 | K22: =SUM(K5:K20) -> 16038.75 | L22: =SUM(L5:L20) -> 32077.5 | M22: =SUM(M5:M21) -> 16869091.99
A23: TOTAL ANNUAL HOURS | L23: =(SUM(J5:J20))+(SUM(K5:K20))+(SUM(L5:L20)) -> 368891.25
A25: a Number of occurrences is zero, as this burden was a one time requirement and it was assigned to year 1.
A26: b Number of occurrences is based on the total number of affected facilities in year 3 that are required to submit initial notifications (all new boilers in the large and small solid and liquid subcategories).
A27: c Number of occurrences is based on the assumption that EPA personnel will observe 20% of the initial performance tests that occur in year 3 (in year 3 only boilers in new large and small solid and liquid subcategories test).
A28: d Number of occurrences is based on the assumption that of the units that test in year 3, 10% will have to retest and EPA personnel will observe all these retests.
A29: e Number of occurrences is based on the number of units that will test and set/submit operating limits in year 3 (in year 3 only boilers in new large and small solid and liquid and half of existing large solid and liquid subcategories).
A30: f Number of occurrences begins in year 3 for existing units and in year 1 for new units and is based on the number of units maintaining records of control device parameters.
A31: g Number of occurrences is based on the assumption that of the new units in year 3 that test, 10% of them will have exceedances and need enforcement.
A32: h Number of occurrences is the number of projected new units in years 1, 2, and 3 that will submit these semi-annual compliance reports (new units in the large and small solid and liquid subcategories) as well as existing large solid and liquid units that will begin to submit compliance reports in year 3.
A33: i Number of occurrences is the number of units in year 3 that will submit these biennial compliance reports (existing small solid and liquid subcategories).
A34: j Energy audits only occur at existing facilities with large units.
A35: k Total cost is based on the number of trips taken by EPA to observe performance tests in year 1 (4.A. & 4.B.) multiplied by $1104 per trip. The source for hotel and meals/incidental costs is based on FY' 10 per diem rates, averaged across all locations in the United States. Airfares are estimated based on experience from other rulemakings. See: http://www.gsa.gov/Portal/gsa/ep/contentView.do?contentId=17943&contentType=GSA_BASIC
A36: L These rates are from the Office of Personnel Management (OPM), 2010 General Schedule, which excludes locality rates of pay. The rates have been increased by 60 percent to account for the benefit packages available to government employees. These rates can be obtained from the OPM web site, http//www.opm.gov/oca/payrates/index/htm.
